Workbook

Sheet Information
A6: Small and Sick Newborn Planning & Costing Tool
E7: Tool Version: | F7: Version 3.0
E8: Date of release: | F8: June 2025
A9: Developed by the Global Financing Facility in collaboration with UNICEF to support country planning & budgeting for the scale-up of Level 2 newborn care units
A11: Disclaimers
A12: This is an open-source tool. Any changes in the structure or formulas may result in errors.
A13: The GFF and UNICEF are not responsible for the use of the tool or the results produced. These are entirely the responsibility of the user.
A15: Contact for questions & feedback: Alison Morgan (GFF) amorgan3@worldbank.org
A17: General Information and tips
A18: The primary objective of the tool is to support planning & budgeting for scaling-up good quality of care at Level 2 newborn care units
A19: The tool covers all the components of the model of care proposed by the WHO-UNICEF Expert and Country Consultation and helps users to unpack ‘what it takes’ and how much it costs to implement country standards for each component.
A21: Similar to a planning guide, the tool has been organised step-by-step. Users should go through worksheets and their steps sequentially.
A22: A user manual with troubleshooting tips as well as additional information to support the use of the tool are available from the GFF
A23: The tool operates step-by-step, so users should start with the first tab and go through each step, before moving to the following tab.
A24: It is optimized for Excel 365. Using older versions may result in reduced functionality or errors
A25: Before using the tool as a Microsoft Excel file make sure that all Macros are enabled.
A26: To enable macros, go to the Excel menu and select the following:
A27: File -- Options -- Trust Center -- Trust center settings -- Macro Settings -- Enable all macros.
A28: Or select “Enable content” at the prompt when first opening the file.
A29: Some office versions block by default all macros from files downloaded from the web
A30: If this happens, close the file and before opening the file select:
A31: Properties -- General -- Unblock
A32: Due to compatibility issues, please do not use Google Drive to store or share this Excel file.
A33: Doing so may corrupt the file or disable essential VBA functions, causing errors in calculations and overall functionality
A34: WARNING: Do not copy and paste data into this workbook. Doing so may insert conflicting code and remove validation. Please enter data manually
A35: Many cells are formatted with special styles and this will occasionally cause Excel to display a "Slow Workbook" message, which should be ignored.
A36: Cells with formulae and worksheets have been protected. However users are able to transfer data to other workbooks for further analysis.
A37: This workbook contains many named cells. When transferring data with the copy/paste commands, use "Paste special: Values and numbers format"
A38: Graphs can be edited and copy/paste to other workbooks
A41: TOOL STRUCTURE & NAVIGATION MENU
A43: General Inputs for Planning & Budgeting
A44: In this module the user:
A45: * enters general information on the scale-up;
A46: * selects typologies for costings; | I46: THE 10 COMPONENTS OF SCALING-UP THE MODEL OF CARE FOR SMALL AND/OR SICK NEWBORNS
A47: * enters basic unit costs for infrastructure, equipment, human resources & referrals
A60: Planning & Budgeting
A61: These modules are the core of the tool and provide step-by-step guidance to:
A62: * set country standards applicable to the scale-up components;
A63: * review the standards and associated costs by typology;
A64: * identify & cost supporting system strategies.
A79: Financing
A80: These modules provide financing analytics to support strategic decision-making:
A81: * Using facility typologies to explore cost analytics
A82: * Scale-up scenario & funding implications

Sheet 1.General_Inputs_Plan&Budget
B2: GENERAL INPUTS
B3: WARNING: Do not copy and paste data into this workbook. Doing so may insert conflicting code and remove validation. Please enter data manually & choose from dropdown menu where available to ensure proper functionality
B4: MODULE OVERVIEW
B5: * Enter general information on the costing exercise
B6: * Select facility typologies for costing
B7: * Enter basic information on system parameters
B8: * Enter data on unit costs for infrastructure, equipment, HR & referrals
B9: Light blue cells are user inputs.
B11: STEP 1 - PROVIDE GENERAL INFORMATION ON THE COSTING EXERCISE
B13: 1.1 - Name of the Costing Scenario
B14: Name: | C14: Training Dummy Data
B16: 1.2 - Select currency used for cost inputs & document exchange rate used for any conversions.
B17: Remember that all costs should be measured using the same currency.
D18: User Notes
B19: Currency to be used for all cost inputs: | C19: USD
B21: Exchange Rate of local currency for conversions of final estimates: 1 USD = | C21: 120
B23: 1.3- Select base year for costings and financing
B24: Remember all costs should be measured for the same base year
B25: If different types of costs are collected for different years, the costing results will be incorrect
D26: User Notes
B27: All the tool costings and financing inputs are for base year: | C27: 2024
B30: STEP 2 - SELECT FACILITY TYPOLOGIES FOR COSTING
B32: Select facility typologies for costing. Need to select at least one option for each typology
B33: Please make sure you select from the drop down menu ("Yes", "No"). Do not copy/paste, cut/paste into these cells
D34: User Notes
B35: SIZE | C35: To be included ?
B36: Small | C36: Yes | E36: =IF(AND(C36= "No",C37="No",C38="No"),"ERROR, NEED TO SELECT A CATEGORY", "") -> 
B37: Medium | C37: Yes
B38: Large | C38: No
B40: COST/LOCATION
B41: Mid Cost | C41: Yes | E41: =IF(AND(C41= "No",C42="No",C43="No"),"ERROR, NEED TO SELECT A CATEGORY", "") -> 
B42: High Cost | C42: Yes
B43: Very High Cost | C43: Yes
B45: CONSTRUCTION TYPE
B46: New Construction | C46: Yes | E46: =IF(AND(C46= "No",C47="No"),"ERROR, NEED TO SELECT A CATEGORY", "") -> 
B47: Rehabilitation | C47: Yes
B49: EQUIPMENT NEEDS
B50: Major | C50: Yes | E50: =IF(AND(C50= "No",C51="No",C52="No"),"ERROR, NEED TO SELECT A CATEGORY", "") -> 
B51: Partial | C51: Yes
B52: Limited | C52: Yes
B54: RECRUITMENT CHALLENGES
B55: Standard | C55: Yes | E55: =IF(AND(C55= "No",C56="No", C57="No"),"ERROR, NEED TO SELECT A CATEGORY", "") -> 
B56: Hard-to-Recruit | C56: Yes
B57: Most Challenging | C57: No
B60: STEP 3 -ENTER BASIC INFRASTRUCTURE STANDARDS & UNIT COSTS FOR CONSTRUCTION
B62: 3.1 Infrastructure Standards - Enter type of inpatient beds for a Level 2 Newborn Care Unit
B63: Enter only inpatient beds. Beds for family members not staying with the newborn should not be included here.
C64: User Notes
B65: Type of Inpatient Beds
B66: High Dependency
B67: Low Dependency
B68: Transitioning
B71: 3.2. Infrastructure Standards - Enter the other facility areas, such as outpatient care, ancillary and support services
B72: Remember to account for space requirements of all components of the model of care, including post-discharge follow-up and family and community involvement and support
B73: This also includes office space requirements for management, data systems & liaison with other facilities regarding linkages and referrals
B74: Any areas for accommodation of family members not staying with the newborn should be included here.
C76: User Notes
B77: Type of Facility Service Areas
B78: Family facilities | C78: Sample areas only
B79: Nursing station
B80: Nursing office
B81: Counselling area
B82: Other areas to be defined | C82: Catch-all category
C83: As per instructions, individual areas need to be specified
B94: 3.3. Enter average construction costs per Sq mt for a Level 2 Newborn Care Unit as per standards
B95: If no data on rehabilitation costs, note that based on the GFF case study rehabilitation costs are approximately 50% to 60% of new construction costs
B96: Average Cost per Square Meter of Construction (by Typology) | E96: User Notes
C97: Type of Construction
B98: Costing Typology | C98: =IF(C46="Yes",B46,"") -> New Construction | D98: =IF(C47="Yes",B47,"") -> Rehabilitation
B99: =IF(C41="Yes", B41, "") -> Mid Cost | C99: 670 | D99: 400
B100: =IF(C42="Yes", B42, "") -> High Cost | C100: 940 | D100: 560
B101: =IF(C43="Yes", B43, "") -> Very High Cost | C101: 1200 | D101: 720
B103: 3.4. Enter estimated annual cost of building maintenance (as % of the cost of building a new unit)
B104: If country data are not available, a standard rule of thumb such as 1% can be used.
B105: Building Maintenance | C105: As % of new building value | D105: User Notes
B106: Annual building maintenance costs | C106: 0.015
B109: STEP 4. ENTER LIST OF ESSENTIAL EQUIPMENT (as per standards) & UNIT COSTS
B111: 4.1. Enter list of essential equipment and unit price (inclusive of warranty) for each device
B112: Equipment list to be sourced from country standards & guidelines.
B113: The list should include all essential devices to deliver quality of care inc. those required for mothers and referral transport
B114: If standards are not available, as a starting point for discussions, the list can be sourced from international guidelines or relevant GFF reports
B115: Do not enter office furniture or equipment here
B117: LIST OF ESSENTIAL EQUIPMENT | C117: Unit price inc. warranty | D117: User Notes
B118: Multipara monitor | C118: 700
B119: Phototherapy Unit | C119: 400
B120: Radiant Warmer | C120: 2000
B121: CPAP | C121: 1300
B122: Pulse Oximeter | C122: 100
B123: Portable X-Ray | C123: 20000
B124: Other devices to be defined and costed | C124: 57950 | D124: Catch-all category. Individual devices need to be specified and costed
B229: 4.2. Provide a brief description of warranty, including number of years
B231: Brief Warranty Description:
B232: One year only
B235: STEP 5. ENTER HUMAN RESOURCES -CLINICAL & SUPPORT- (As per standards) AND UNIT COSTS
B236: 5.1 Enter categories of facility staff and annual cost per FTE for facility typologies included
B237: Categories should include clinical & support staff needed. To be sourced from country standards & guidelines.
B238: Make sure the list includes human resources required for all components, such as drivers for ambulance referrals, data officers for information systems or support staff for post-discharge follow-up
B239: If not available, the list can be sourced from international guidelines or relevant GFF reports, as a starting point for discussions in country.
B240: Column headings will be blank if a typology was not included
B242: List of Human Resources Required & Annual Costs per FTE
C243: STAFF RECRUITMENT FACILITY TYPOLOGIES | F243: User Notes
C244: =IF(C55="Yes", _xlfn.CONCAT(B55, " area"), "") -> Standard area | D244: =IF(C56="Yes", B56, "") -> Hard-to-Recruit | E244: =IF(C57="Yes",B57,"") -> 
B245: Staff Category (Clinical & Support) | C245: =IF(C55= "Yes", "Annual costs inc. salaries, allowances, etc.", "") -> Annual costs inc. salaries, allowances, etc. | D245: =IF(C56= "Yes", "Annual costs inc. salaries, allowances, recruitment area incentives", "") -> Annual costs inc. salaries, allowances, recruitment area incentives | E245: =IF(C57= "Yes", "Annual costs inc. salaries, allowances, & recruitment area incentives", "") -> 
B246: Neonatologist | C246: 11000 | D246: 13750
B247: Medical Doctor | C247: 8000 | D247: 10000
B248: Registered Neonatal Nurse | C248: 6000 | D248: 7500
B249: Registered Nurse | C249: 4000 | D249: 5000
B250: Ward assistant/Public Health Nurse | C250: 2000 | D250: 2500
B251: Biomedical engineer | C251: 6000 | D251: 7500
B252: Ambulance driver | C252: 3000 | D252: 3750
B253: Cleaner | C253: 1500 | D253: 1875
B254: Other staff to be individually defined & costed | C254: 50000 | D254: 75000
B269: 5.2 Enter average costs of supervision/mentoring visits from regions to Level 2 Newborn Care Units, including allowances, per diems, transport
B271: Supervision/Mentoring/Coaching Visits - Unit Costs | C271: $ | D271: User Notes
B272: Average cost per supervision, mentoring and coaching visits: | C272: 95
B275: STEP 6. ENTER & VALIDATE COST LOADINGS OR MARK-UPS TO CAPTURE VARIATIONS ACROSS LOCATION/COST TYPOLOGIES
B277: 6.1. Enter % of cost loadings/mark-ups to be applied to supervision/mentoring visits and other strategies at facility level. Enter 0 or leave blank if none
B278: If for example, costs entered in step 5.2. reflect a mid-cost location and are likely to be 10% higher in high cost locations and 20% higher in very high cost locations: Enter 0 for mid cost, 10% for high cost and 20% for very high cost
B279: Only cost/location typologies included in the exercise are shown here.
B280: Cost loadings/mark-ups by typology | C280: % | D280: User Notes
B281: =List_Costing_Groups -> Mid Cost | C281: 0
B282: High Cost | C282: 0.1
B283: Very High Cost | C283: 0.2
B286: 6.2. Review costs of supervision/mentoring visits after applying cost loadings
B287: This table shows unit costs in step 5.2. by facility/cost location typology, after applying cost loadings/mark-ups in Step 6.1.
B288: Here you have the opportunity to review how cost loadings are applied to ensure that percentages entered in Step 6.1. are accurate
B289: If you think there is a mistake in these calculations, go back to Step 6.1. and change the cost loadings entered.
B290: Remember that these loadings are used to estimate costs under each planning & budgeting module.
B292: Unit costs of Supervision visits after applying cost loadings | C292: $
B293: =List_Costing_Groups -> Mid Cost | C293: =IF(Name_Cost_Mid="",0,Price_SupervisionVisit*(1+Percent_Loading_Mid)) -> 95
B294: High Cost | C294: =IF(Name_Cost_High="",0,Price_SupervisionVisit*(1+Percent_Loading_High)) -> 104.5
B295: Very High Cost | C295: =IF(Name_Cost_VHigh="",0,Price_SupervisionVisit*(1+Percent_Loading_VHigh)) -> 114
B299: STEP 7. ENTER COSTS OF REFERAL VEHICLE/AMBULANCE
B301: 7.1. Enter ambulance vehicle acquisition costs, including any GPS requirements
B302: Do not include newborn transport equipment costs, only the costs of the vehicle & the GPS
B304: Ambulance vehicle cost inclusive of GPS: | C304: Unit COST | D304: User Notes
C305: 100000
B308: 7.2. Enter fuel and maintenance costs per kilometer for ambulance vehicles
B309: Remember that ambulance annual costs by facility typologies are estimated using these inputs.
B310: Under the Referrals Plan & Budget tab, adjustments by cost loadings and other factors are made and you can review/modify facility estimates as required
B312: Note: For a traditional ambulance vehicle, a litre of fuel might last between 12-15 kmts. In the absence of data, maintenance costs can be set as a percentage of fuel cost (i.e. 40 or 50%)
B313: Average cost of vehicle fuel & maintenance | C313: Cost per kilometer | D313: User Notes
B314: Fuel | C314: 0.12
B315: Maintenance | C315: 0.06

Sheet 2.Infrastructure_Plan&Budget
B2: INFRASTRUCTURE - PLANNING & BUDGETING
B3: WARNING: Do not copy and paste data into this workbook. Doing so may insert conflicting code and remove validation. Please enter data manually to ensure proper functionality
B4: MODULE OVERVIEW
B5: Enter country infrastructure standards, including:
B6: *The required parameters to estimate the number of beds needed to adequately meet the demand for services at each facility size
B7: * Minimum floor space per bed
B8: * Minimum floor space per facility area & facility circulation areas
B9: If detailed country standards are not available, to initiate discussions in country, they can be sourced from international guidelines or relevant GFF reports
B10: Review required floor space & associated costings for each type of facility, including building maintenance.
B11: Remember:
B12: Light blue cells are user inputs.
B13: Yellow cells are tool calculations not to be manually changed
B15: STEP 1 - ESTIMATE & VALIDATE THE NUMBER OF BEDS REQUIRED TO MEET THE DEMAND FOR SERVICES
B16: The tool calculates the expected number of facility admissions by typology based on: number of live births in catchment area and % of live births requiring special care.
B17: The number of beds is estimated based on expected admissions, ALoS and target occupancy bed rate
B19: 1.1. Enter the expected average number of live births in the catchment area for what would be a typical small, medium and large facility
B20: Leave cells blank if facility typology is not being costed
C21: Facility Size Typology | F21: User Notes
C22: =IF('1.General_Inputs_Plan&Budget'!C36="Yes",'1.General_Inputs_Plan&Budget'!B36,"") -> Small | D22: =IF('1.General_Inputs_Plan&Budget'!C37="Yes",'1.General_Inputs_Plan&Budget'!B37,"") -> Medium | E22: =IF('1.General_Inputs_Plan&Budget'!C38="Yes",'1.General_Inputs_Plan&Budget'!B38,"") -> 
B23: Average number of live births in catchment area | C23: 5000 | D23: 10000
B25: 1.2. Enter formula parameters to estimate number of required beds based on population need:
B26: Based on WHO and UNICEF guidelines & the GFF case study, approx. 13.46% of live births require special care & 6.4 days of ALoS
B27: QoC strategies, inc. protocols and criteria for admission & discharge should be in place to ensure bed strength is adequate
B28: ~ 80% to 85% occupancy bed rates might be advisable
B29: Leave target occupancy bed rate blank if 100%
B30: % of live births requiring special care | C30: 0.1345 | D30: User Notes
B31: Target average length of stay (days) | C31: 6.4
B32: Target occupancy bed rate | C32: 0.85
B34: 1.3. Review expected number of admissions and newborn beds required by typology,
B35: These figures are estimated based on expected live births entered in Step 1.1. and other parameters entered in Step 1.2
B36: Service Delivery Parameters | C36: =C22 -> Small | D36: =D22 -> Medium | E36: =E22 -> 
B37: Expected annual number of admissions (#) | C37: =IF(C22= "",0,ROUND(C23*$C$30,0)) -> 673 | D37: =IF(D22="",0,ROUND(D23*$C$30,0)) -> 1345 | E37: =IF(E22="",0,ROUND(E23*$C$30,0)) -> 0
B38: Number of beds required (#) | C38: =IF(C22="",0,IF($C$32=0,(ROUNDUP(((C37*$C$31)/365),0)),(ROUNDUP(((C37*$C$31)/365)/$C$32,0)))) -> 14 | D38: =IF(D22="",0,IF($C$32=0,(ROUNDUP(((D37*$C$31)/365),0)),(ROUNDUP(((D37*$C$31)/365)/$C$32,0)))) -> 28 | E38: =IF(E22="",0,IF($C$32=0,(ROUNDUP(((E37*$C$31)/365),0)),(ROUNDUP(((E37*$C$31)/365)/$C$32,0)))) -> 0
B40: STEP 2 - IDENTIFY NUMBERS FOR EACH TYPE OF INPATIENT BED
B41: Enter here the number of beds for each type of inpatient bed listed under general inputs.
B42: Total Number of Beds should equal number of beds required in Step 1.3 above. Otherwise a warning sign would appear.
B43: If there are errors, infrastructure totals will be 0 & equipment costs might also be affected.
B44: Inpatient Areas (Type of Beds) | C44: Number of beds | F44: User Notes
C45: =IF(C22="","",C36) -> Small | D45: =IF(D22="", "",D36) -> Medium | E45: =IF(E22="", "",E36) -> 
B46: =List_Inpatient_Beds -> High Dependency | C46: 5 | D46: 10
B47: Low Dependency | C47: 5 | D47: 10
B48: Transitioning | C48: 4 | D48: 8
B49: 0
B50: Total Number of Beds to Check | C50: =IF(SUM(C46:C49)=Number_Beds_Small,Number_Beds_Small,"Check bed numbers") -> 14 | D50: =IF(SUM(D46:D49)=Number_Beds_Medium,Number_Beds_Medium,"Check bed numbers") -> 28 | E50: =IF(SUM(E46:E49)=Number_Beds_Large,Number_Beds_Large,"Check bed numbers") -> 0
B52: STEP 3 - SET FLOOR SPACE STANDARDS
B54: 3.1 - Set minimum floor space (square meters) per each type of inpatient bed
B55: Floor space standards for inpatient beds should take into consideration zero-separation policies
B56: Sq. Mt. per Type of Bed | D56: User Notes
B57: =B44 -> Inpatient Areas (Type of Beds) | C57: Sq. Mt per Bed
B58: =List_Inpatient_Beds -> High Dependency | C58: 16
B59: Low Dependency | C59: 12
B60: Transitioning | C60: 12
B61: 0
B63: 3.2. Review minimum floor space for inpatient care areas by facility size typology
B64: If Total inpatient care area = 0 the typology has not been costed or there is a mistake in the number of beds entered in Step 2.
B65: Total inpatient care area (Sq. Mt.) by Facility Size
C66: =List_Facility_Sizes -> Small | D66: Medium
B67: Type of inpatient care area | C67: Sq. Mts per facility | D67: Sq. Mts per facility | E67: Sq. Mts per facility
B68: =List_Inpatient_Beds -> High Dependency | C68: =IF(Number_Beds_Small=0,0,C46*$C58) -> 80 | D68: =IF(Number_Beds_Medium=0,0,D46*$C58) -> 160 | E68: =IF(Number_Beds_Large=0,0,E46*$C58) -> 0
B69: Low Dependency | C69: =IF(Number_Beds_Small=0,0,C47*$C59) -> 60 | D69: =IF(Number_Beds_Medium=0,0,D47*$C59) -> 120 | E69: =IF(Number_Beds_Large=0,0,E47*$C59) -> 0
B70: Transitioning | C70: =IF(Number_Beds_Small=0,0,C48*$C60) -> 48 | D70: =IF(Number_Beds_Medium=0,0,D48*$C60) -> 96 | E70: =IF(Number_Beds_Large=0,0,E48*$C60) -> 0
B71: 0 | C71: =IF(Number_Beds_Small=0,0,C49*$C61) -> 0 | D71: =IF(Number_Beds_Medium=0,0,D49*$C61) -> 0 | E71: =IF(Number_Beds_Large=0,0,E49*$C61) -> 0
B72: Total inpatient care area (Sq. Mt.) | C72: =IF(ISNUMBER(C50),SUM(C68:C71),0) -> 188 | D72: =IF(ISNUMBER(D50),SUM(D68:D71),0) -> 376 | E72: =IF(ISNUMBER(E50),SUM(E68:E71),0) -> 0
A73: Cell with warning | C73: =IF(OR(C50="Check bed numbers",D50="Check bed numbers",E72="Check bed numbers"), "Check number of beds entered in Step 2 before proceeding", "") -> 
B74: 3.3. Set minimum floor space (square meters) for outpatient care, ancillary and support services as applicable
B75: Remember that minimum space standards for the relevant facility areas should take into account any requirements of the 10 components of the small and sick newborn care model
B77: Floor standards for other areas by facility size | F77: User Notes
B78: Facility Service Area | C78: =List_Facility_Sizes -> Small | D78: Medium
C79: =C67 -> Sq. Mts per facility | D79: =D67 -> Sq. Mts per facility | E79: =E67 -> Sq. Mts per facility
B80: =List_Other_Facility_Areas -> Family facilities | C80: 20 | D80: 35
B81: Nursing station | C81: 20 | D81: 20
B82: Nursing office | C82: 15 | D82: 16
B83: Counselling area | C83: 12 | D83: 16
B84: Other areas to be defined | C84: 70 | D84: 90 | F84: Catch-all category built for the training dataset
B85: 0
B86: 0
B87: 0
B88: 0
B89: 0
B90: 0
B91: 0
B92: 0
B93: 0
B94: 0
B95: Total | C95: =IF(Number_Beds_Small=0,0,SUM(C80:C94)) -> 137 | D95: =IF(Number_Beds_Medium=0,0,SUM(D80:D94)) -> 177 | E95: =IF(Number_Beds_Large=0,0,SUM(E80:E94)) -> 0
B97: 3.4. Set floor space standards for circulation areas (i.e. corridors, entrance)
D98: User Notes
B99: Minimum floor space for circulation as % of the total area
B101: STEP 4 - REVIEW & VALIDATE TOTAL FACILITY FLOOR SPACE REQUIREMENTS & INFRASTRUCTURE COSTINGS
B103: 4.1. Review total floor space required to deliver good quality of care by facility size typology
B104: Total floor space = 0 if typology not costed or errors in number of beds
B105: Square Meters of Floor Space by Facility Size
B106: Service Areas - Floor Space | C106: =List_Facility_Sizes -> Small | D106: Medium
B107: Inpatient care areas (Sq. Mts.) | C107: =IF(Number_Beds_Small=0,0,C72) -> 188 | D107: =IF(Number_Beds_Medium=0,0,D72) -> 376 | E107: =IF(Number_Beds_Large=0,0,E72) -> 0
B108: Other facility areas (Sq. Mts.) | C108: =C95 -> 137 | D108: =D95 -> 177 | E108: =IF(Number_Beds_Large=0,0,E95) -> 0
B109: Circulation space (Sq. Mts.) | C109: =(C107+C108)*$C$99 -> 0 | D109: =(D107+D108)*$C$99 -> 0 | E109: =(E107+E108)*$C$99 -> 0
B110: Total floor space (Sq. Mts.) | C110: =IF(OR(Number_Beds_Small=0,C50="Check bed numbers"),0,SUM(C107:C109)) -> 325 | D110: =IF(OR(Number_Beds_Medium=0,D50="Check bed numbers"),0,SUM(D107:D109)) -> 553 | E110: =IF(OR(Number_Beds_Large=0,E50="Check bed numbers"),0,SUM(E107:E109)) -> 0
B112: 4.2. Review infrastructure costs for facilities requiring new construction by size and location/cost typologies
B113: Estimates are based on facility floor space and construction costs per square meter.
C114: NEW CONSTRUCTION - Total Costs
B115: Facility Costs by Typology | C115: =List_Facility_Sizes -> Small | D115: Medium
B116: =List_Costing_Groups -> Mid Cost | C116: =IF(Name_Construction_New="",0,IF(Name_Cost_Mid="",0,'1.General_Inputs_Plan&Budget'!$C99*Floor_Space_Small)) -> 217750 | D116: =IF(Name_Construction_New="",0,IF(Name_Cost_Mid="",0,'1.General_Inputs_Plan&Budget'!$C99*Floor_Space_Medium)) -> 370510 | E116: =IF(Name_Construction_New="",0,IF(Name_Cost_Mid="",0,'1.General_Inputs_Plan&Budget'!$C99*Floor_Space_Large)) -> 0
B117: High Cost | C117: =IF(Name_Construction_New= "",0,IF(Name_Cost_High="",0,'1.General_Inputs_Plan&Budget'!$C100*Floor_Space_Small)) -> 305500 | D117: =IF(Name_Construction_New="",0,IF(Name_Cost_High="",0,'1.General_Inputs_Plan&Budget'!$C100*Floor_Space_Medium)) -> 519820 | E117: =IF(Name_Construction_New="",0,IF(Name_Cost_High="",0,'1.General_Inputs_Plan&Budget'!$C100*Floor_Space_Large)) -> 0
B118: Very High Cost | C118: =IF(Name_Construction_New="",0,IF(Name_Cost_VHigh="",0,'1.General_Inputs_Plan&Budget'!$C101*Floor_Space_Small)) -> 390000 | D118: =IF(Name_Construction_New="",0,IF(Name_Cost_VHigh="",0,'1.General_Inputs_Plan&Budget'!$C101*Floor_Space_Medium)) -> 663600 | E118: =IF(Name_Construction_New="",0,IF(Name_Cost_VHigh="",0,'1.General_Inputs_Plan&Budget'!$C101*Floor_Space_Large)) -> 0
B120: 4.3. Review infrastructure costs for facilities requiring rehabilitation by size and location/cost typologies
B121: =B113 -> Estimates are based on facility floor space and construction costs per square meter.
C122: REHABILITATION - Total Costs
B123: =B115 -> Facility Costs by Typology | C123: =List_Facility_Sizes -> Small | D123: Medium
B124: =List_Costing_Groups -> Mid Cost | C124: =IF(Name_Construction_Rehab= "",0,IF(Name_Cost_Mid="",0,'1.General_Inputs_Plan&Budget'!$D99*Floor_Space_Small)) -> 130000 | D124: =IF(Name_Construction_Rehab= "",0,IF(Name_Cost_Mid="",0,'1.General_Inputs_Plan&Budget'!$D99*Floor_Space_Medium)) -> 221200 | E124: =IF(Name_Construction_Rehab= "",0,IF(Name_Cost_Mid="",0,'1.General_Inputs_Plan&Budget'!$D99*Floor_Space_Large)) -> 0
B125: High Cost | C125: =IF(Name_Construction_Rehab= "",0,IF(Name_Cost_High="",0,'1.General_Inputs_Plan&Budget'!$D100*Floor_Space_Small)) -> 182000 | D125: =IF(Name_Construction_Rehab= "",0,IF(Name_Cost_High="",0,'1.General_Inputs_Plan&Budget'!$D100*Floor_Space_Medium)) -> 309680 | E125: =IF(Name_Construction_Rehab= "",0,IF(Name_Cost_High="",0,'1.General_Inputs_Plan&Budget'!$D100*Floor_Space_Large)) -> 0
B126: Very High Cost | C126: =IF(Name_Construction_Rehab= "",0,IF(Name_Cost_VHigh="",0,'1.General_Inputs_Plan&Budget'!$D101*Floor_Space_Small)) -> 234000 | D126: =IF(Name_Construction_Rehab= "",0,IF(Name_Cost_VHigh="",0,'1.General_Inputs_Plan&Budget'!$D101*Floor_Space_Medium)) -> 398160 | E126: =IF(Name_Construction_Rehab= "",0,IF(Name_Cost_VHigh="",0,'1.General_Inputs_Plan&Budget'!$D101*Floor_Space_Large)) -> 0
B128: STEP 5 - REVIEW ANNUAL COST OF BUILDING MAINTENANCE BASED ON INPUTS AND NEW BUILDING VALUES
B129: These costs are estimated as a percentage of new building values
B130: Costs will be 0 if the new construction typology has not been included in costings or if no % of building maintenance was entered in inputs
B131: Annual building maintenance costs by typology | C131: =List_Facility_Sizes -> Small | D131: Medium
B132: =List_Costing_Groups -> Mid Cost | C132: =Infrastr_maintenance_percentage*C116 -> 3266.25 | D132: 5557.65 | E132: 0
B133: High Cost | C133: 4582.5 | D133: 7797.3 | E133: 0
B134: Very High Cost | C134: 5850 | D134: 9954 | E134: 0

Sheet 3.Equip_Standards_Plan&Budget
B2: EQUIPMENT & COMMODITIES (1) -PLANNING & BUDGETING
B3: WARNING: Do not copy and paste data into this workbook. Doing so may insert conflicting code and remove validation. Please enter data manually to ensure proper functionality. If pasting is absolutely necessary use "Paste Values" only.
B4: MODULE OVERVIEW
B5: Enter the number of essential facility equipment required at each facility size typology, following the instructions below
B6: Some column headings will be blank if not all facility typologies have been included or if the user has specified fewer than five types of inpatient beds. Do not enter data in those columns.
B7: Note that panes have been frozen to facilitate data-entry
B8: Light blue cells are user inputs.
B9: Yellow cells are tool calculations not to be manually changed
B10: If required, cells in dark blue can be used for overriding modelled estimates
B12: STEP 1 - SET THE NUMBER OF ESSENTIAL DEVICES & VALIDATE ESTIMATES TO BE USED IN COST CALCULATIONS
B13: First enter the number of essential devices required per type of inpatient bed. Decimals are allowed. So if one piece of equipment is required per three beds, enter 0.33
B14: Second, enter total number of devices required for providing safe transport to newborns as part of the referral system
B15: Third, enter any additional essential devices required at a facility. This is done by each facility size included and should take into consideration equipment requirements for facility areas such as triage.
B16: Fourth, review total facility requirements calculated for each typology (number of devices required per type of bed x numbers of each type of bed, plus additional devices required at each facility). Note that the tool rounds up estimates.
B17: Fifth, if required override modelled estimates in dark-blue cells.
B18: Sixth, review final estimates to be used in cost calculations. These numbers will be the same as those calculated by the tool, unless you have used the dark blue cells to override them.
A19: Cell with warning | B19: =IF(OR('2.Infrastructure_Plan&Budget'!C50="Check bed numbers",('2.Infrastructure_Plan&Budget'!D50 = "Check bed numbers"), ('2.Infrastructure_Plan&Budget'!E50= "Check bed numbers")), " Warning: Go back to Step 2 in the Infrastructure module & check number of beds, before proceeding", "") -> 
B20: Equipment Name | C20: First, enter required items per type of inpatient bed | G20: Second, enter requirements for referrals | H20: Third, enter additional required items @ facility | K20: Fourth, review estimated facility requirements | N20: Fifth, enter user-defined numbers here. Note they override modelled estimates | Q20: User Notes | U20: Sixth, review essential equipment numbers to be used in final calculations
C21: ='1.General_Inputs_Plan&Budget'!B66 -> High Dependency | D21: ='1.General_Inputs_Plan&Budget'!B67 -> Low Dependency | E21: ='1.General_Inputs_Plan&Budget'!B68 -> Transitioning | F21: ='1.General_Inputs_Plan&Budget'!B69 -> 0 | G21: Newborn Transport Equipment | H21: =_xlfn.CONCAT("Additional items @", Name_Small) -> Additional items @Small | I21: =_xlfn.CONCAT("Additional items @", Name_Medium) -> Additional items @Medium | J21: =_xlfn.CONCAT("Additional items @", Name_Large) -> Additional items @ | K21: =List_Facility_Sizes -> Small | L21: Medium | N21: =List_Facility_Sizes -> Small | O21: Medium | U21: =List_Facility_Sizes -> Small | V21: Medium
B22: =Equipment_Type -> Multipara monitor | C22: 1 | D22: 0 | E22: 0 | G22: 0 | H22: 0 | I22: 0 | K22: =EquipNumber(K$21,NumberBedTypes_All_Range,$C22,$D22,$E22,$F22,$G22,H22) -> 5 | L22: =EquipNumber(L$21,NumberBedTypes_All_Range,$C22,$D22,$E22,$F22,$G22,I22) -> 10 | M22: =EquipNumber(M$21,NumberBedTypes_All_Range,$C22,$D22,$E22,$F22,$G22,J22) -> 0 | U22: =IF(N22="",K22,N22) -> 5 | V22: =IF(O22="",L22,O22) -> 10 | W22: =IF(P22="",M22,P22) -> 0
B23: Phototherapy Unit | C23: 0.6 | D23: 0.5 | E23: 0 | G23: 0 | H23: 0 | I23: 0 | K23: =EquipNumber(K$21,NumberBedTypes_All_Range,$C23,$D23,$E23,$F23,$G23,H23) -> 6 | L23: =EquipNumber(L$21,NumberBedTypes_All_Range,$C23,$D23,$E23,$F23,$G23,I23) -> 11 | M23: =EquipNumber(M$21,NumberBedTypes_All_Range,$C23,$D23,$E23,$F23,$G23,J23) -> 0 | U23: 6 | V23: 11 | W23: 0
B24: Radiant Warmer | C24: 0.5 | D24: 0 | E24: 0 | G24: 0 | H24: 1 | I24: 1 | K24: =EquipNumber(K$21,NumberBedTypes_All_Range,$C24,$D24,$E24,$F24,$G24,H24) -> 4 | L24: =EquipNumber(L$21,NumberBedTypes_All_Range,$C24,$D24,$E24,$F24,$G24,I24) -> 6 | M24: =EquipNumber(M$21,NumberBedTypes_All_Range,$C24,$D24,$E24,$F24,$G24,J24) -> 0 | U24: 4 | V24: 6 | W24: 0
B25: CPAP | C25: 0.5 | D25: 0 | E25: 0 | G25: 0 | H25: 0 | I25: 0 | K25: =EquipNumber(K$21,NumberBedTypes_All_Range,$C25,$D25,$E25,$F25,$G25,H25) -> 3 | L25: =EquipNumber(L$21,NumberBedTypes_All_Range,$C25,$D25,$E25,$F25,$G25,I25) -> 5 | M25: =EquipNumber(M$21,NumberBedTypes_All_Range,$C25,$D25,$E25,$F25,$G25,J25) -> 0 | U25: 3 | V25: 5 | W25: 0
B26: Pulse Oximeter | C26: 0.6 | D26: 0.5 | E26: 0.25 | G26: 1 | H26: 2 | I26: 4 | K26: =EquipNumber(K$21,NumberBedTypes_All_Range,$C26,$D26,$E26,$F26,$G26,H26) -> 10 | L26: =EquipNumber(L$21,NumberBedTypes_All_Range,$C26,$D26,$E26,$F26,$G26,I26) -> 18 | M26: =EquipNumber(M$21,NumberBedTypes_All_Range,$C26,$D26,$E26,$F26,$G26,J26) -> 0 | U26: 10 | V26: 18 | W26: 0
B27: Portable X-Ray | C27: 0 | D27: 0 | E27: 0 | G27: 0 | H27: 0.2 | I27: 0.2 | K27: =EquipNumber(K$21,NumberBedTypes_All_Range,$C27,$D27,$E27,$F27,$G27,H27) -> 1 | L27: =EquipNumber(L$21,NumberBedTypes_All_Range,$C27,$D27,$E27,$F27,$G27,I27) -> 1 | M27: =EquipNumber(M$21,NumberBedTypes_All_Range,$C27,$D27,$E27,$F27,$G27,J27) -> 0 | N27: 0.2 | O27: 0.2 | U27: 0.2 | V27: 0.2 | W27: 0
B28: Other devices to be defined and costed | C28: 0 | D28: 0 | E28: 0 | G28: 0 | H28: 0 | I28: 0 | K28: =EquipNumber(K$21,NumberBedTypes_All_Range,$C28,$D28,$E28,$F28,$G28,H28) -> 0 | L28: =EquipNumber(L$21,NumberBedTypes_All_Range,$C28,$D28,$E28,$F28,$G28,I28) -> 0 | M28: =EquipNumber(M$21,NumberBedTypes_All_Range,$C28,$D28,$E28,$F28,$G28,J28) -> 0 | N28: 1 | O28: 1.6 | U28: 1 | V28: 1.6 | W28: 0
B29: 0 | K29: =EquipNumber(K$21,NumberBedTypes_All_Range,$C29,$D29,$E29,$F29,$G29,H29) -> 0 | L29: =EquipNumber(L$21,NumberBedTypes_All_Range,$C29,$D29,$E29,$F29,$G29,I29) -> 0 | M29: =EquipNumber(M$21,NumberBedTypes_All_Range,$C29,$D29,$E29,$F29,$G29,J29) -> 0 | U29: 0 | V29: 0 | W29: 0
B30: 0 | K30: =EquipNumber(K$21,NumberBedTypes_All_Range,$C30,$D30,$E30,$F30,$G30,H30) -> 0 | L30: =EquipNumber(L$21,NumberBedTypes_All_Range,$C30,$D30,$E30,$F30,$G30,I30) -> 0 | M30: =EquipNumber(M$21,NumberBedTypes_All_Range,$C30,$D30,$E30,$F30,$G30,J30) -> 0 | U30: 0 | V30: 0 | W30: 0
B31: 0 | K31: =EquipNumber(K$21,NumberBedTypes_All_Range,$C31,$D31,$E31,$F31,$G31,H31) -> 0 | L31: =EquipNumber(L$21,NumberBedTypes_All_Range,$C31,$D31,$E31,$F31,$G31,I31) -> 0 | M31: =EquipNumber(M$21,NumberBedTypes_All_Range,$C31,$D31,$E31,$F31,$G31,J31) -> 0 | U31: 0 | V31: 0 | W31: 0
B32: 0 | K32: =EquipNumber(K$21,NumberBedTypes_All_Range,$C32,$D32,$E32,$F32,$G32,H32) -> 0 | L32: =EquipNumber(L$21,NumberBedTypes_All_Range,$C32,$D32,$E32,$F32,$G32,I32) -> 0 | M32: =EquipNumber(M$21,NumberBedTypes_All_Range,$C32,$D32,$E32,$F32,$G32,J32) -> 0 | U32: 0 | V32: 0 | W32: 0
B33: 0 | K33: =EquipNumber(K$21,NumberBedTypes_All_Range,$C33,$D33,$E33,$F33,$G33,H33) -> 0 | L33: =EquipNumber(L$21,NumberBedTypes_All_Range,$C33,$D33,$E33,$F33,$G33,I33) -> 0 | M33: =EquipNumber(M$21,NumberBedTypes_All_Range,$C33,$D33,$E33,$F33,$G33,J33) -> 0 | U33: 0 | V33: 0 | W33: 0
B34: 0 | K34: =EquipNumber(K$21,NumberBedTypes_All_Range,$C34,$D34,$E34,$F34,$G34,H34) -> 0 | L34: =EquipNumber(L$21,NumberBedTypes_All_Range,$C34,$D34,$E34,$F34,$G34,I34) -> 0 | M34: =EquipNumber(M$21,NumberBedTypes_All_Range,$C34,$D34,$E34,$F34,$G34,J34) -> 0 | U34: 0 | V34: 0 | W34: 0
B35: 0 | K35: =EquipNumber(K$21,NumberBedTypes_All_Range,$C35,$D35,$E35,$F35,$G35,H35) -> 0 | L35: =EquipNumber(L$21,NumberBedTypes_All_Range,$C35,$D35,$E35,$F35,$G35,I35) -> 0 | M35: =EquipNumber(M$21,NumberBedTypes_All_Range,$C35,$D35,$E35,$F35,$G35,J35) -> 0 | U35: 0 | V35: 0 | W35: 0
B36: 0 | K36: =EquipNumber(K$21,NumberBedTypes_All_Range,$C36,$D36,$E36,$F36,$G36,H36) -> 0 | L36: =EquipNumber(L$21,NumberBedTypes_All_Range,$C36,$D36,$E36,$F36,$G36,I36) -> 0 | M36: =EquipNumber(M$21,NumberBedTypes_All_Range,$C36,$D36,$E36,$F36,$G36,J36) -> 0 | U36: 0 | V36: 0 | W36: 0
B37: 0 | K37: =EquipNumber(K$21,NumberBedTypes_All_Range,$C37,$D37,$E37,$F37,$G37,H37) -> 0 | L37: =EquipNumber(L$21,NumberBedTypes_All_Range,$C37,$D37,$E37,$F37,$G37,I37) -> 0 | M37: =EquipNumber(M$21,NumberBedTypes_All_Range,$C37,$D37,$E37,$F37,$G37,J37) -> 0 | U37: 0 | V37: 0 | W37: 0
B38: 0 | K38: =EquipNumber(K$21,NumberBedTypes_All_Range,$C38,$D38,$E38,$F38,$G38,H38) -> 0 | L38: =EquipNumber(L$21,NumberBedTypes_All_Range,$C38,$D38,$E38,$F38,$G38,I38) -> 0 | M38: =EquipNumber(M$21,NumberBedTypes_All_Range,$C38,$D38,$E38,$F38,$G38,J38) -> 0 | U38: 0 | V38: 0 | W38: 0
B39: 0 | K39: =EquipNumber(K$21,NumberBedTypes_All_Range,$C39,$D39,$E39,$F39,$G39,H39) -> 0 | L39: =EquipNumber(L$21,NumberBedTypes_All_Range,$C39,$D39,$E39,$F39,$G39,I39) -> 0 | M39: =EquipNumber(M$21,NumberBedTypes_All_Range,$C39,$D39,$E39,$F39,$G39,J39) -> 0 | U39: 0 | V39: 0 | W39: 0
B40: 0 | K40: =EquipNumber(K$21,NumberBedTypes_All_Range,$C40,$D40,$E40,$F40,$G40,H40) -> 0 | L40: =EquipNumber(L$21,NumberBedTypes_All_Range,$C40,$D40,$E40,$F40,$G40,I40) -> 0 | M40: =EquipNumber(M$21,NumberBedTypes_All_Range,$C40,$D40,$E40,$F40,$G40,J40) -> 0 | U40: 0 | V40: 0 | W40: 0
B41: 0 | K41: =EquipNumber(K$21,NumberBedTypes_All_Range,$C41,$D41,$E41,$F41,$G41,H41) -> 0 | L41: =EquipNumber(L$21,NumberBedTypes_All_Range,$C41,$D41,$E41,$F41,$G41,I41) -> 0 | M41: =EquipNumber(M$21,NumberBedTypes_All_Range,$C41,$D41,$E41,$F41,$G41,J41) -> 0 | U41: 0 | V41: 0 | W41: 0
B42: 0 | K42: =EquipNumber(K$21,NumberBedTypes_All_Range,$C42,$D42,$E42,$F42,$G42,H42) -> 0 | L42: =EquipNumber(L$21,NumberBedTypes_All_Range,$C42,$D42,$E42,$F42,$G42,I42) -> 0 | M42: =EquipNumber(M$21,NumberBedTypes_All_Range,$C42,$D42,$E42,$F42,$G42,J42) -> 0 | U42: 0 | V42: 0 | W42: 0
B43: 0 | K43: =EquipNumber(K$21,NumberBedTypes_All_Range,$C43,$D43,$E43,$F43,$G43,H43) -> 0 | L43: =EquipNumber(L$21,NumberBedTypes_All_Range,$C43,$D43,$E43,$F43,$G43,I43) -> 0 | M43: =EquipNumber(M$21,NumberBedTypes_All_Range,$C43,$D43,$E43,$F43,$G43,J43) -> 0 | U43: 0 | V43: 0 | W43: 0
B44: 0 | K44: =EquipNumber(K$21,NumberBedTypes_All_Range,$C44,$D44,$E44,$F44,$G44,H44) -> 0 | L44: =EquipNumber(L$21,NumberBedTypes_All_Range,$C44,$D44,$E44,$F44,$G44,I44) -> 0 | M44: =EquipNumber(M$21,NumberBedTypes_All_Range,$C44,$D44,$E44,$F44,$G44,J44) -> 0 | U44: 0 | V44: 0 | W44: 0
B45: 0 | K45: =EquipNumber(K$21,NumberBedTypes_All_Range,$C45,$D45,$E45,$F45,$G45,H45) -> 0 | L45: =EquipNumber(L$21,NumberBedTypes_All_Range,$C45,$D45,$E45,$F45,$G45,I45) -> 0 | M45: =EquipNumber(M$21,NumberBedTypes_All_Range,$C45,$D45,$E45,$F45,$G45,J45) -> 0 | U45: 0 | V45: 0 | W45: 0
B46: 0 | K46: =EquipNumber(K$21,NumberBedTypes_All_Range,$C46,$D46,$E46,$F46,$G46,H46) -> 0 | L46: =EquipNumber(L$21,NumberBedTypes_All_Range,$C46,$D46,$E46,$F46,$G46,I46) -> 0 | M46: =EquipNumber(M$21,NumberBedTypes_All_Range,$C46,$D46,$E46,$F46,$G46,J46) -> 0 | U46: 0 | V46: 0 | W46: 0
B47: 0 | K47: =EquipNumber(K$21,NumberBedTypes_All_Range,$C47,$D47,$E47,$F47,$G47,H47) -> 0 | L47: =EquipNumber(L$21,NumberBedTypes_All_Range,$C47,$D47,$E47,$F47,$G47,I47) -> 0 | M47: =EquipNumber(M$21,NumberBedTypes_All_Range,$C47,$D47,$E47,$F47,$G47,J47) -> 0 | U47: 0 | V47: 0 | W47: 0
B48: 0 | K48: =EquipNumber(K$21,NumberBedTypes_All_Range,$C48,$D48,$E48,$F48,$G48,H48) -> 0 | L48: =EquipNumber(L$21,NumberBedTypes_All_Range,$C48,$D48,$E48,$F48,$G48,I48) -> 0 | M48: =EquipNumber(M$21,NumberBedTypes_All_Range,$C48,$D48,$E48,$F48,$G48,J48) -> 0 | U48: 0 | V48: 0 | W48: 0
B49: 0 | K49: =EquipNumber(K$21,NumberBedTypes_All_Range,$C49,$D49,$E49,$F49,$G49,H49) -> 0 | L49: =EquipNumber(L$21,NumberBedTypes_All_Range,$C49,$D49,$E49,$F49,$G49,I49) -> 0 | M49: =EquipNumber(M$21,NumberBedTypes_All_Range,$C49,$D49,$E49,$F49,$G49,J49) -> 0 | U49: 0 | V49: 0 | W49: 0
B50: 0 | K50: =EquipNumber(K$21,NumberBedTypes_All_Range,$C50,$D50,$E50,$F50,$G50,H50) -> 0 | L50: =EquipNumber(L$21,NumberBedTypes_All_Range,$C50,$D50,$E50,$F50,$G50,I50) -> 0 | M50: =EquipNumber(M$21,NumberBedTypes_All_Range,$C50,$D50,$E50,$F50,$G50,J50) -> 0 | U50: 0 | V50: 0 | W50: 0
B51: 0 | K51: =EquipNumber(K$21,NumberBedTypes_All_Range,$C51,$D51,$E51,$F51,$G51,H51) -> 0 | L51: =EquipNumber(L$21,NumberBedTypes_All_Range,$C51,$D51,$E51,$F51,$G51,I51) -> 0 | M51: =EquipNumber(M$21,NumberBedTypes_All_Range,$C51,$D51,$E51,$F51,$G51,J51) -> 0 | U51: 0 | V51: 0 | W51: 0
B52: 0 | K52: =EquipNumber(K$21,NumberBedTypes_All_Range,$C52,$D52,$E52,$F52,$G52,H52) -> 0 | L52: =EquipNumber(L$21,NumberBedTypes_All_Range,$C52,$D52,$E52,$F52,$G52,I52) -> 0 | M52: =EquipNumber(M$21,NumberBedTypes_All_Range,$C52,$D52,$E52,$F52,$G52,J52) -> 0 | U52: 0 | V52: 0 | W52: 0
B53: 0 | K53: =EquipNumber(K$21,NumberBedTypes_All_Range,$C53,$D53,$E53,$F53,$G53,H53) -> 0 | L53: =EquipNumber(L$21,NumberBedTypes_All_Range,$C53,$D53,$E53,$F53,$G53,I53) -> 0 | M53: =EquipNumber(M$21,NumberBedTypes_All_Range,$C53,$D53,$E53,$F53,$G53,J53) -> 0 | U53: 0 | V53: 0 | W53: 0
B54: 0 | K54: =EquipNumber(K$21,NumberBedTypes_All_Range,$C54,$D54,$E54,$F54,$G54,H54) -> 0 | L54: =EquipNumber(L$21,NumberBedTypes_All_Range,$C54,$D54,$E54,$F54,$G54,I54) -> 0 | M54: =EquipNumber(M$21,NumberBedTypes_All_Range,$C54,$D54,$E54,$F54,$G54,J54) -> 0 | U54: =IF(N54="",K54,N54) -> 0 | V54: =IF(O54="",L54,O54) -> 0 | W54: =IF(P54="",M54,P54) -> 0
B55: 0 | K55: =EquipNumber(K$21,NumberBedTypes_All_Range,$C55,$D55,$E55,$F55,$G55,H55) -> 0 | L55: =EquipNumber(L$21,NumberBedTypes_All_Range,$C55,$D55,$E55,$F55,$G55,I55) -> 0 | M55: =EquipNumber(M$21,NumberBedTypes_All_Range,$C55,$D55,$E55,$F55,$G55,J55) -> 0 | U55: 0 | V55: 0 | W55: 0
B56: 0 | K56: =EquipNumber(K$21,NumberBedTypes_All_Range,$C56,$D56,$E56,$F56,$G56,H56) -> 0 | L56: =EquipNumber(L$21,NumberBedTypes_All_Range,$C56,$D56,$E56,$F56,$G56,I56) -> 0 | M56: =EquipNumber(M$21,NumberBedTypes_All_Range,$C56,$D56,$E56,$F56,$G56,J56) -> 0 | U56: 0 | V56: 0 | W56: 0
B57: 0 | K57: =EquipNumber(K$21,NumberBedTypes_All_Range,$C57,$D57,$E57,$F57,$G57,H57) -> 0 | L57: =EquipNumber(L$21,NumberBedTypes_All_Range,$C57,$D57,$E57,$F57,$G57,I57) -> 0 | M57: =EquipNumber(M$21,NumberBedTypes_All_Range,$C57,$D57,$E57,$F57,$G57,J57) -> 0 | U57: 0 | V57: 0 | W57: 0
B58: 0 | K58: =EquipNumber(K$21,NumberBedTypes_All_Range,$C58,$D58,$E58,$F58,$G58,H58) -> 0 | L58: =EquipNumber(L$21,NumberBedTypes_All_Range,$C58,$D58,$E58,$F58,$G58,I58) -> 0 | M58: =EquipNumber(M$21,NumberBedTypes_All_Range,$C58,$D58,$E58,$F58,$G58,J58) -> 0 | U58: 0 | V58: 0 | W58: 0
B59: 0 | K59: =EquipNumber(K$21,NumberBedTypes_All_Range,$C59,$D59,$E59,$F59,$G59,H59) -> 0 | L59: =EquipNumber(L$21,NumberBedTypes_All_Range,$C59,$D59,$E59,$F59,$G59,I59) -> 0 | M59: =EquipNumber(M$21,NumberBedTypes_All_Range,$C59,$D59,$E59,$F59,$G59,J59) -> 0 | U59: 0 | V59: 0 | W59: 0
B60: 0 | K60: =EquipNumber(K$21,NumberBedTypes_All_Range,$C60,$D60,$E60,$F60,$G60,H60) -> 0 | L60: =EquipNumber(L$21,NumberBedTypes_All_Range,$C60,$D60,$E60,$F60,$G60,I60) -> 0 | M60: =EquipNumber(M$21,NumberBedTypes_All_Range,$C60,$D60,$E60,$F60,$G60,J60) -> 0 | U60: 0 | V60: 0 | W60: 0
B61: 0 | K61: =EquipNumber(K$21,NumberBedTypes_All_Range,$C61,$D61,$E61,$F61,$G61,H61) -> 0 | L61: =EquipNumber(L$21,NumberBedTypes_All_Range,$C61,$D61,$E61,$F61,$G61,I61) -> 0 | M61: =EquipNumber(M$21,NumberBedTypes_All_Range,$C61,$D61,$E61,$F61,$G61,J61) -> 0 | U61: 0 | V61: 0 | W61: 0
B62: 0 | K62: =EquipNumber(K$21,NumberBedTypes_All_Range,$C62,$D62,$E62,$F62,$G62,H62) -> 0 | L62: =EquipNumber(L$21,NumberBedTypes_All_Range,$C62,$D62,$E62,$F62,$G62,I62) -> 0 | M62: =EquipNumber(M$21,NumberBedTypes_All_Range,$C62,$D62,$E62,$F62,$G62,J62) -> 0 | U62: 0 | V62: 0 | W62: 0
B63: 0 | K63: =EquipNumber(K$21,NumberBedTypes_All_Range,$C63,$D63,$E63,$F63,$G63,H63) -> 0 | L63: =EquipNumber(L$21,NumberBedTypes_All_Range,$C63,$D63,$E63,$F63,$G63,I63) -> 0 | M63: =EquipNumber(M$21,NumberBedTypes_All_Range,$C63,$D63,$E63,$F63,$G63,J63) -> 0 | U63: 0 | V63: 0 | W63: 0
B64: 0 | K64: =EquipNumber(K$21,NumberBedTypes_All_Range,$C64,$D64,$E64,$F64,$G64,H64) -> 0 | L64: =EquipNumber(L$21,NumberBedTypes_All_Range,$C64,$D64,$E64,$F64,$G64,I64) -> 0 | M64: =EquipNumber(M$21,NumberBedTypes_All_Range,$C64,$D64,$E64,$F64,$G64,J64) -> 0 | U64: 0 | V64: 0 | W64: 0
B65: 0 | K65: =EquipNumber(K$21,NumberBedTypes_All_Range,$C65,$D65,$E65,$F65,$G65,H65) -> 0 | L65: =EquipNumber(L$21,NumberBedTypes_All_Range,$C65,$D65,$E65,$F65,$G65,I65) -> 0 | M65: =EquipNumber(M$21,NumberBedTypes_All_Range,$C65,$D65,$E65,$F65,$G65,J65) -> 0 | U65: 0 | V65: 0 | W65: 0
B66: 0 | K66: =EquipNumber(K$21,NumberBedTypes_All_Range,$C66,$D66,$E66,$F66,$G66,H66) -> 0 | L66: =EquipNumber(L$21,NumberBedTypes_All_Range,$C66,$D66,$E66,$F66,$G66,I66) -> 0 | M66: =EquipNumber(M$21,NumberBedTypes_All_Range,$C66,$D66,$E66,$F66,$G66,J66) -> 0 | U66: 0 | V66: 0 | W66: 0
B67: 0 | K67: =EquipNumber(K$21,NumberBedTypes_All_Range,$C67,$D67,$E67,$F67,$G67,H67) -> 0 | L67: =EquipNumber(L$21,NumberBedTypes_All_Range,$C67,$D67,$E67,$F67,$G67,I67) -> 0 | M67: =EquipNumber(M$21,NumberBedTypes_All_Range,$C67,$D67,$E67,$F67,$G67,J67) -> 0 | U67: 0 | V67: 0 | W67: 0
B68: 0 | K68: =EquipNumber(K$21,NumberBedTypes_All_Range,$C68,$D68,$E68,$F68,$G68,H68) -> 0 | L68: =EquipNumber(L$21,NumberBedTypes_All_Range,$C68,$D68,$E68,$F68,$G68,I68) -> 0 | M68: =EquipNumber(M$21,NumberBedTypes_All_Range,$C68,$D68,$E68,$F68,$G68,J68) -> 0 | U68: 0 | V68: 0 | W68: 0
B69: 0 | K69: =EquipNumber(K$21,NumberBedTypes_All_Range,$C69,$D69,$E69,$F69,$G69,H69) -> 0 | L69: =EquipNumber(L$21,NumberBedTypes_All_Range,$C69,$D69,$E69,$F69,$G69,I69) -> 0 | M69: =EquipNumber(M$21,NumberBedTypes_All_Range,$C69,$D69,$E69,$F69,$G69,J69) -> 0 | U69: 0 | V69: 0 | W69: 0
B70: 0 | K70: =EquipNumber(K$21,NumberBedTypes_All_Range,$C70,$D70,$E70,$F70,$G70,H70) -> 0 | L70: =EquipNumber(L$21,NumberBedTypes_All_Range,$C70,$D70,$E70,$F70,$G70,I70) -> 0 | M70: =EquipNumber(M$21,NumberBedTypes_All_Range,$C70,$D70,$E70,$F70,$G70,J70) -> 0 | U70: 0 | V70: 0 | W70: 0
B71: 0 | K71: =EquipNumber(K$21,NumberBedTypes_All_Range,$C71,$D71,$E71,$F71,$G71,H71) -> 0 | L71: =EquipNumber(L$21,NumberBedTypes_All_Range,$C71,$D71,$E71,$F71,$G71,I71) -> 0 | M71: =EquipNumber(M$21,NumberBedTypes_All_Range,$C71,$D71,$E71,$F71,$G71,J71) -> 0 | U71: 0 | V71: 0 | W71: 0
B72: 0 | K72: =EquipNumber(K$21,NumberBedTypes_All_Range,$C72,$D72,$E72,$F72,$G72,H72) -> 0 | L72: =EquipNumber(L$21,NumberBedTypes_All_Range,$C72,$D72,$E72,$F72,$G72,I72) -> 0 | M72: =EquipNumber(M$21,NumberBedTypes_All_Range,$C72,$D72,$E72,$F72,$G72,J72) -> 0 | U72: 0 | V72: 0 | W72: 0
B73: 0 | K73: =EquipNumber(K$21,NumberBedTypes_All_Range,$C73,$D73,$E73,$F73,$G73,H73) -> 0 | L73: =EquipNumber(L$21,NumberBedTypes_All_Range,$C73,$D73,$E73,$F73,$G73,I73) -> 0 | M73: =EquipNumber(M$21,NumberBedTypes_All_Range,$C73,$D73,$E73,$F73,$G73,J73) -> 0 | U73: 0 | V73: 0 | W73: 0
B74: 0 | K74: =EquipNumber(K$21,NumberBedTypes_All_Range,$C74,$D74,$E74,$F74,$G74,H74) -> 0 | L74: =EquipNumber(L$21,NumberBedTypes_All_Range,$C74,$D74,$E74,$F74,$G74,I74) -> 0 | M74: =EquipNumber(M$21,NumberBedTypes_All_Range,$C74,$D74,$E74,$F74,$G74,J74) -> 0 | U74: 0 | V74: 0 | W74: 0
B75: 0 | K75: =EquipNumber(K$21,NumberBedTypes_All_Range,$C75,$D75,$E75,$F75,$G75,H75) -> 0 | L75: =EquipNumber(L$21,NumberBedTypes_All_Range,$C75,$D75,$E75,$F75,$G75,I75) -> 0 | M75: =EquipNumber(M$21,NumberBedTypes_All_Range,$C75,$D75,$E75,$F75,$G75,J75) -> 0 | U75: 0 | V75: 0 | W75: 0
B76: 0 | K76: =EquipNumber(K$21,NumberBedTypes_All_Range,$C76,$D76,$E76,$F76,$G76,H76) -> 0 | L76: =EquipNumber(L$21,NumberBedTypes_All_Range,$C76,$D76,$E76,$F76,$G76,I76) -> 0 | M76: =EquipNumber(M$21,NumberBedTypes_All_Range,$C76,$D76,$E76,$F76,$G76,J76) -> 0 | U76: 0 | V76: 0 | W76: 0
B77: 0 | K77: =EquipNumber(K$21,NumberBedTypes_All_Range,$C77,$D77,$E77,$F77,$G77,H77) -> 0 | L77: =EquipNumber(L$21,NumberBedTypes_All_Range,$C77,$D77,$E77,$F77,$G77,I77) -> 0 | M77: =EquipNumber(M$21,NumberBedTypes_All_Range,$C77,$D77,$E77,$F77,$G77,J77) -> 0 | U77: 0 | V77: 0 | W77: 0
B78: 0 | K78: =EquipNumber(K$21,NumberBedTypes_All_Range,$C78,$D78,$E78,$F78,$G78,H78) -> 0 | L78: =EquipNumber(L$21,NumberBedTypes_All_Range,$C78,$D78,$E78,$F78,$G78,I78) -> 0 | M78: =EquipNumber(M$21,NumberBedTypes_All_Range,$C78,$D78,$E78,$F78,$G78,J78) -> 0 | U78: 0 | V78: 0 | W78: 0
B79: 0 | K79: =EquipNumber(K$21,NumberBedTypes_All_Range,$C79,$D79,$E79,$F79,$G79,H79) -> 0 | L79: =EquipNumber(L$21,NumberBedTypes_All_Range,$C79,$D79,$E79,$F79,$G79,I79) -> 0 | M79: =EquipNumber(M$21,NumberBedTypes_All_Range,$C79,$D79,$E79,$F79,$G79,J79) -> 0 | U79: 0 | V79: 0 | W79: 0
B80: 0 | K80: =EquipNumber(K$21,NumberBedTypes_All_Range,$C80,$D80,$E80,$F80,$G80,H80) -> 0 | L80: =EquipNumber(L$21,NumberBedTypes_All_Range,$C80,$D80,$E80,$F80,$G80,I80) -> 0 | M80: =EquipNumber(M$21,NumberBedTypes_All_Range,$C80,$D80,$E80,$F80,$G80,J80) -> 0 | U80: 0 | V80: 0 | W80: 0
B81: 0 | K81: =EquipNumber(K$21,NumberBedTypes_All_Range,$C81,$D81,$E81,$F81,$G81,H81) -> 0 | L81: =EquipNumber(L$21,NumberBedTypes_All_Range,$C81,$D81,$E81,$F81,$G81,I81) -> 0 | M81: =EquipNumber(M$21,NumberBedTypes_All_Range,$C81,$D81,$E81,$F81,$G81,J81) -> 0 | U81: 0 | V81: 0 | W81: 0
B82: 0 | K82: =EquipNumber(K$21,NumberBedTypes_All_Range,$C82,$D82,$E82,$F82,$G82,H82) -> 0 | L82: =EquipNumber(L$21,NumberBedTypes_All_Range,$C82,$D82,$E82,$F82,$G82,I82) -> 0 | M82: =EquipNumber(M$21,NumberBedTypes_All_Range,$C82,$D82,$E82,$F82,$G82,J82) -> 0 | U82: 0 | V82: 0 | W82: 0
B83: 0 | K83: =EquipNumber(K$21,NumberBedTypes_All_Range,$C83,$D83,$E83,$F83,$G83,H83) -> 0 | L83: =EquipNumber(L$21,NumberBedTypes_All_Range,$C83,$D83,$E83,$F83,$G83,I83) -> 0 | M83: =EquipNumber(M$21,NumberBedTypes_All_Range,$C83,$D83,$E83,$F83,$G83,J83) -> 0 | U83: 0 | V83: 0 | W83: 0
B84: 0 | K84: =EquipNumber(K$21,NumberBedTypes_All_Range,$C84,$D84,$E84,$F84,$G84,H84) -> 0 | L84: =EquipNumber(L$21,NumberBedTypes_All_Range,$C84,$D84,$E84,$F84,$G84,I84) -> 0 | M84: =EquipNumber(M$21,NumberBedTypes_All_Range,$C84,$D84,$E84,$F84,$G84,J84) -> 0 | U84: 0 | V84: 0 | W84: 0
B85: 0 | K85: =EquipNumber(K$21,NumberBedTypes_All_Range,$C85,$D85,$E85,$F85,$G85,H85) -> 0 | L85: =EquipNumber(L$21,NumberBedTypes_All_Range,$C85,$D85,$E85,$F85,$G85,I85) -> 0 | M85: =EquipNumber(M$21,NumberBedTypes_All_Range,$C85,$D85,$E85,$F85,$G85,J85) -> 0 | U85: 0 | V85: 0 | W85: 0
B86: 0 | K86: =EquipNumber(K$21,NumberBedTypes_All_Range,$C86,$D86,$E86,$F86,$G86,H86) -> 0 | L86: =EquipNumber(L$21,NumberBedTypes_All_Range,$C86,$D86,$E86,$F86,$G86,I86) -> 0 | M86: =EquipNumber(M$21,NumberBedTypes_All_Range,$C86,$D86,$E86,$F86,$G86,J86) -> 0 | U86: =IF(N86="",K86,N86) -> 0 | V86: =IF(O86="",L86,O86) -> 0 | W86: =IF(P86="",M86,P86) -> 0
B87: 0 | K87: =EquipNumber(K$21,NumberBedTypes_All_Range,$C87,$D87,$E87,$F87,$G87,H87) -> 0 | L87: =EquipNumber(L$21,NumberBedTypes_All_Range,$C87,$D87,$E87,$F87,$G87,I87) -> 0 | M87: =EquipNumber(M$21,NumberBedTypes_All_Range,$C87,$D87,$E87,$F87,$G87,J87) -> 0 | U87: 0 | V87: 0 | W87: 0
B88: 0 | K88: =EquipNumber(K$21,NumberBedTypes_All_Range,$C88,$D88,$E88,$F88,$G88,H88) -> 0 | L88: =EquipNumber(L$21,NumberBedTypes_All_Range,$C88,$D88,$E88,$F88,$G88,I88) -> 0 | M88: =EquipNumber(M$21,NumberBedTypes_All_Range,$C88,$D88,$E88,$F88,$G88,J88) -> 0 | U88: 0 | V88: 0 | W88: 0
B89: 0 | K89: =EquipNumber(K$21,NumberBedTypes_All_Range,$C89,$D89,$E89,$F89,$G89,H89) -> 0 | L89: =EquipNumber(L$21,NumberBedTypes_All_Range,$C89,$D89,$E89,$F89,$G89,I89) -> 0 | M89: =EquipNumber(M$21,NumberBedTypes_All_Range,$C89,$D89,$E89,$F89,$G89,J89) -> 0 | U89: 0 | V89: 0 | W89: 0
B90: 0 | K90: =EquipNumber(K$21,NumberBedTypes_All_Range,$C90,$D90,$E90,$F90,$G90,H90) -> 0 | L90: =EquipNumber(L$21,NumberBedTypes_All_Range,$C90,$D90,$E90,$F90,$G90,I90) -> 0 | M90: =EquipNumber(M$21,NumberBedTypes_All_Range,$C90,$D90,$E90,$F90,$G90,J90) -> 0 | U90: 0 | V90: 0 | W90: 0
B91: 0 | K91: =EquipNumber(K$21,NumberBedTypes_All_Range,$C91,$D91,$E91,$F91,$G91,H91) -> 0 | L91: =EquipNumber(L$21,NumberBedTypes_All_Range,$C91,$D91,$E91,$F91,$G91,I91) -> 0 | M91: =EquipNumber(M$21,NumberBedTypes_All_Range,$C91,$D91,$E91,$F91,$G91,J91) -> 0 | U91: 0 | V91: 0 | W91: 0
B92: 0 | K92: =EquipNumber(K$21,NumberBedTypes_All_Range,$C92,$D92,$E92,$F92,$G92,H92) -> 0 | L92: =EquipNumber(L$21,NumberBedTypes_All_Range,$C92,$D92,$E92,$F92,$G92,I92) -> 0 | M92: =EquipNumber(M$21,NumberBedTypes_All_Range,$C92,$D92,$E92,$F92,$G92,J92) -> 0 | U92: 0 | V92: 0 | W92: 0
B93: 0 | K93: =EquipNumber(K$21,NumberBedTypes_All_Range,$C93,$D93,$E93,$F93,$G93,H93) -> 0 | L93: =EquipNumber(L$21,NumberBedTypes_All_Range,$C93,$D93,$E93,$F93,$G93,I93) -> 0 | M93: =EquipNumber(M$21,NumberBedTypes_All_Range,$C93,$D93,$E93,$F93,$G93,J93) -> 0 | U93: 0 | V93: 0 | W93: 0
B94: 0 | K94: =EquipNumber(K$21,NumberBedTypes_All_Range,$C94,$D94,$E94,$F94,$G94,H94) -> 0 | L94: =EquipNumber(L$21,NumberBedTypes_All_Range,$C94,$D94,$E94,$F94,$G94,I94) -> 0 | M94: =EquipNumber(M$21,NumberBedTypes_All_Range,$C94,$D94,$E94,$F94,$G94,J94) -> 0 | U94: 0 | V94: 0 | W94: 0
B95: 0 | K95: =EquipNumber(K$21,NumberBedTypes_All_Range,$C95,$D95,$E95,$F95,$G95,H95) -> 0 | L95: =EquipNumber(L$21,NumberBedTypes_All_Range,$C95,$D95,$E95,$F95,$G95,I95) -> 0 | M95: =EquipNumber(M$21,NumberBedTypes_All_Range,$C95,$D95,$E95,$F95,$G95,J95) -> 0 | U95: 0 | V95: 0 | W95: 0
B96: 0 | K96: =EquipNumber(K$21,NumberBedTypes_All_Range,$C96,$D96,$E96,$F96,$G96,H96) -> 0 | L96: =EquipNumber(L$21,NumberBedTypes_All_Range,$C96,$D96,$E96,$F96,$G96,I96) -> 0 | M96: =EquipNumber(M$21,NumberBedTypes_All_Range,$C96,$D96,$E96,$F96,$G96,J96) -> 0 | U96: 0 | V96: 0 | W96: 0
B97: 0 | K97: =EquipNumber(K$21,NumberBedTypes_All_Range,$C97,$D97,$E97,$F97,$G97,H97) -> 0 | L97: =EquipNumber(L$21,NumberBedTypes_All_Range,$C97,$D97,$E97,$F97,$G97,I97) -> 0 | M97: =EquipNumber(M$21,NumberBedTypes_All_Range,$C97,$D97,$E97,$F97,$G97,J97) -> 0 | U97: 0 | V97: 0 | W97: 0
B98: 0 | K98: =EquipNumber(K$21,NumberBedTypes_All_Range,$C98,$D98,$E98,$F98,$G98,H98) -> 0 | L98: =EquipNumber(L$21,NumberBedTypes_All_Range,$C98,$D98,$E98,$F98,$G98,I98) -> 0 | M98: =EquipNumber(M$21,NumberBedTypes_All_Range,$C98,$D98,$E98,$F98,$G98,J98) -> 0 | U98: 0 | V98: 0 | W98: 0
B99: 0 | K99: =EquipNumber(K$21,NumberBedTypes_All_Range,$C99,$D99,$E99,$F99,$G99,H99) -> 0 | L99: =EquipNumber(L$21,NumberBedTypes_All_Range,$C99,$D99,$E99,$F99,$G99,I99) -> 0 | M99: =EquipNumber(M$21,NumberBedTypes_All_Range,$C99,$D99,$E99,$F99,$G99,J99) -> 0 | U99: 0 | V99: 0 | W99: 0
B100: 0 | K100: =EquipNumber(K$21,NumberBedTypes_All_Range,$C100,$D100,$E100,$F100,$G100,H100) -> 0 | L100: =EquipNumber(L$21,NumberBedTypes_All_Range,$C100,$D100,$E100,$F100,$G100,I100) -> 0 | M100: =EquipNumber(M$21,NumberBedTypes_All_Range,$C100,$D100,$E100,$F100,$G100,J100) -> 0 | U100: 0 | V100: 0 | W100: 0
B101: 0 | K101: =EquipNumber(K$21,NumberBedTypes_All_Range,$C101,$D101,$E101,$F101,$G101,H101) -> 0 | L101: =EquipNumber(L$21,NumberBedTypes_All_Range,$C101,$D101,$E101,$F101,$G101,I101) -> 0 | M101: =EquipNumber(M$21,NumberBedTypes_All_Range,$C101,$D101,$E101,$F101,$G101,J101) -> 0 | U101: 0 | V101: 0 | W101: 0
B102: 0 | K102: =EquipNumber(K$21,NumberBedTypes_All_Range,$C102,$D102,$E102,$F102,$G102,H102) -> 0 | L102: =EquipNumber(L$21,NumberBedTypes_All_Range,$C102,$D102,$E102,$F102,$G102,I102) -> 0 | M102: =EquipNumber(M$21,NumberBedTypes_All_Range,$C102,$D102,$E102,$F102,$G102,J102) -> 0 | U102: 0 | V102: 0 | W102: 0
B103: 0 | K103: =EquipNumber(K$21,NumberBedTypes_All_Range,$C103,$D103,$E103,$F103,$G103,H103) -> 0 | L103: =EquipNumber(L$21,NumberBedTypes_All_Range,$C103,$D103,$E103,$F103,$G103,I103) -> 0 | M103: =EquipNumber(M$21,NumberBedTypes_All_Range,$C103,$D103,$E103,$F103,$G103,J103) -> 0 | U103: 0 | V103: 0 | W103: 0
B104: 0 | K104: =EquipNumber(K$21,NumberBedTypes_All_Range,$C104,$D104,$E104,$F104,$G104,H104) -> 0 | L104: =EquipNumber(L$21,NumberBedTypes_All_Range,$C104,$D104,$E104,$F104,$G104,I104) -> 0 | M104: =EquipNumber(M$21,NumberBedTypes_All_Range,$C104,$D104,$E104,$F104,$G104,J104) -> 0 | U104: 0 | V104: 0 | W104: 0
B105: 0 | K105: =EquipNumber(K$21,NumberBedTypes_All_Range,$C105,$D105,$E105,$F105,$G105,H105) -> 0 | L105: =EquipNumber(L$21,NumberBedTypes_All_Range,$C105,$D105,$E105,$F105,$G105,I105) -> 0 | M105: =EquipNumber(M$21,NumberBedTypes_All_Range,$C105,$D105,$E105,$F105,$G105,J105) -> 0 | U105: 0 | V105: 0 | W105: 0
B106: 0 | K106: =EquipNumber(K$21,NumberBedTypes_All_Range,$C106,$D106,$E106,$F106,$G106,H106) -> 0 | L106: =EquipNumber(L$21,NumberBedTypes_All_Range,$C106,$D106,$E106,$F106,$G106,I106) -> 0 | M106: =EquipNumber(M$21,NumberBedTypes_All_Range,$C106,$D106,$E106,$F106,$G106,J106) -> 0 | U106: 0 | V106: 0 | W106: 0
B107: 0 | K107: =EquipNumber(K$21,NumberBedTypes_All_Range,$C107,$D107,$E107,$F107,$G107,H107) -> 0 | L107: =EquipNumber(L$21,NumberBedTypes_All_Range,$C107,$D107,$E107,$F107,$G107,I107) -> 0 | M107: =EquipNumber(M$21,NumberBedTypes_All_Range,$C107,$D107,$E107,$F107,$G107,J107) -> 0 | U107: 0 | V107: 0 | W107: 0
B108: 0 | K108: =EquipNumber(K$21,NumberBedTypes_All_Range,$C108,$D108,$E108,$F108,$G108,H108) -> 0 | L108: =EquipNumber(L$21,NumberBedTypes_All_Range,$C108,$D108,$E108,$F108,$G108,I108) -> 0 | M108: =EquipNumber(M$21,NumberBedTypes_All_Range,$C108,$D108,$E108,$F108,$G108,J108) -> 0 | U108: 0 | V108: 0 | W108: 0
B109: 0 | K109: =EquipNumber(K$21,NumberBedTypes_All_Range,$C109,$D109,$E109,$F109,$G109,H109) -> 0 | L109: =EquipNumber(L$21,NumberBedTypes_All_Range,$C109,$D109,$E109,$F109,$G109,I109) -> 0 | M109: =EquipNumber(M$21,NumberBedTypes_All_Range,$C109,$D109,$E109,$F109,$G109,J109) -> 0 | U109: 0 | V109: 0 | W109: 0
B110: 0 | K110: =EquipNumber(K$21,NumberBedTypes_All_Range,$C110,$D110,$E110,$F110,$G110,H110) -> 0 | L110: =EquipNumber(L$21,NumberBedTypes_All_Range,$C110,$D110,$E110,$F110,$G110,I110) -> 0 | M110: =EquipNumber(M$21,NumberBedTypes_All_Range,$C110,$D110,$E110,$F110,$G110,J110) -> 0 | U110: 0 | V110: 0 | W110: 0
B111: 0 | K111: =EquipNumber(K$21,NumberBedTypes_All_Range,$C111,$D111,$E111,$F111,$G111,H111) -> 0 | L111: =EquipNumber(L$21,NumberBedTypes_All_Range,$C111,$D111,$E111,$F111,$G111,I111) -> 0 | M111: =EquipNumber(M$21,NumberBedTypes_All_Range,$C111,$D111,$E111,$F111,$G111,J111) -> 0 | U111: 0 | V111: 0 | W111: 0
B112: 0 | K112: =EquipNumber(K$21,NumberBedTypes_All_Range,$C112,$D112,$E112,$F112,$G112,H112) -> 0 | L112: =EquipNumber(L$21,NumberBedTypes_All_Range,$C112,$D112,$E112,$F112,$G112,I112) -> 0 | M112: =EquipNumber(M$21,NumberBedTypes_All_Range,$C112,$D112,$E112,$F112,$G112,J112) -> 0 | U112: 0 | V112: 0 | W112: 0
B113: 0 | K113: =EquipNumber(K$21,NumberBedTypes_All_Range,$C113,$D113,$E113,$F113,$G113,H113) -> 0 | L113: =EquipNumber(L$21,NumberBedTypes_All_Range,$C113,$D113,$E113,$F113,$G113,I113) -> 0 | M113: =EquipNumber(M$21,NumberBedTypes_All_Range,$C113,$D113,$E113,$F113,$G113,J113) -> 0 | U113: 0 | V113: 0 | W113: 0
B114: 0 | K114: =EquipNumber(K$21,NumberBedTypes_All_Range,$C114,$D114,$E114,$F114,$G114,H114) -> 0 | L114: =EquipNumber(L$21,NumberBedTypes_All_Range,$C114,$D114,$E114,$F114,$G114,I114) -> 0 | M114: =EquipNumber(M$21,NumberBedTypes_All_Range,$C114,$D114,$E114,$F114,$G114,J114) -> 0 | U114: 0 | V114: 0 | W114: 0
B115: 0 | K115: =EquipNumber(K$21,NumberBedTypes_All_Range,$C115,$D115,$E115,$F115,$G115,H115) -> 0 | L115: =EquipNumber(L$21,NumberBedTypes_All_Range,$C115,$D115,$E115,$F115,$G115,I115) -> 0 | M115: =EquipNumber(M$21,NumberBedTypes_All_Range,$C115,$D115,$E115,$F115,$G115,J115) -> 0 | U115: 0 | V115: 0 | W115: 0
B116: 0 | K116: =EquipNumber(K$21,NumberBedTypes_All_Range,$C116,$D116,$E116,$F116,$G116,H116) -> 0 | L116: =EquipNumber(L$21,NumberBedTypes_All_Range,$C116,$D116,$E116,$F116,$G116,I116) -> 0 | M116: =EquipNumber(M$21,NumberBedTypes_All_Range,$C116,$D116,$E116,$F116,$G116,J116) -> 0 | U116: 0 | V116: 0 | W116: 0
B117: 0 | K117: =EquipNumber(K$21,NumberBedTypes_All_Range,$C117,$D117,$E117,$F117,$G117,H117) -> 0 | L117: =EquipNumber(L$21,NumberBedTypes_All_Range,$C117,$D117,$E117,$F117,$G117,I117) -> 0 | M117: =EquipNumber(M$21,NumberBedTypes_All_Range,$C117,$D117,$E117,$F117,$G117,J117) -> 0 | U117: 0 | V117: 0 | W117: 0
B118: 0 | K118: =EquipNumber(K$21,NumberBedTypes_All_Range,$C118,$D118,$E118,$F118,$G118,H118) -> 0 | L118: =EquipNumber(L$21,NumberBedTypes_All_Range,$C118,$D118,$E118,$F118,$G118,I118) -> 0 | M118: =EquipNumber(M$21,NumberBedTypes_All_Range,$C118,$D118,$E118,$F118,$G118,J118) -> 0 | U118: =IF(N118="",K118,N118) -> 0 | V118: =IF(O118="",L118,O118) -> 0 | W118: =IF(P118="",M118,P118) -> 0
B119: 0 | K119: =EquipNumber(K$21,NumberBedTypes_All_Range,$C119,$D119,$E119,$F119,$G119,H119) -> 0 | L119: =EquipNumber(L$21,NumberBedTypes_All_Range,$C119,$D119,$E119,$F119,$G119,I119) -> 0 | M119: =EquipNumber(M$21,NumberBedTypes_All_Range,$C119,$D119,$E119,$F119,$G119,J119) -> 0 | U119: 0 | V119: 0 | W119: 0
B120: 0 | K120: =EquipNumber(K$21,NumberBedTypes_All_Range,$C120,$D120,$E120,$F120,$G120,H120) -> 0 | L120: =EquipNumber(L$21,NumberBedTypes_All_Range,$C120,$D120,$E120,$F120,$G120,I120) -> 0 | M120: =EquipNumber(M$21,NumberBedTypes_All_Range,$C120,$D120,$E120,$F120,$G120,J120) -> 0 | U120: 0 | V120: 0 | W120: 0
B121: 0 | K121: =EquipNumber(K$21,NumberBedTypes_All_Range,$C121,$D121,$E121,$F121,$G121,H121) -> 0 | L121: =EquipNumber(L$21,NumberBedTypes_All_Range,$C121,$D121,$E121,$F121,$G121,I121) -> 0 | M121: =EquipNumber(M$21,NumberBedTypes_All_Range,$C121,$D121,$E121,$F121,$G121,J121) -> 0 | U121: 0 | V121: 0 | W121: 0
B122: 0 | K122: =EquipNumber(K$21,NumberBedTypes_All_Range,$C122,$D122,$E122,$F122,$G122,H122) -> 0 | L122: =EquipNumber(L$21,NumberBedTypes_All_Range,$C122,$D122,$E122,$F122,$G122,I122) -> 0 | M122: =EquipNumber(M$21,NumberBedTypes_All_Range,$C122,$D122,$E122,$F122,$G122,J122) -> 0 | U122: 0 | V122: 0 | W122: 0
B123: 0 | K123: =EquipNumber(K$21,NumberBedTypes_All_Range,$C123,$D123,$E123,$F123,$G123,H123) -> 0 | L123: =EquipNumber(L$21,NumberBedTypes_All_Range,$C123,$D123,$E123,$F123,$G123,I123) -> 0 | M123: =EquipNumber(M$21,NumberBedTypes_All_Range,$C123,$D123,$E123,$F123,$G123,J123) -> 0 | U123: 0 | V123: 0 | W123: 0
B124: 0 | K124: =EquipNumber(K$21,NumberBedTypes_All_Range,$C124,$D124,$E124,$F124,$G124,H124) -> 0 | L124: =EquipNumber(L$21,NumberBedTypes_All_Range,$C124,$D124,$E124,$F124,$G124,I124) -> 0 | M124: =EquipNumber(M$21,NumberBedTypes_All_Range,$C124,$D124,$E124,$F124,$G124,J124) -> 0 | U124: 0 | V124: 0 | W124: 0
B125: 0 | K125: =EquipNumber(K$21,NumberBedTypes_All_Range,$C125,$D125,$E125,$F125,$G125,H125) -> 0 | L125: =EquipNumber(L$21,NumberBedTypes_All_Range,$C125,$D125,$E125,$F125,$G125,I125) -> 0 | M125: =EquipNumber(M$21,NumberBedTypes_All_Range,$C125,$D125,$E125,$F125,$G125,J125) -> 0 | U125: 0 | V125: 0 | W125: 0
B126: 0 | K126: =EquipNumber(K$21,NumberBedTypes_All_Range,$C126,$D126,$E126,$F126,$G126,H126) -> 0 | L126: =EquipNumber(L$21,NumberBedTypes_All_Range,$C126,$D126,$E126,$F126,$G126,I126) -> 0 | M126: =EquipNumber(M$21,NumberBedTypes_All_Range,$C126,$D126,$E126,$F126,$G126,J126) -> 0 | U126: 0 | V126: 0 | W126: 0
B127: 0 | K127: =EquipNumber(K$21,NumberBedTypes_All_Range,$C127,$D127,$E127,$F127,$G127,H127) -> 0 | L127: =EquipNumber(L$21,NumberBedTypes_All_Range,$C127,$D127,$E127,$F127,$G127,I127) -> 0 | M127: =EquipNumber(M$21,NumberBedTypes_All_Range,$C127,$D127,$E127,$F127,$G127,J127) -> 0 | U127: 0 | V127: 0 | W127: 0
B128: 0 | K128: =EquipNumber(K$21,NumberBedTypes_All_Range,$C128,$D128,$E128,$F128,$G128,H128) -> 0 | L128: =EquipNumber(L$21,NumberBedTypes_All_Range,$C128,$D128,$E128,$F128,$G128,I128) -> 0 | M128: =EquipNumber(M$21,NumberBedTypes_All_Range,$C128,$D128,$E128,$F128,$G128,J128) -> 0 | U128: 0 | V128: 0 | W128: 0
B129: 0 | K129: =EquipNumber(K$21,NumberBedTypes_All_Range,$C129,$D129,$E129,$F129,$G129,H129) -> 0 | L129: =EquipNumber(L$21,NumberBedTypes_All_Range,$C129,$D129,$E129,$F129,$G129,I129) -> 0 | M129: =EquipNumber(M$21,NumberBedTypes_All_Range,$C129,$D129,$E129,$F129,$G129,J129) -> 0 | U129: 0 | V129: 0 | W129: 0
B130: 0 | K130: =EquipNumber(K$21,NumberBedTypes_All_Range,$C130,$D130,$E130,$F130,$G130,H130) -> 0 | L130: =EquipNumber(L$21,NumberBedTypes_All_Range,$C130,$D130,$E130,$F130,$G130,I130) -> 0 | M130: =EquipNumber(M$21,NumberBedTypes_All_Range,$C130,$D130,$E130,$F130,$G130,J130) -> 0 | U130: 0 | V130: 0 | W130: 0
B131: 0 | K131: =EquipNumber(K$21,NumberBedTypes_All_Range,$C131,$D131,$E131,$F131,$G131,H131) -> 0 | L131: =EquipNumber(L$21,NumberBedTypes_All_Range,$C131,$D131,$E131,$F131,$G131,I131) -> 0 | M131: =EquipNumber(M$21,NumberBedTypes_All_Range,$C131,$D131,$E131,$F131,$G131,J131) -> 0 | U131: 0 | V131: 0 | W131: 0

Sheet 4.Equip_Other_Plan&Budget
B2: EQUIPMENT & COMMODITIES (2)- PLANNING & BUDGETING
B3: WARNING: Do not copy and paste data into this workbook. Doing so may insert conflicting code and remove validation. Please enter data manually to ensure proper functionality
B4: MODULE OVERVIEW
B5: Review facility equipment cost calculations for each facility size typology, including:
B6: * Total facility equipment cost & devices accounting for the largest cost share
B7: This review step will help users understand what drives facility equipment costs
B8: Consider, estimate and review other equipment related costs
B9: *Equipment acquisition DOES NOT account for the vast majority of all equipment related costs.
B10: * Equipment related costs to be considered and included in these calculations are:
B11: ** Transport and distribution to facilities as well as installation
B12: ** Annual costs of consumables, medical supplies and renewables
B13: ** One-Off buffer stocks required as part of maintenance strategies
B14: ** Annual cost of spare parts required as part of maintenance strategies
B15: ** Other preventive and corrective maintenance strategies
B16: Consider, estimate and review costs of fully furnishing a facility and providing adequate office & communications equipment, including equipment required to support other components such as referrals & data systems
B17: Estimate needs of new equipment and furniture by equipment typology
B18: Estimate annual costs of medicines and supplies not included elsewhere
B19: Light blue cells are user inputs.
B20: Yellow cells are tool calculations not to be manually changed
B21: If required, cells in dark blue can be used for overriding modelled estimates
B23: STEP 1. REVIEW TOTAL FACILITY EQUIPMENT COSTS AND IDENTIFY THE TYPE OF EQUIPMENT ACCOUNTING FOR THE LARGEST SHARE OF COSTS
B24: To examine key costing drivers information on the required number of items and unit prices is also included in this table. Devices accounting for the largest share of costs are highlighted.
B25: Note that calculations will be 0 if that facility typology was not costed or the equipment was not included.
C27: Facility Equipment Costs ($) | F27: Facility Equipment Costs as % of total | I27: Facility Equipment Numbers (as calculated in worksheet "3.Equipment_Numbers") | L27: Unit price ($) from 1.General Inputs
B28: ='3.Equip_Standards_Plan&Budget'!B20 -> Equipment Name | C28: =List_Facility_Sizes -> Small | D28: Medium | F28: =List_Facility_Sizes -> Small | G28: Medium | I28: =List_Facility_Sizes -> Small | J28: Medium
B29: =Equipment_Type -> Multipara monitor | C29: =IF(Number_Beds_Small=0,0,I29*$L29) -> 3500 | D29: =IF(Number_Beds_Medium=0,0,J29*$L29) -> 7000 | E29: =IF(Number_Beds_Large=0,0,K29*$L29) -> 0 | F29: =IF(C29=0,0,C29/C$139) -> 0.04334365325 | G29: =IF(D29=0,0,D29/D$139) -> 0.05450864351 | H29: =IF(E29=0,0,E29/E$139) -> 0 | I29: =IF(B29=0,0,INDEX(Equipment_Units_Small,MATCH(B29,Equipment_Type,0))) -> 5 | J29: =IF(B29=0,0,INDEX(Equipment_Units_Med,MATCH(B29,Equipment_Type,0))) -> 10 | K29: =IF(B29=0,0,INDEX(Equipment_Units_Large,MATCH(B29,Equipment_Type,0))) -> 0 | L29: =IF(B29=0,0,INDEX('1.General_Inputs_Plan&Budget'!$C$118:$C$227,MATCH('4.Equip_Other_Plan&Budget'!B29,Equipment_Type,0))) -> 700
B30: Phototherapy Unit | C30: 2400 | D30: 4400 | E30: 0 | F30: 0.02972136223 | G30: 0.03426257592 | H30: 0 | I30: 6 | J30: 11 | K30: 0 | L30: =IF(B30=0,0,INDEX('1.General_Inputs_Plan&Budget'!$C$118:$C$227,MATCH('4.Equip_Other_Plan&Budget'!B30,Equipment_Type,0))) -> 400
B31: Radiant Warmer | C31: 8000 | D31: 12000 | E31: 0 | F31: 0.09907120743 | G31: 0.09344338888 | H31: 0 | I31: 4 | J31: 6 | K31: 0 | L31: =IF(B31=0,0,INDEX('1.General_Inputs_Plan&Budget'!$C$118:$C$227,MATCH('4.Equip_Other_Plan&Budget'!B31,Equipment_Type,0))) -> 2000
B32: CPAP | C32: 3900 | D32: 6500 | E32: 0 | F32: 0.04829721362 | G32: 0.05061516898 | H32: 0 | I32: 3 | J32: 5 | K32: 0 | L32: =IF(B32=0,0,INDEX('1.General_Inputs_Plan&Budget'!$C$118:$C$227,MATCH('4.Equip_Other_Plan&Budget'!B32,Equipment_Type,0))) -> 1300
B33: Pulse Oximeter | C33: 1000 | D33: 1800 | E33: 0 | F33: 0.01238390093 | G33: 0.01401650833 | H33: 0 | I33: 10 | J33: 18 | K33: 0 | L33: =IF(B33=0,0,INDEX('1.General_Inputs_Plan&Budget'!$C$118:$C$227,MATCH('4.Equip_Other_Plan&Budget'!B33,Equipment_Type,0))) -> 100
B34: Portable X-Ray | C34: 4000 | D34: 4000 | E34: 0 | F34: 0.04953560372 | G34: 0.03114779629 | H34: 0 | I34: 0.2 | J34: 0.2 | K34: 0 | L34: =IF(B34=0,0,INDEX('1.General_Inputs_Plan&Budget'!$C$118:$C$227,MATCH('4.Equip_Other_Plan&Budget'!B34,Equipment_Type,0))) -> 20000
B35: Other devices to be defined and costed | C35: 57950 | D35: 92720 | E35: 0 | F35: 0.7176470588 | G35: 0.7220059181 | H35: 0 | I35: 1 | J35: 1.6 | K35: 0 | L35: =IF(B35=0,0,INDEX('1.General_Inputs_Plan&Budget'!$C$118:$C$227,MATCH('4.Equip_Other_Plan&Budget'!B35,Equipment_Type,0))) -> 57950
B36: 0 | C36: 0 | D36: 0 | E36: 0 | F36: 0 | G36: 0 | H36: 0 | I36: 0 | J36: 0 | K36: 0 | L36: =IF(B36=0,0,INDEX('1.General_Inputs_Plan&Budget'!$C$118:$C$227,MATCH('4.Equip_Other_Plan&Budget'!B36,Equipment_Type,0))) -> 0
B37: 0 | C37: 0 | D37: 0 | E37: 0 | F37: 0 | G37: 0 | H37: 0 | I37: 0 | J37: 0 | K37: 0 | L37: =IF(B37=0,0,INDEX('1.General_Inputs_Plan&Budget'!$C$118:$C$227,MATCH('4.Equip_Other_Plan&Budget'!B37,Equipment_Type,0))) -> 0
B38: 0 | C38: 0 | D38: 0 | E38: 0 | F38: 0 | G38: 0 | H38: 0 | I38: 0 | J38: 0 | K38: 0 | L38: =IF(B38=0,0,INDEX('1.General_Inputs_Plan&Budget'!$C$118:$C$227,MATCH('4.Equip_Other_Plan&Budget'!B38,Equipment_Type,0))) -> 0
B39: 0 | C39: 0 | D39: 0 | E39: 0 | F39: 0 | G39: 0 | H39: 0 | I39: 0 | J39: 0 | K39: 0 | L39: =IF(B39=0,0,INDEX('1.General_Inputs_Plan&Budget'!$C$118:$C$227,MATCH('4.Equip_Other_Plan&Budget'!B39,Equipment_Type,0))) -> 0
B40: 0 | C40: 0 | D40: 0 | E40: 0 | F40: 0 | G40: 0 | H40: 0 | I40: 0 | J40: 0 | K40: 0 | L40: =IF(B40=0,0,INDEX('1.General_Inputs_Plan&Budget'!$C$118:$C$227,MATCH('4.Equip_Other_Plan&Budget'!B40,Equipment_Type,0))) -> 0
B41: 0 | C41: 0 | D41: 0 | E41: 0 | F41: 0 | G41: 0 | H41: 0 | I41: 0 | J41: 0 | K41: 0 | L41: =IF(B41=0,0,INDEX('1.General_Inputs_Plan&Budget'!$C$118:$C$227,MATCH('4.Equip_Other_Plan&Budget'!B41,Equipment_Type,0))) -> 0
B42: 0 | C42: 0 | D42: 0 | E42: 0 | F42: 0 | G42: 0 | H42: 0 | I42: 0 | J42: 0 | K42: 0 | L42: =IF(B42=0,0,INDEX('1.General_Inputs_Plan&Budget'!$C$118:$C$227,MATCH('4.Equip_Other_Plan&Budget'!B42,Equipment_Type,0))) -> 0
B43: 0 | C43: 0 | D43: 0 | E43: 0 | F43: 0 | G43: 0 | H43: 0 | I43: 0 | J43: 0 | K43: 0 | L43: =IF(B43=0,0,INDEX('1.General_Inputs_Plan&Budget'!$C$118:$C$227,MATCH('4.Equip_Other_Plan&Budget'!B43,Equipment_Type,0))) -> 0
B44: 0 | C44: 0 | D44: 0 | E44: 0 | F44: 0 | G44: 0 | H44: 0 | I44: 0 | J44: 0 | K44: 0 | L44: =IF(B44=0,0,INDEX('1.General_Inputs_Plan&Budget'!$C$118:$C$227,MATCH('4.Equip_Other_Plan&Budget'!B44,Equipment_Type,0))) -> 0
B45: 0 | C45: 0 | D45: 0 | E45: 0 | F45: 0 | G45: 0 | H45: 0 | I45: 0 | J45: 0 | K45: 0 | L45: =IF(B45=0,0,INDEX('1.General_Inputs_Plan&Budget'!$C$118:$C$227,MATCH('4.Equip_Other_Plan&Budget'!B45,Equipment_Type,0))) -> 0
B46: 0 | C46: 0 | D46: 0 | E46: 0 | F46: 0 | G46: 0 | H46: 0 | I46: 0 | J46: 0 | K46: 0 | L46: =IF(B46=0,0,INDEX('1.General_Inputs_Plan&Budget'!$C$118:$C$227,MATCH('4.Equip_Other_Plan&Budget'!B46,Equipment_Type,0))) -> 0
B47: 0 | C47: 0 | D47: 0 | E47: 0 | F47: 0 | G47: 0 | H47: 0 | I47: 0 | J47: 0 | K47: 0 | L47: =IF(B47=0,0,INDEX('1.General_Inputs_Plan&Budget'!$C$118:$C$227,MATCH('4.Equip_Other_Plan&Budget'!B47,Equipment_Type,0))) -> 0
B48: 0 | C48: 0 | D48: 0 | E48: 0 | F48: 0 | G48: 0 | H48: 0 | I48: 0 | J48: 0 | K48: 0 | L48: =IF(B48=0,0,INDEX('1.General_Inputs_Plan&Budget'!$C$118:$C$227,MATCH('4.Equip_Other_Plan&Budget'!B48,Equipment_Type,0))) -> 0
B49: 0 | C49: 0 | D49: 0 | E49: 0 | F49: 0 | G49: 0 | H49: 0 | I49: 0 | J49: 0 | K49: 0 | L49: =IF(B49=0,0,INDEX('1.General_Inputs_Plan&Budget'!$C$118:$C$227,MATCH('4.Equip_Other_Plan&Budget'!B49,Equipment_Type,0))) -> 0
B50: 0 | C50: 0 | D50: 0 | E50: 0 | F50: 0 | G50: 0 | H50: 0 | I50: 0 | J50: 0 | K50: 0 | L50: =IF(B50=0,0,INDEX('1.General_Inputs_Plan&Budget'!$C$118:$C$227,MATCH('4.Equip_Other_Plan&Budget'!B50,Equipment_Type,0))) -> 0
B51: 0 | C51: 0 | D51: 0 | E51: 0 | F51: 0 | G51: 0 | H51: 0 | I51: 0 | J51: 0 | K51: 0 | L51: =IF(B51=0,0,INDEX('1.General_Inputs_Plan&Budget'!$C$118:$C$227,MATCH('4.Equip_Other_Plan&Budget'!B51,Equipment_Type,0))) -> 0
B52: 0 | C52: 0 | D52: 0 | E52: 0 | F52: 0 | G52: 0 | H52: 0 | I52: 0 | J52: 0 | K52: 0 | L52: =IF(B52=0,0,INDEX('1.General_Inputs_Plan&Budget'!$C$118:$C$227,MATCH('4.Equip_Other_Plan&Budget'!B52,Equipment_Type,0))) -> 0
B53: 0 | C53: 0 | D53: 0 | E53: 0 | F53: 0 | G53: 0 | H53: 0 | I53: 0 | J53: 0 | K53: 0 | L53: =IF(B53=0,0,INDEX('1.General_Inputs_Plan&Budget'!$C$118:$C$227,MATCH('4.Equip_Other_Plan&Budget'!B53,Equipment_Type,0))) -> 0
B54: 0 | C54: 0 | D54: 0 | E54: 0 | F54: 0 | G54: 0 | H54: 0 | I54: 0 | J54: 0 | K54: 0 | L54: =IF(B54=0,0,INDEX('1.General_Inputs_Plan&Budget'!$C$118:$C$227,MATCH('4.Equip_Other_Plan&Budget'!B54,Equipment_Type,0))) -> 0
B55: 0 | C55: 0 | D55: 0 | E55: 0 | F55: 0 | G55: 0 | H55: 0 | I55: 0 | J55: 0 | K55: 0 | L55: =IF(B55=0,0,INDEX('1.General_Inputs_Plan&Budget'!$C$118:$C$227,MATCH('4.Equip_Other_Plan&Budget'!B55,Equipment_Type,0))) -> 0
B56: 0 | C56: 0 | D56: 0 | E56: 0 | F56: 0 | G56: 0 | H56: 0 | I56: 0 | J56: 0 | K56: 0 | L56: =IF(B56=0,0,INDEX('1.General_Inputs_Plan&Budget'!$C$118:$C$227,MATCH('4.Equip_Other_Plan&Budget'!B56,Equipment_Type,0))) -> 0
B57: 0 | C57: 0 | D57: 0 | E57: 0 | F57: 0 | G57: 0 | H57: 0 | I57: 0 | J57: 0 | K57: 0 | L57: =IF(B57=0,0,INDEX('1.General_Inputs_Plan&Budget'!$C$118:$C$227,MATCH('4.Equip_Other_Plan&Budget'!B57,Equipment_Type,0))) -> 0
B58: 0 | C58: 0 | D58: 0 | E58: 0 | F58: 0 | G58: 0 | H58: 0 | I58: 0 | J58: 0 | K58: 0 | L58: =IF(B58=0,0,INDEX('1.General_Inputs_Plan&Budget'!$C$118:$C$227,MATCH('4.Equip_Other_Plan&Budget'!B58,Equipment_Type,0))) -> 0
B59: 0 | C59: 0 | D59: 0 | E59: 0 | F59: 0 | G59: 0 | H59: 0 | I59: 0 | J59: 0 | K59: 0 | L59: =IF(B59=0,0,INDEX('1.General_Inputs_Plan&Budget'!$C$118:$C$227,MATCH('4.Equip_Other_Plan&Budget'!B59,Equipment_Type,0))) -> 0
B60: 0 | C60: 0 | D60: 0 | E60: 0 | F60: 0 | G60: 0 | H60: 0 | I60: 0 | J60: 0 | K60: 0 | L60: =IF(B60=0,0,INDEX('1.General_Inputs_Plan&Budget'!$C$118:$C$227,MATCH('4.Equip_Other_Plan&Budget'!B60,Equipment_Type,0))) -> 0
B61: 0 | C61: =IF(Number_Beds_Small=0,0,I61*$L61) -> 0 | D61: =IF(Number_Beds_Medium=0,0,J61*$L61) -> 0 | E61: =IF(Number_Beds_Large=0,0,K61*$L61) -> 0 | F61: =IF(C61=0,0,C61/C$139) -> 0 | G61: =IF(D61=0,0,D61/D$139) -> 0 | H61: =IF(E61=0,0,E61/E$139) -> 0 | I61: =IF(B61=0,0,INDEX(Equipment_Units_Small,MATCH(B61,Equipment_Type,0))) -> 0 | J61: =IF(B61=0,0,INDEX(Equipment_Units_Med,MATCH(B61,Equipment_Type,0))) -> 0 | K61: =IF(B61=0,0,INDEX(Equipment_Units_Large,MATCH(B61,Equipment_Type,0))) -> 0 | L61: =IF(B61=0,0,INDEX('1.General_Inputs_Plan&Budget'!$C$118:$C$227,MATCH('4.Equip_Other_Plan&Budget'!B61,Equipment_Type,0))) -> 0
B62: 0 | C62: 0 | D62: 0 | E62: 0 | F62: 0 | G62: 0 | H62: 0 | I62: 0 | J62: 0 | K62: 0 | L62: =IF(B62=0,0,INDEX('1.General_Inputs_Plan&Budget'!$C$118:$C$227,MATCH('4.Equip_Other_Plan&Budget'!B62,Equipment_Type,0))) -> 0
B63: 0 | C63: 0 | D63: 0 | E63: 0 | F63: 0 | G63: 0 | H63: 0 | I63: 0 | J63: 0 | K63: 0 | L63: =IF(B63=0,0,INDEX('1.General_Inputs_Plan&Budget'!$C$118:$C$227,MATCH('4.Equip_Other_Plan&Budget'!B63,Equipment_Type,0))) -> 0
B64: 0 | C64: 0 | D64: 0 | E64: 0 | F64: 0 | G64: 0 | H64: 0 | I64: 0 | J64: 0 | K64: 0 | L64: =IF(B64=0,0,INDEX('1.General_Inputs_Plan&Budget'!$C$118:$C$227,MATCH('4.Equip_Other_Plan&Budget'!B64,Equipment_Type,0))) -> 0
B65: 0 | C65: 0 | D65: 0 | E65: 0 | F65: 0 | G65: 0 | H65: 0 | I65: 0 | J65: 0 | K65: 0 | L65: =IF(B65=0,0,INDEX('1.General_Inputs_Plan&Budget'!$C$118:$C$227,MATCH('4.Equip_Other_Plan&Budget'!B65,Equipment_Type,0))) -> 0
B66: 0 | C66: 0 | D66: 0 | E66: 0 | F66: 0 | G66: 0 | H66: 0 | I66: 0 | J66: 0 | K66: 0 | L66: =IF(B66=0,0,INDEX('1.General_Inputs_Plan&Budget'!$C$118:$C$227,MATCH('4.Equip_Other_Plan&Budget'!B66,Equipment_Type,0))) -> 0
B67: 0 | C67: 0 | D67: 0 | E67: 0 | F67: 0 | G67: 0 | H67: 0 | I67: 0 | J67: 0 | K67: 0 | L67: =IF(B67=0,0,INDEX('1.General_Inputs_Plan&Budget'!$C$118:$C$227,MATCH('4.Equip_Other_Plan&Budget'!B67,Equipment_Type,0))) -> 0
B68: 0 | C68: 0 | D68: 0 | E68: 0 | F68: 0 | G68: 0 | H68: 0 | I68: 0 | J68: 0 | K68: 0 | L68: =IF(B68=0,0,INDEX('1.General_Inputs_Plan&Budget'!$C$118:$C$227,MATCH('4.Equip_Other_Plan&Budget'!B68,Equipment_Type,0))) -> 0
B69: 0 | C69: 0 | D69: 0 | E69: 0 | F69: 0 | G69: 0 | H69: 0 | I69: 0 | J69: 0 | K69: 0 | L69: =IF(B69=0,0,INDEX('1.General_Inputs_Plan&Budget'!$C$118:$C$227,MATCH('4.Equip_Other_Plan&Budget'!B69,Equipment_Type,0))) -> 0
B70: 0 | C70: 0 | D70: 0 | E70: 0 | F70: 0 | G70: 0 | H70: 0 | I70: 0 | J70: 0 | K70: 0 | L70: =IF(B70=0,0,INDEX('1.General_Inputs_Plan&Budget'!$C$118:$C$227,MATCH('4.Equip_Other_Plan&Budget'!B70,Equipment_Type,0))) -> 0
B71: 0 | C71: 0 | D71: 0 | E71: 0 | F71: 0 | G71: 0 | H71: 0 | I71: 0 | J71: 0 | K71: 0 | L71: =IF(B71=0,0,INDEX('1.General_Inputs_Plan&Budget'!$C$118:$C$227,MATCH('4.Equip_Other_Plan&Budget'!B71,Equipment_Type,0))) -> 0
B72: 0 | C72: 0 | D72: 0 | E72: 0 | F72: 0 | G72: 0 | H72: 0 | I72: 0 | J72: 0 | K72: 0 | L72: =IF(B72=0,0,INDEX('1.General_Inputs_Plan&Budget'!$C$118:$C$227,MATCH('4.Equip_Other_Plan&Budget'!B72,Equipment_Type,0))) -> 0
B73: 0 | C73: 0 | D73: 0 | E73: 0 | F73: 0 | G73: 0 | H73: 0 | I73: 0 | J73: 0 | K73: 0 | L73: =IF(B73=0,0,INDEX('1.General_Inputs_Plan&Budget'!$C$118:$C$227,MATCH('4.Equip_Other_Plan&Budget'!B73,Equipment_Type,0))) -> 0
B74: 0 | C74: 0 | D74: 0 | E74: 0 | F74: 0 | G74: 0 | H74: 0 | I74: 0 | J74: 0 | K74: 0 | L74: =IF(B74=0,0,INDEX('1.General_Inputs_Plan&Budget'!$C$118:$C$227,MATCH('4.Equip_Other_Plan&Budget'!B74,Equipment_Type,0))) -> 0
B75: 0 | C75: 0 | D75: 0 | E75: 0 | F75: 0 | G75: 0 | H75: 0 | I75: 0 | J75: 0 | K75: 0 | L75: =IF(B75=0,0,INDEX('1.General_Inputs_Plan&Budget'!$C$118:$C$227,MATCH('4.Equip_Other_Plan&Budget'!B75,Equipment_Type,0))) -> 0
B76: 0 | C76: 0 | D76: 0 | E76: 0 | F76: 0 | G76: 0 | H76: 0 | I76: 0 | J76: 0 | K76: 0 | L76: =IF(B76=0,0,INDEX('1.General_Inputs_Plan&Budget'!$C$118:$C$227,MATCH('4.Equip_Other_Plan&Budget'!B76,Equipment_Type,0))) -> 0
B77: 0 | C77: 0 | D77: 0 | E77: 0 | F77: 0 | G77: 0 | H77: 0 | I77: 0 | J77: 0 | K77: 0 | L77: =IF(B77=0,0,INDEX('1.General_Inputs_Plan&Budget'!$C$118:$C$227,MATCH('4.Equip_Other_Plan&Budget'!B77,Equipment_Type,0))) -> 0
B78: 0 | C78: 0 | D78: 0 | E78: 0 | F78: 0 | G78: 0 | H78: 0 | I78: 0 | J78: 0 | K78: 0 | L78: =IF(B78=0,0,INDEX('1.General_Inputs_Plan&Budget'!$C$118:$C$227,MATCH('4.Equip_Other_Plan&Budget'!B78,Equipment_Type,0))) -> 0
B79: 0 | C79: 0 | D79: 0 | E79: 0 | F79: 0 | G79: 0 | H79: 0 | I79: 0 | J79: 0 | K79: 0 | L79: =IF(B79=0,0,INDEX('1.General_Inputs_Plan&Budget'!$C$118:$C$227,MATCH('4.Equip_Other_Plan&Budget'!B79,Equipment_Type,0))) -> 0
B80: 0 | C80: 0 | D80: 0 | E80: 0 | F80: 0 | G80: 0 | H80: 0 | I80: 0 | J80: 0 | K80: 0 | L80: =IF(B80=0,0,INDEX('1.General_Inputs_Plan&Budget'!$C$118:$C$227,MATCH('4.Equip_Other_Plan&Budget'!B80,Equipment_Type,0))) -> 0
B81: 0 | C81: 0 | D81: 0 | E81: 0 | F81: 0 | G81: 0 | H81: 0 | I81: 0 | J81: 0 | K81: 0 | L81: =IF(B81=0,0,INDEX('1.General_Inputs_Plan&Budget'!$C$118:$C$227,MATCH('4.Equip_Other_Plan&Budget'!B81,Equipment_Type,0))) -> 0
B82: 0 | C82: 0 | D82: 0 | E82: 0 | F82: 0 | G82: 0 | H82: 0 | I82: 0 | J82: 0 | K82: 0 | L82: =IF(B82=0,0,INDEX('1.General_Inputs_Plan&Budget'!$C$118:$C$227,MATCH('4.Equip_Other_Plan&Budget'!B82,Equipment_Type,0))) -> 0
B83: 0 | C83: 0 | D83: 0 | E83: 0 | F83: 0 | G83: 0 | H83: 0 | I83: 0 | J83: 0 | K83: 0 | L83: =IF(B83=0,0,INDEX('1.General_Inputs_Plan&Budget'!$C$118:$C$227,MATCH('4.Equip_Other_Plan&Budget'!B83,Equipment_Type,0))) -> 0
B84: 0 | C84: 0 | D84: 0 | E84: 0 | F84: 0 | G84: 0 | H84: 0 | I84: 0 | J84: 0 | K84: 0 | L84: =IF(B84=0,0,INDEX('1.General_Inputs_Plan&Budget'!$C$118:$C$227,MATCH('4.Equip_Other_Plan&Budget'!B84,Equipment_Type,0))) -> 0
B85: 0 | C85: 0 | D85: 0 | E85: 0 | F85: 0 | G85: 0 | H85: 0 | I85: 0 | J85: 0 | K85: 0 | L85: =IF(B85=0,0,INDEX('1.General_Inputs_Plan&Budget'!$C$118:$C$227,MATCH('4.Equip_Other_Plan&Budget'!B85,Equipment_Type,0))) -> 0
B86: 0 | C86: 0 | D86: 0 | E86: 0 | F86: 0 | G86: 0 | H86: 0 | I86: 0 | J86: 0 | K86: 0 | L86: =IF(B86=0,0,INDEX('1.General_Inputs_Plan&Budget'!$C$118:$C$227,MATCH('4.Equip_Other_Plan&Budget'!B86,Equipment_Type,0))) -> 0
B87: 0 | C87: 0 | D87: 0 | E87: 0 | F87: 0 | G87: 0 | H87: 0 | I87: 0 | J87: 0 | K87: 0 | L87: =IF(B87=0,0,INDEX('1.General_Inputs_Plan&Budget'!$C$118:$C$227,MATCH('4.Equip_Other_Plan&Budget'!B87,Equipment_Type,0))) -> 0
B88: 0 | C88: 0 | D88: 0 | E88: 0 | F88: 0 | G88: 0 | H88: 0 | I88: 0 | J88: 0 | K88: 0 | L88: =IF(B88=0,0,INDEX('1.General_Inputs_Plan&Budget'!$C$118:$C$227,MATCH('4.Equip_Other_Plan&Budget'!B88,Equipment_Type,0))) -> 0
B89: 0 | C89: 0 | D89: 0 | E89: 0 | F89: 0 | G89: 0 | H89: 0 | I89: 0 | J89: 0 | K89: 0 | L89: =IF(B89=0,0,INDEX('1.General_Inputs_Plan&Budget'!$C$118:$C$227,MATCH('4.Equip_Other_Plan&Budget'!B89,Equipment_Type,0))) -> 0
B90: 0 | C90: 0 | D90: 0 | E90: 0 | F90: 0 | G90: 0 | H90: 0 | I90: 0 | J90: 0 | K90: 0 | L90: =IF(B90=0,0,INDEX('1.General_Inputs_Plan&Budget'!$C$118:$C$227,MATCH('4.Equip_Other_Plan&Budget'!B90,Equipment_Type,0))) -> 0
B91: 0 | C91: 0 | D91: 0 | E91: 0 | F91: 0 | G91: 0 | H91: 0 | I91: 0 | J91: 0 | K91: 0 | L91: =IF(B91=0,0,INDEX('1.General_Inputs_Plan&Budget'!$C$118:$C$227,MATCH('4.Equip_Other_Plan&Budget'!B91,Equipment_Type,0))) -> 0
B92: 0 | C92: 0 | D92: 0 | E92: 0 | F92: 0 | G92: 0 | H92: 0 | I92: 0 | J92: 0 | K92: 0 | L92: =IF(B92=0,0,INDEX('1.General_Inputs_Plan&Budget'!$C$118:$C$227,MATCH('4.Equip_Other_Plan&Budget'!B92,Equipment_Type,0))) -> 0
B93: 0 | C93: =IF(Number_Beds_Small=0,0,I93*$L93) -> 0 | D93: =IF(Number_Beds_Medium=0,0,J93*$L93) -> 0 | E93: =IF(Number_Beds_Large=0,0,K93*$L93) -> 0 | F93: =IF(C93=0,0,C93/C$139) -> 0 | G93: =IF(D93=0,0,D93/D$139) -> 0 | H93: =IF(E93=0,0,E93/E$139) -> 0 | I93: =IF(B93=0,0,INDEX(Equipment_Units_Small,MATCH(B93,Equipment_Type,0))) -> 0 | J93: =IF(B93=0,0,INDEX(Equipment_Units_Med,MATCH(B93,Equipment_Type,0))) -> 0 | K93: =IF(B93=0,0,INDEX(Equipment_Units_Large,MATCH(B93,Equipment_Type,0))) -> 0 | L93: =IF(B93=0,0,INDEX('1.General_Inputs_Plan&Budget'!$C$118:$C$227,MATCH('4.Equip_Other_Plan&Budget'!B93,Equipment_Type,0))) -> 0
B94: 0 | C94: 0 | D94: 0 | E94: 0 | F94: 0 | G94: 0 | H94: 0 | I94: 0 | J94: 0 | K94: 0 | L94: =IF(B94=0,0,INDEX('1.General_Inputs_Plan&Budget'!$C$118:$C$227,MATCH('4.Equip_Other_Plan&Budget'!B94,Equipment_Type,0))) -> 0
B95: 0 | C95: 0 | D95: 0 | E95: 0 | F95: 0 | G95: 0 | H95: 0 | I95: 0 | J95: 0 | K95: 0 | L95: =IF(B95=0,0,INDEX('1.General_Inputs_Plan&Budget'!$C$118:$C$227,MATCH('4.Equip_Other_Plan&Budget'!B95,Equipment_Type,0))) -> 0
B96: 0 | C96: 0 | D96: 0 | E96: 0 | F96: 0 | G96: 0 | H96: 0 | I96: 0 | J96: 0 | K96: 0 | L96: =IF(B96=0,0,INDEX('1.General_Inputs_Plan&Budget'!$C$118:$C$227,MATCH('4.Equip_Other_Plan&Budget'!B96,Equipment_Type,0))) -> 0
B97: 0 | C97: 0 | D97: 0 | E97: 0 | F97: 0 | G97: 0 | H97: 0 | I97: 0 | J97: 0 | K97: 0 | L97: =IF(B97=0,0,INDEX('1.General_Inputs_Plan&Budget'!$C$118:$C$227,MATCH('4.Equip_Other_Plan&Budget'!B97,Equipment_Type,0))) -> 0
B98: 0 | C98: 0 | D98: 0 | E98: 0 | F98: 0 | G98: 0 | H98: 0 | I98: 0 | J98: 0 | K98: 0 | L98: =IF(B98=0,0,INDEX('1.General_Inputs_Plan&Budget'!$C$118:$C$227,MATCH('4.Equip_Other_Plan&Budget'!B98,Equipment_Type,0))) -> 0
B99: 0 | C99: 0 | D99: 0 | E99: 0 | F99: 0 | G99: 0 | H99: 0 | I99: 0 | J99: 0 | K99: 0 | L99: =IF(B99=0,0,INDEX('1.General_Inputs_Plan&Budget'!$C$118:$C$227,MATCH('4.Equip_Other_Plan&Budget'!B99,Equipment_Type,0))) -> 0
B100: 0 | C100: 0 | D100: 0 | E100: 0 | F100: 0 | G100: 0 | H100: 0 | I100: 0 | J100: 0 | K100: 0 | L100: =IF(B100=0,0,INDEX('1.General_Inputs_Plan&Budget'!$C$118:$C$227,MATCH('4.Equip_Other_Plan&Budget'!B100,Equipment_Type,0))) -> 0
B101: 0 | C101: 0 | D101: 0 | E101: 0 | F101: 0 | G101: 0 | H101: 0 | I101: 0 | J101: 0 | K101: 0 | L101: =IF(B101=0,0,INDEX('1.General_Inputs_Plan&Budget'!$C$118:$C$227,MATCH('4.Equip_Other_Plan&Budget'!B101,Equipment_Type,0))) -> 0
B102: 0 | C102: 0 | D102: 0 | E102: 0 | F102: 0 | G102: 0 | H102: 0 | I102: 0 | J102: 0 | K102: 0 | L102: =IF(B102=0,0,INDEX('1.General_Inputs_Plan&Budget'!$C$118:$C$227,MATCH('4.Equip_Other_Plan&Budget'!B102,Equipment_Type,0))) -> 0
B103: 0 | C103: 0 | D103: 0 | E103: 0 | F103: 0 | G103: 0 | H103: 0 | I103: 0 | J103: 0 | K103: 0 | L103: =IF(B103=0,0,INDEX('1.General_Inputs_Plan&Budget'!$C$118:$C$227,MATCH('4.Equip_Other_Plan&Budget'!B103,Equipment_Type,0))) -> 0
B104: 0 | C104: 0 | D104: 0 | E104: 0 | F104: 0 | G104: 0 | H104: 0 | I104: 0 | J104: 0 | K104: 0 | L104: =IF(B104=0,0,INDEX('1.General_Inputs_Plan&Budget'!$C$118:$C$227,MATCH('4.Equip_Other_Plan&Budget'!B104,Equipment_Type,0))) -> 0
B105: 0 | C105: 0 | D105: 0 | E105: 0 | F105: 0 | G105: 0 | H105: 0 | I105: 0 | J105: 0 | K105: 0 | L105: =IF(B105=0,0,INDEX('1.General_Inputs_Plan&Budget'!$C$118:$C$227,MATCH('4.Equip_Other_Plan&Budget'!B105,Equipment_Type,0))) -> 0
B106: 0 | C106: 0 | D106: 0 | E106: 0 | F106: 0 | G106: 0 | H106: 0 | I106: 0 | J106: 0 | K106: 0 | L106: =IF(B106=0,0,INDEX('1.General_Inputs_Plan&Budget'!$C$118:$C$227,MATCH('4.Equip_Other_Plan&Budget'!B106,Equipment_Type,0))) -> 0
B107: 0 | C107: 0 | D107: 0 | E107: 0 | F107: 0 | G107: 0 | H107: 0 | I107: 0 | J107: 0 | K107: 0 | L107: =IF(B107=0,0,INDEX('1.General_Inputs_Plan&Budget'!$C$118:$C$227,MATCH('4.Equip_Other_Plan&Budget'!B107,Equipment_Type,0))) -> 0
B108: 0 | C108: 0 | D108: 0 | E108: 0 | F108: 0 | G108: 0 | H108: 0 | I108: 0 | J108: 0 | K108: 0 | L108: =IF(B108=0,0,INDEX('1.General_Inputs_Plan&Budget'!$C$118:$C$227,MATCH('4.Equip_Other_Plan&Budget'!B108,Equipment_Type,0))) -> 0
B109: 0 | C109: 0 | D109: 0 | E109: 0 | F109: 0 | G109: 0 | H109: 0 | I109: 0 | J109: 0 | K109: 0 | L109: =IF(B109=0,0,INDEX('1.General_Inputs_Plan&Budget'!$C$118:$C$227,MATCH('4.Equip_Other_Plan&Budget'!B109,Equipment_Type,0))) -> 0
B110: 0 | C110: 0 | D110: 0 | E110: 0 | F110: 0 | G110: 0 | H110: 0 | I110: 0 | J110: 0 | K110: 0 | L110: =IF(B110=0,0,INDEX('1.General_Inputs_Plan&Budget'!$C$118:$C$227,MATCH('4.Equip_Other_Plan&Budget'!B110,Equipment_Type,0))) -> 0
B111: 0 | C111: 0 | D111: 0 | E111: 0 | F111: 0 | G111: 0 | H111: 0 | I111: 0 | J111: 0 | K111: 0 | L111: =IF(B111=0,0,INDEX('1.General_Inputs_Plan&Budget'!$C$118:$C$227,MATCH('4.Equip_Other_Plan&Budget'!B111,Equipment_Type,0))) -> 0
B112: 0 | C112: 0 | D112: 0 | E112: 0 | F112: 0 | G112: 0 | H112: 0 | I112: 0 | J112: 0 | K112: 0 | L112: =IF(B112=0,0,INDEX('1.General_Inputs_Plan&Budget'!$C$118:$C$227,MATCH('4.Equip_Other_Plan&Budget'!B112,Equipment_Type,0))) -> 0
B113: 0 | C113: 0 | D113: 0 | E113: 0 | F113: 0 | G113: 0 | H113: 0 | I113: 0 | J113: 0 | K113: 0 | L113: =IF(B113=0,0,INDEX('1.General_Inputs_Plan&Budget'!$C$118:$C$227,MATCH('4.Equip_Other_Plan&Budget'!B113,Equipment_Type,0))) -> 0
B114: 0 | C114: 0 | D114: 0 | E114: 0 | F114: 0 | G114: 0 | H114: 0 | I114: 0 | J114: 0 | K114: 0 | L114: =IF(B114=0,0,INDEX('1.General_Inputs_Plan&Budget'!$C$118:$C$227,MATCH('4.Equip_Other_Plan&Budget'!B114,Equipment_Type,0))) -> 0
B115: 0 | C115: 0 | D115: 0 | E115: 0 | F115: 0 | G115: 0 | H115: 0 | I115: 0 | J115: 0 | K115: 0 | L115: =IF(B115=0,0,INDEX('1.General_Inputs_Plan&Budget'!$C$118:$C$227,MATCH('4.Equip_Other_Plan&Budget'!B115,Equipment_Type,0))) -> 0
B116: 0 | C116: 0 | D116: 0 | E116: 0 | F116: 0 | G116: 0 | H116: 0 | I116: 0 | J116: 0 | K116: 0 | L116: =IF(B116=0,0,INDEX('1.General_Inputs_Plan&Budget'!$C$118:$C$227,MATCH('4.Equip_Other_Plan&Budget'!B116,Equipment_Type,0))) -> 0
B117: 0 | C117: 0 | D117: 0 | E117: 0 | F117: 0 | G117: 0 | H117: 0 | I117: 0 | J117: 0 | K117: 0 | L117: =IF(B117=0,0,INDEX('1.General_Inputs_Plan&Budget'!$C$118:$C$227,MATCH('4.Equip_Other_Plan&Budget'!B117,Equipment_Type,0))) -> 0
B118: 0 | C118: 0 | D118: 0 | E118: 0 | F118: 0 | G118: 0 | H118: 0 | I118: 0 | J118: 0 | K118: 0 | L118: =IF(B118=0,0,INDEX('1.General_Inputs_Plan&Budget'!$C$118:$C$227,MATCH('4.Equip_Other_Plan&Budget'!B118,Equipment_Type,0))) -> 0
B119: 0 | C119: 0 | D119: 0 | E119: 0 | F119: 0 | G119: 0 | H119: 0 | I119: 0 | J119: 0 | K119: 0 | L119: =IF(B119=0,0,INDEX('1.General_Inputs_Plan&Budget'!$C$118:$C$227,MATCH('4.Equip_Other_Plan&Budget'!B119,Equipment_Type,0))) -> 0
B120: 0 | C120: 0 | D120: 0 | E120: 0 | F120: 0 | G120: 0 | H120: 0 | I120: 0 | J120: 0 | K120: 0 | L120: =IF(B120=0,0,INDEX('1.General_Inputs_Plan&Budget'!$C$118:$C$227,MATCH('4.Equip_Other_Plan&Budget'!B120,Equipment_Type,0))) -> 0
B121: 0 | C121: 0 | D121: 0 | E121: 0 | F121: 0 | G121: 0 | H121: 0 | I121: 0 | J121: 0 | K121: 0 | L121: =IF(B121=0,0,INDEX('1.General_Inputs_Plan&Budget'!$C$118:$C$227,MATCH('4.Equip_Other_Plan&Budget'!B121,Equipment_Type,0))) -> 0
B122: 0 | C122: 0 | D122: 0 | E122: 0 | F122: 0 | G122: 0 | H122: 0 | I122: 0 | J122: 0 | K122: 0 | L122: =IF(B122=0,0,INDEX('1.General_Inputs_Plan&Budget'!$C$118:$C$227,MATCH('4.Equip_Other_Plan&Budget'!B122,Equipment_Type,0))) -> 0
B123: 0 | C123: 0 | D123: 0 | E123: 0 | F123: 0 | G123: 0 | H123: 0 | I123: 0 | J123: 0 | K123: 0 | L123: =IF(B123=0,0,INDEX('1.General_Inputs_Plan&Budget'!$C$118:$C$227,MATCH('4.Equip_Other_Plan&Budget'!B123,Equipment_Type,0))) -> 0
B124: 0 | C124: 0 | D124: 0 | E124: 0 | F124: 0 | G124: 0 | H124: 0 | I124: 0 | J124: 0 | K124: 0 | L124: =IF(B124=0,0,INDEX('1.General_Inputs_Plan&Budget'!$C$118:$C$227,MATCH('4.Equip_Other_Plan&Budget'!B124,Equipment_Type,0))) -> 0
B125: 0 | C125: =IF(Number_Beds_Small=0,0,I125*$L125) -> 0 | D125: =IF(Number_Beds_Medium=0,0,J125*$L125) -> 0 | E125: =IF(Number_Beds_Large=0,0,K125*$L125) -> 0 | F125: =IF(C125=0,0,C125/C$139) -> 0 | G125: =IF(D125=0,0,D125/D$139) -> 0 | H125: =IF(E125=0,0,E125/E$139) -> 0 | I125: =IF(B125=0,0,INDEX(Equipment_Units_Small,MATCH(B125,Equipment_Type,0))) -> 0 | J125: =IF(B125=0,0,INDEX(Equipment_Units_Med,MATCH(B125,Equipment_Type,0))) -> 0 | K125: =IF(B125=0,0,INDEX(Equipment_Units_Large,MATCH(B125,Equipment_Type,0))) -> 0 | L125: =IF(B125=0,0,INDEX('1.General_Inputs_Plan&Budget'!$C$118:$C$227,MATCH('4.Equip_Other_Plan&Budget'!B125,Equipment_Type,0))) -> 0
B126: 0 | C126: 0 | D126: 0 | E126: 0 | F126: 0 | G126: 0 | H126: 0 | I126: 0 | J126: 0 | K126: 0 | L126: =IF(B126=0,0,INDEX('1.General_Inputs_Plan&Budget'!$C$118:$C$227,MATCH('4.Equip_Other_Plan&Budget'!B126,Equipment_Type,0))) -> 0
B127: 0 | C127: 0 | D127: 0 | E127: 0 | F127: 0 | G127: 0 | H127: 0 | I127: 0 | J127: 0 | K127: 0 | L127: =IF(B127=0,0,INDEX('1.General_Inputs_Plan&Budget'!$C$118:$C$227,MATCH('4.Equip_Other_Plan&Budget'!B127,Equipment_Type,0))) -> 0
B128: 0 | C128: 0 | D128: 0 | E128: 0 | F128: 0 | G128: 0 | H128: 0 | I128: 0 | J128: 0 | K128: 0 | L128: =IF(B128=0,0,INDEX('1.General_Inputs_Plan&Budget'!$C$118:$C$227,MATCH('4.Equip_Other_Plan&Budget'!B128,Equipment_Type,0))) -> 0
B129: 0 | C129: 0 | D129: 0 | E129: 0 | F129: 0 | G129: 0 | H129: 0 | I129: 0 | J129: 0 | K129: 0 | L129: =IF(B129=0,0,INDEX('1.General_Inputs_Plan&Budget'!$C$118:$C$227,MATCH('4.Equip_Other_Plan&Budget'!B129,Equipment_Type,0))) -> 0
B130: 0 | C130: 0 | D130: 0 | E130: 0 | F130: 0 | G130: 0 | H130: 0 | I130: 0 | J130: 0 | K130: 0 | L130: =IF(B130=0,0,INDEX('1.General_Inputs_Plan&Budget'!$C$118:$C$227,MATCH('4.Equip_Other_Plan&Budget'!B130,Equipment_Type,0))) -> 0
B131: 0 | C131: 0 | D131: 0 | E131: 0 | F131: 0 | G131: 0 | H131: 0 | I131: 0 | J131: 0 | K131: 0 | L131: =IF(B131=0,0,INDEX('1.General_Inputs_Plan&Budget'!$C$118:$C$227,MATCH('4.Equip_Other_Plan&Budget'!B131,Equipment_Type,0))) -> 0
B132: 0 | C132: 0 | D132: 0 | E132: 0 | F132: 0 | G132: 0 | H132: 0 | I132: 0 | J132: 0 | K132: 0 | L132: =IF(B132=0,0,INDEX('1.General_Inputs_Plan&Budget'!$C$118:$C$227,MATCH('4.Equip_Other_Plan&Budget'!B132,Equipment_Type,0))) -> 0
B133: 0 | C133: 0 | D133: 0 | E133: 0 | F133: 0 | G133: 0 | H133: 0 | I133: 0 | J133: 0 | K133: 0 | L133: =IF(B133=0,0,INDEX('1.General_Inputs_Plan&Budget'!$C$118:$C$227,MATCH('4.Equip_Other_Plan&Budget'!B133,Equipment_Type,0))) -> 0
B134: 0 | C134: 0 | D134: 0 | E134: 0 | F134: 0 | G134: 0 | H134: 0 | I134: 0 | J134: 0 | K134: 0 | L134: =IF(B134=0,0,INDEX('1.General_Inputs_Plan&Budget'!$C$118:$C$227,MATCH('4.Equip_Other_Plan&Budget'!B134,Equipment_Type,0))) -> 0
B135: 0 | C135: 0 | D135: 0 | E135: 0 | F135: 0 | G135: 0 | H135: 0 | I135: 0 | J135: 0 | K135: 0 | L135: =IF(B135=0,0,INDEX('1.General_Inputs_Plan&Budget'!$C$118:$C$227,MATCH('4.Equip_Other_Plan&Budget'!B135,Equipment_Type,0))) -> 0
B136: 0 | C136: 0 | D136: 0 | E136: 0 | F136: 0 | G136: 0 | H136: 0 | I136: 0 | J136: 0 | K136: 0 | L136: =IF(B136=0,0,INDEX('1.General_Inputs_Plan&Budget'!$C$118:$C$227,MATCH('4.Equip_Other_Plan&Budget'!B136,Equipment_Type,0))) -> 0
B137: 0 | C137: 0 | D137: 0 | E137: 0 | F137: 0 | G137: 0 | H137: 0 | I137: 0 | J137: 0 | K137: 0 | L137: =IF(B137=0,0,INDEX('1.General_Inputs_Plan&Budget'!$C$118:$C$227,MATCH('4.Equip_Other_Plan&Budget'!B137,Equipment_Type,0))) -> 0
B138: 0 | C138: 0 | D138: 0 | E138: 0 | F138: 0 | G138: 0 | H138: 0 | I138: 0 | J138: 0 | K138: 0 | L138: =IF(B138=0,0,INDEX('1.General_Inputs_Plan&Budget'!$C$118:$C$227,MATCH('4.Equip_Other_Plan&Budget'!B138,Equipment_Type,0))) -> 0
B139: Total Facility Equipment Costs | C139: =IF(Number_Beds_Small=0,0,SUM(C29:C138)) -> 80750 | D139: =IF(Number_Beds_Medium=0,0,SUM(D29:D138)) -> 128420 | E139: =IF(Number_Beds_Large=0,0,SUM(E29:E138)) -> 0 | F139: =SUM(F29:F138) -> 1 | G139: =SUM(G29:G138) -> 1 | H139: =SUM(H29:H138) -> 0
B142: STEP 2 - ESTIMATE & VALIDATE COSTS OF EQUIPMENT TRANSPORT, DISTRIBUTION AND INSTALLATION
B143: If equipment prices DO NOT include transport, distribution and installation costs, estimate those costs for each facility typology.
B144: Transport, distribution and installation costs can be significant, so if they are not included in equipment acquisition value, they can be calculated here
B145: Note: Leave cells blank if transport, distribution and installation cost sare included in equipment acquisition value
B147: 2.1. Estimate costs as a percentage of equipment acquisition value for each typology and revise/modify estimates if required
B148: Enter % of equipment value or user-defined costs. Note that user-defined costs will override any modelled estimates
B149: In Zambia, 20%, 30% & 40% estimates were used based on Unicef experience in country
D150: Estimated model costs | G150: Enter user-defined costs here. Note they override modelled estimates | J150: User Notes
B151: Equipment Transport, Distribution and Installation Costs as a % of Equipment Acquisition Value, by Location Typology | C151: % of equipment value | D151: =List_Facility_Sizes -> Small | E151: Medium | G151: =List_Facility_Sizes -> Small | H151: Medium
B152: =List_Costing_Groups -> Mid Cost | C152: 0.25 | D152: =IF(Name_Cost_Mid="", 0, IF(Name_Small="",0,Percent_Equipm_Transport_Mid*Cost_Equipment_Small)) -> 20187.5 | E152: =IF(Name_Cost_Mid="", 0, IF(Name_Medium="",0,Percent_Equipm_Transport_Mid*Cost_Equipment_Medium)) -> 32105 | F152: =IF(Name_Cost_Mid="", 0, IF(Name_Large="",0,Percent_Equipm_Transport_Mid*Cost_Equipment_Large)) -> 0 | H152: 30000
B153: High Cost | C153: 0.3 | D153: =IF(Name_Cost_High="",0,IF(Name_Small="",0,Percent_Equipm_Transport_High*Cost_Equipment_Small)) -> 24225 | E153: =IF(Name_Cost_High="",0,IF(Name_Medium="",0,Percent_Equipm_Transport_High*Cost_Equipment_Medium)) -> 38526 | F153: =IF(Name_Cost_High="",0,IF(Name_Large="",0,Percent_Equipm_Transport_High*Cost_Equipment_Large)) -> 0 | H153: 35000
B154: Very High Cost | C154: 0.35 | D154: =IF(Name_Cost_VHigh="", 0, IF(Name_Small="",0,Percent_Equipm_Transport_VHigh*Cost_Equipment_Small)) -> 28262.5 | E154: =IF(Name_Cost_VHigh="", 0, IF(Name_Medium="",0,Percent_Equipm_Transport_VHigh*Cost_Equipment_Medium)) -> 44947 | F154: =IF(Name_Cost_VHigh="", 0, IF(Name_Large="",0,Percent_Equipm_Transport_VHigh*Cost_Equipment_Large)) -> 0 | H154: 41000
B156: 2.2. Review costs that will be used for final results
B158: Final transport, distribution & installation costs by typology | D158: =List_Facility_Sizes -> Small | E158: Medium
B159: =List_Costing_Groups -> Mid Cost | D159: =IF(Name_Cost_Mid="", 0, IF(Name_Small="",0,IF(G152>0,G152,D152))) -> 20187.5 | E159: =IF(Name_Cost_Mid="", 0, IF(Name_Medium="",0,IF(H152>0,H152,E152))) -> 30000 | F159: =IF(Name_Cost_Mid="", 0, IF(Name_Large="",0,IF(I152>0,I152,F152))) -> 0
B160: High Cost | D160: =IF(Name_Cost_High="",0,IF(Name_Small="",0,IF(G153>0,G153,D153))) -> 24225 | E160: =IF(Name_Cost_High="",0,IF(Name_Medium="",0,IF(H153>0,H153,E153))) -> 35000 | F160: =IF(Name_Cost_High="",0,IF(Name_Large="",0,IF(I153>0,I153,F153))) -> 0
B161: Very High Cost | D161: =IF(Name_Cost_VHigh="", 0, IF(Name_Small="",0,IF(G154>0,G154, D154))) -> 28262.5 | E161: =IF(Name_Cost_VHigh="", 0, IF(Name_Medium="",0,IF(H154>0,H154, E154))) -> 41000 | F161: =IF(Name_Cost_VHigh="", 0, IF(Name_Large="",0,IF(I154>0,I154,F154))) -> 0
B164: STEP 3. ESTIMATE & VALIDATE ANNUAL COSTS OF EQUIPMENT CONSUMABLES AND RENEWABLES
B166: 3.1. Estimate costs as a percentage of equipment acquisition value for each typology and revise/modify estimates if required
B167: Enter % of equipment value or user-defined costs. Note that user-defined costs will override any modelled estimates
B168: Note UNICEF experience in India & Zambia suggests 30% to 40% might be reasonable estimates. A similar range was provided by government officials in Ghana.
D169: Estimated model costs | G169: =G150 -> Enter user-defined costs here. Note they override modelled estimates | J169: User Notes
B170: Annual Costs Consumables and Renewables as % of Equipment Value | C170: % of Equipment Value | D170: =List_Facility_Sizes -> Small | E170: Medium | G170: =List_Facility_Sizes -> Small | H170: Medium
B171: =List_Costing_Groups -> Mid Cost | C171: 0.3 | D171: =IF(Name_Cost_Mid="",0,IF(Name_Small="",0,Percent_Consumables_Mid*Cost_Equipment_Small)) -> 24225 | E171: =IF(Name_Cost_Mid="",0,IF(Name_Medium="",0,Percent_Consumables_Mid*Cost_Equipment_Medium)) -> 38526 | F171: =IF(Name_Cost_Mid="",0,IF(Name_Large="",0,Percent_Consumables_Mid*Cost_Equipment_Large)) -> 0 | H171: 36000
B172: High Cost | C172: 0.35 | D172: =IF(Name_Cost_High="",0,IF(Name_Small="",0,Percent_Consumables_High*Cost_Equipment_Small)) -> 28262.5 | E172: =IF(Name_Cost_High="",0,IF(Name_Medium="",0,Percent_Consumables_High*Cost_Equipment_Medium)) -> 44947 | F172: =IF(Name_Cost_High="",0,IF(Name_Large="",0,Percent_Consumables_High*Cost_Equipment_Large)) -> 0 | H172: 41000
B173: Very High Cost | C173: 0.4 | D173: =IF(Name_Cost_VHigh="",0,IF(Name_Small="",0,Percent_Consumables_VHigh*Cost_Equipment_Small)) -> 32300 | E173: =IF(Name_Cost_VHigh="",0,IF(Name_Medium="",0,Percent_Consumables_VHigh*Cost_Equipment_Medium)) -> 51368 | F173: =IF(Name_Cost_VHigh="",0,IF(Name_Large="",0,Percent_Consumables_VHigh*Cost_Equipment_Large)) -> 0 | H173: 48000
B175: 3.2. Review costs that will be used for final results.
B177: Final annual costs of consumables and renewables by typology | D177: =List_Facility_Sizes -> Small | E177: Medium
B178: =List_Costing_Groups -> Mid Cost | D178: =IF(Name_Cost_Mid="",0,IF(Name_Small="",0,IF(G171>0,G171,D171))) -> 24225 | E178: =IF(Name_Cost_Mid="",0,IF(Name_Medium="",0,IF(H171>0,H171,E171))) -> 36000 | F178: =IF(Name_Cost_Mid="",0,IF(Name_Large="",0,IF(I171>0,I171,F171))) -> 0
B179: High Cost | D179: =IF(Name_Cost_High="",0,IF(Name_Small="",0,IF(G172>0,G172,D172))) -> 28262.5 | E179: =IF(Name_Cost_High="",0,IF(Name_Medium="",0,IF(H172>0,H172,E172))) -> 41000 | F179: =IF(Name_Cost_High="",0,IF(Name_Large="",0,IF(I172>0,I172,F172))) -> 0
B180: Very High Cost | D180: =IF(Name_Cost_VHigh="",0,IF(Name_Small="",0,IF(G173>0,G173,D173))) -> 32300 | E180: =IF(Name_Cost_VHigh="",0,IF(Name_Medium="",0,IF(H173>0,H173,E173))) -> 48000 | F180: =IF(Name_Cost_VHigh="",0,IF(Name_Large="",0,IF(I173>0,I173,F173))) -> 0
B183: STEP 4. ESTIMATE & VALIDATE ANNUAL COSTS OF SPARE PARTS
B185: 4.1. Estimate costs as a percentage of equipment acquisition value for each typology and revise/modify estimates if required
B186: Enter % of equipment value or user-defined costs. Note that user-defined costs will override any modelled estimates
B187: Leave cells blank if spare parts costed in Step 5 below (maintenance strategies)
D188: Estimated model costs | G188: =$G$150 -> Enter user-defined costs here. Note they override modelled estimates | J188: User Notes
B189: Annual Cost of Spare Parts as % of Equipment Value | C189: % | D189: =List_Facility_Sizes -> Small | E189: Medium | G189: =List_Facility_Sizes -> Small | H189: Medium
B190: =List_Costing_Groups -> Mid Cost | D190: =IF(Name_Cost_Mid="",0,IF(Name_Small="",0,Percent_Spare_Parts_Mid*Cost_Equipment_Small)) -> 0 | E190: =IF(Name_Cost_Mid="",0,IF(Name_Medium="",0,Percent_Spare_Parts_Mid*Cost_Equipment_Medium)) -> 0 | F190: =IF(Name_Cost_Mid="",0,IF(Name_Large="",0,Percent_Spare_Parts_Mid*Cost_Equipment_Large)) -> 0
B191: High Cost | D191: =IF(Name_Cost_High="",0,IF(Name_Small="",0,Percent_Spare_Parts_High*Cost_Equipment_Small)) -> 0 | E191: =IF(Name_Cost_High="",0,IF(Name_Medium="",0,Percent_Spare_Parts_High*Cost_Equipment_Medium)) -> 0 | F191: =IF(Name_Cost_High="",0,IF(Name_Large="",0,Percent_Spare_Parts_High*Cost_Equipment_Large)) -> 0
B192: Very High Cost | D192: =IF(Name_Cost_VHigh="",0,IF(Name_Small="",0,Percent_Spare_Parts_VHigh*Cost_Equipment_Small)) -> 0 | E192: =IF(Name_Cost_VHigh="",0,IF(Name_Medium="",0,Percent_Spare_Parts_VHigh*Cost_Equipment_Medium)) -> 0 | F192: =IF(Name_Cost_VHigh="",0,IF(Name_Large="",0,Percent_Spare_Parts_VHigh*Cost_Equipment_Large)) -> 0
B194: 4.2. Verify costs that will be used for final results.
B196: Final Annual Cost of Spare Parts by Typology | D196: =List_Facility_Sizes -> Small | E196: Medium
B197: =List_Costing_Groups -> Mid Cost | D197: =IF(Name_Cost_Mid="",0,IF(Name_Small="",0,IF(G190>0,G190,D190))) -> 0 | E197: =IF(Name_Cost_Mid="",0,IF(Name_Medium="",0,IF(H190>0,H190,E190))) -> 0 | F197: =IF(Name_Cost_Mid="",0,IF(Name_Large="",0,IF(I190>0,I190,F190))) -> 0
B198: High Cost | D198: =IF(Name_Cost_High="",0,IF(Name_Small="",0,IF(G191>0,G191,D191))) -> 0 | E198: =IF(Name_Cost_High="",0,IF(Name_Medium="",0,IF(H191>0,H191,E191))) -> 0 | F198: =IF(Name_Cost_High="",0,IF(Name_Large="",0,IF(I191>0,I191,F191))) -> 0
B199: Very High Cost | D199: =IF(Name_Cost_VHigh="",0,IF(Name_Small="",0,IF(G192>0,G192,D192))) -> 0 | E199: =IF(Name_Cost_VHigh="",0,IF(Name_Medium="",0,IF(H192>0,H192,E192))) -> 0 | F199: =IF(Name_Cost_VHigh="",0,IF(Name_Large="",0,IF(I192>0,I192,F192))) -> 0
B201: STEP 5. ESTIMATE & VALIDATE ANNUAL COSTS OF MAINTENANCE STRATEGIES (PREVENTIVE & CORRECTIVE)
B202: Note that costs related to human resources, such as specialised staff (i.e. engineers) or mandatory training for health staff should be costed under human resources
B203: Remember to include spare parts if not costed separately
B205: 5.1. Estimate costs as a percentage of equipment acquisition value for each typology and revise/modify estimates if required
B206: Enter % of equipment value or user-defined costs. Note that user-defined costs will override any modelled estimates
B207: Note that these costs are likely to vary across countries. For example, in Zambia, UNICEF experts suggested 10 to 15% might be reasonable for annual expenditure on maintenance. In Ghana government officials estimated annual maintenance costs to range from 8% to 12%
D208: Estimated model costs | G208: =G150 -> Enter user-defined costs here. Note they override modelled estimates | J208: User Notes
B209: Maintenance strategies as % of equipment acquisition value | C209: % | D209: =List_Facility_Sizes -> Small | E209: Medium | G209: =List_Facility_Sizes -> Small | H209: Medium
B210: =List_Costing_Groups -> Mid Cost | C210: 0.08 | D210: =IF(Name_Cost_Mid="",0,IF(Name_Small="",0,Percent_Maintenance_Mid*Cost_Equipment_Small)) -> 6460 | E210: =IF(Name_Cost_Mid="",0,IF(Name_Medium="",0,Percent_Maintenance_Mid*Cost_Equipment_Medium)) -> 10273.6 | F210: =IF(Name_Cost_Mid="",0,IF(Name_Large="",0,Percent_Maintenance_Mid*Cost_Equipment_Large)) -> 0
B211: High Cost | C211: 0.1 | D211: =IF(Name_Cost_High="",0,IF(Name_Small="",0,Percent_Maintenance_High*Cost_Equipment_Small)) -> 8075 | E211: =IF(Name_Cost_High="",0,IF(Name_Medium="",0,Percent_Maintenance_High*Cost_Equipment_Medium)) -> 12842 | F211: =IF(Name_Cost_High="",0,IF(Name_Large="",0,Percent_Maintenance_High*Cost_Equipment_Large)) -> 0
B212: Very High Cost | C212: 0.12 | D212: =IF(Name_Cost_VHigh="",0,IF(Name_Small="",0,Percent_Maintenance_VHigh*Cost_Equipment_Small)) -> 9690 | E212: =IF(Name_Cost_VHigh="",0,IF(Name_Medium="",0,Percent_Maintenance_VHigh*Cost_Equipment_Medium)) -> 15410.4 | F212: =IF(Name_Cost_VHigh="",0,IF(Name_Large="",0,Percent_Maintenance_VHigh*Cost_Equipment_Large)) -> 0
B214: 5.2. Review costs that will be used for final results.
B216: Final Annual Costs of Preventive and Corrective Maintenance Strategies | D216: =List_Facility_Sizes -> Small | E216: Medium
B217: =List_Costing_Groups -> Mid Cost | D217: =IF(Name_Cost_Mid="",0,IF(Name_Small="",0,IF(G$210>0,G210,D210))) -> 6460 | E217: =IF(Name_Cost_Mid="",0,IF(Name_Medium="",0,IF(H$210>0,H210,E210))) -> 10273.6 | F217: =IF(Name_Cost_Mid="",0,IF(Name_Large="",0,IF(I$210>0,I210,F210))) -> 0
B218: High Cost | D218: =IF(Name_Cost_High="",0,IF(Name_Small="",0,IF(G$211>0,G211,D211))) -> 8075 | E218: =IF(Name_Cost_High="",0,IF(Name_Medium="",0,IF(H$211>0,H211,E211))) -> 12842 | F218: =IF(Name_Cost_High="",0,IF(Name_Large="",0,IF(I$211>0,I211,F211))) -> 0
B219: Very High Cost | D219: =IF(Name_Cost_VHigh="",0,IF(Name_Small="",0,IF(G$212>0,G212,D212))) -> 9690 | E219: =IF(Name_Cost_VHigh="",0,IF(Name_Medium="",0,IF(H$212>0,H212,E212))) -> 15410.4 | F219: =IF(Name_Cost_VHigh="",0,IF(Name_Large="",0,IF(I$212>0,I212,F212))) -> 0
B222: STEP 6. REVIEW TOTAL ANNUAL COSTS OF SPARE PARTS + MAINTENANCE STRATEGIES
B223: Review that estimated annual maintenance costs, including spare parts, are adequate
B225: Review of Total Annual Maintenance Costs (Spare Parts + Preventive & Corrective) by Typology | D225: =List_Facility_Sizes -> Small | E225: Medium
... 79 more rows

Sheet 5.Human_Resources_Plan&Budget
B2: HUMAN RESOURCES - PLANNING & BUDGETING
B3: WARNING: Do not copy and paste data into this workbook. Doing so may insert conflicting code and remove validation. Please enter data manually to ensure proper functionality
B4: MODULE OVERVIEW
B5: Set country standards for Human Resources at each facility size typology & estimate associated costs
B6: * Enter numbers of FTE facility staff required, as per country standards
B7: * Review annual cost of staff salaries by typology
B8: Set country standards for Human Resource Development Strategies & estimate facility costs
B9: * Supervision/Mentoring/Coaching Visits
B10: * Mandatory in-service training for all staff (clinical and ancillary)
B11: Note that higher education courses to upskill workforce are costed at national level in the QoC National and Regional Strategies Module
B12: * Other Human Resource Development Strategies
B13: Identify and cost recruitment and retention strategies for hard-to-recruit and most challenging recruitment areas
B14: * Identify strategies and estimate capital costs, such as those related to housing infrastructure or purchasing of motorbikes or other transport vehicles
B15: * Identify strategies and estimate recurrent annual costs, such as those related to additional opportunities for professional collaboration and development
B16: Note that strategies applicable to all areas, including standard, should be identified and costed in the previous steps or as part of Quality of Care Facility strategies
B17: Remember:
B18: Light blue cells are user inputs.
B19: Yellow cells are tool calculations not to be manually changed
B20: If required, cells in dark blue can be used for overriding modelled estimates
B22: STEP 1 - ENTER & VALIDATE REQUIRED NUMBERS OF CLINICAL AND SUPPORT STAFF & REVIEW COSTS BY FACILITY TYPOLOGY
B24: 1.1. Enter required FTE staff numbers for each facility size typology
B25: Required FTE numbers should be sourced from country standards and guidelines.
B26: * Staff requirements should account for expected workload, including clinical & administrative tasks related to all components of care
B27: If country guidelines are not available, as a starting point for discussions in country, staff ratios can be sourced from international guidelines or relevant GFF reports
B28: If typology is not costed or staff not required, enter 0 or leave blank
C30: Required FTE per facility | F30: User Notes
B31: =Staff_Category -> Staff Category (Clinical & Support) | C31: =List_Facility_Sizes -> Small | D31: Medium
B32: Neonatologist | C32: 1 | D32: 1
B33: Medical Doctor | C33: 1 | D33: 2
B34: Registered Neonatal Nurse | C34: 5 | D34: 11
B35: Registered Nurse | C35: 8 | D35: 15
B36: Ward assistant/Public Health Nurse | C36: 1 | D36: 1
B37: Biomedical engineer | C37: 0.2 | D37: 0.2
B38: Ambulance driver | C38: 1 | D38: 1
B39: Cleaner | C39: 2 | D39: 3
B40: Other staff to be individually defined & costed | C40: 1 | D40: 1.3 | F40: Remember this is a catch-all category built for the training dataset
B41: 0
B42: 0
B43: 0
B44: 0
B45: 0
B46: 0
B47: 0
B48: 0
B49: 0
B50: 0
B51: 0
B52: 0
B54: 1.2 Review facility staff costs by staff category for standard recruiting areas
B56: STANDARD RECRUITING AREAS - ESSENTIAL STAFF | C56: Annual Cost ($) | F56: Percentage (%) | I56: Unit costs from inputs
B57: =Staff_Category -> Staff Category (Clinical & Support) | C57: =List_Facility_Sizes -> Small | D57: Medium | F57: =List_Facility_Sizes -> Small | G57: Medium | I57: =IF(Name_HR_Standard="","",Staff_Salaries_Standard) -> Annual costs inc. salaries, allowances, etc.
B58: Neonatologist | C58: =IF(OR(Number_Beds_Small=0,Name_HR_Standard=""),0,$C32*$I58) -> 11000 | D58: =IF(OR(Number_Beds_Medium=0,,Name_HR_Standard=""),0,$D32*$I58) -> 11000 | E58: =IF(OR(Number_Beds_Large=0,,Name_HR_Standard=""),0,$E32*$I58) -> 0 | F58: =IF(OR(Number_Beds_Small=0,Name_HR_Standard=""),0,IF(C58=0,0,C58/C$79)) -> 0.07845934379 | G58: =IF(OR(Number_Beds_Medium=0,Name_HR_Standard=""),0,IF(D58=0,0,D58/D$79)) -> 0.04809794491 | H58: =IF(OR(Number_Beds_Large=0,Name_HR_Standard=""),0,IF(E58=0,0,E58/E$79)) -> 0 | I58: 11000
B59: Medical Doctor | C59: 8000 | D59: 16000 | E59: 0 | F59: 0.05706134094 | G59: 0.06996064714 | H59: 0 | I59: 8000
B60: Registered Neonatal Nurse | C60: 30000 | D60: 66000 | E60: 0 | F60: 0.2139800285 | G60: 0.2885876694 | H60: 0 | I60: 6000
B61: Registered Nurse | C61: 32000 | D61: 60000 | E61: 0 | F61: 0.2282453638 | G61: 0.2623524268 | H61: 0 | I61: 4000
B62: Ward assistant/Public Health Nurse | C62: 2000 | D62: 2000 | E62: 0 | F62: 0.01426533524 | G62: 0.008745080892 | H62: 0 | I62: 2000
B63: Biomedical engineer | C63: 1200 | D63: 1200 | E63: 0 | F63: 0.008559201141 | G63: 0.005247048535 | H63: 0 | I63: 6000
B64: Ambulance driver | C64: 3000 | D64: 3000 | E64: 0 | F64: 0.02139800285 | G64: 0.01311762134 | H64: 0 | I64: 3000
B65: Cleaner | C65: 3000 | D65: 4500 | E65: 0 | F65: 0.02139800285 | G65: 0.01967643201 | H65: 0 | I65: 1500
B66: Other staff to be individually defined & costed | C66: 50000 | D66: 65000 | E66: 0 | F66: 0.3566333809 | G66: 0.284215129 | H66: 0 | I66: 50000
B67: 0 | C67: 0 | D67: 0 | E67: 0 | F67: 0 | G67: 0 | H67: 0 | I67: 0
B68: 0 | C68: 0 | D68: 0 | E68: 0 | F68: 0 | G68: 0 | H68: 0 | I68: 0
B69: 0 | C69: 0 | D69: 0 | E69: 0 | F69: 0 | G69: 0 | H69: 0 | I69: 0
B70: 0 | C70: 0 | D70: 0 | E70: 0 | F70: 0 | G70: 0 | H70: 0 | I70: 0
B71: 0 | C71: 0 | D71: 0 | E71: 0 | F71: 0 | G71: 0 | H71: 0 | I71: 0
B72: 0 | C72: 0 | D72: 0 | E72: 0 | F72: 0 | G72: 0 | H72: 0 | I72: 0
B73: 0 | C73: 0 | D73: 0 | E73: 0 | F73: 0 | G73: 0 | H73: 0 | I73: 0
B74: 0 | C74: 0 | D74: 0 | E74: 0 | F74: 0 | G74: 0 | H74: 0 | I74: 0
B75: 0 | C75: 0 | D75: 0 | E75: 0 | F75: 0 | G75: 0 | H75: 0 | I75: 0
B76: 0 | C76: 0 | D76: 0 | E76: 0 | F76: 0 | G76: 0 | H76: 0 | I76: 0
B77: 0 | C77: 0 | D77: 0 | E77: 0 | F77: 0 | G77: 0 | H77: 0 | I77: 0
B78: 0 | C78: 0 | D78: 0 | E78: 0 | F78: 0 | G78: 0 | H78: 0 | I78: 0
B79: Annual Staff Costs | C79: =IF(Number_Beds_Small=0,0,IF(Name_HR_Standard="",0,(SUM(C58:C78)))) -> 140200 | D79: =IF(Number_Beds_Medium=0,0,IF(Name_HR_Standard="",0,(SUM(D58:D78)))) -> 228700 | E79: =IF(Number_Beds_Large=0,0,IF(Name_HR_Standard="",0,(SUM(E58:E78)))) -> 0 | F79: =SUM(F58:F78) -> 1 | G79: =SUM(G58:G78) -> 1 | H79: =SUM(H58:H73) -> 0
B81: 1.3 Review facility staff costs by staff category for Hard-to-Recruit areas.
B83: HARD-TO-RECRUIT AREAS - ESSENTIAL STAFF | C83: =C56 -> Annual Cost ($) | F83: =F56 -> Percentage (%) | I83: =I56 -> Unit costs from inputs
B84: =Staff_Category -> Staff Category (Clinical & Support) | C84: =List_Facility_Sizes -> Small | D84: Medium | F84: =List_Facility_Sizes -> Small | G84: Medium | I84: =IF(Name_HR_HardRecruit="", "",Staff_Salaries_Hard_to_recruit) -> Annual costs inc. salaries, allowances, recruitment area incentives
B85: Neonatologist | C85: =IF(OR(Number_Beds_Small=0,Name_HR_HardRecruit=""),0,$C32*$I85) -> 13750 | D85: =IF(OR(Number_Beds_Medium=0,Name_HR_HardRecruit=""),0,$D32*I85) -> 13750 | E85: =IF(OR(Number_Beds_Large=0,Name_HR_HardRecruit=""),0,$E32*$I85) -> 0 | F85: =IF(OR(Number_Beds_Small=0,Name_HR_HardRecruit=""),0,IF(C85=0,0,C85/C$106)) -> 0.07323568575 | G85: =IF(OR(Number_Beds_Medium=0,Name_HR_HardRecruit=""),0,IF(D85=0,0,D85/D$106)) -> 0.045510964 | H85: =IF(OR(Number_Beds_Large=0,Name_HR_HardRecruit=""),0,IF(E85=0,0,E85/E$106)) -> 0 | I85: 13750
B86: Medical Doctor | C86: =IF(OR(Number_Beds_Small=0,Name_HR_HardRecruit=""),0,$C33*$I86) -> 10000 | D86: 20000 | E86: 0 | F86: 0.05326231691 | G86: 0.06619776583 | H86: 0 | I86: 10000
B87: Registered Neonatal Nurse | C87: 37500 | D87: 82500 | E87: 0 | F87: 0.1997336884 | G87: 0.273065784 | H87: 0 | I87: 7500
B88: Registered Nurse | C88: 40000 | D88: 75000 | E88: 0 | F88: 0.2130492676 | G88: 0.2482416218 | H88: 0 | I88: 5000
B89: Ward assistant/Public Health Nurse | C89: 2500 | D89: 2500 | E89: 0 | F89: 0.01331557923 | G89: 0.008274720728 | H89: 0 | I89: 2500
B90: Biomedical engineer | C90: 1500 | D90: 1500 | E90: 0 | F90: 0.007989347537 | G90: 0.004964832437 | H90: 0 | I90: 7500
B91: Ambulance driver | C91: 3750 | D91: 3750 | E91: 0 | F91: 0.01997336884 | G91: 0.01241208109 | H91: 0 | I91: 3750
B92: Cleaner | C92: 3750 | D92: 5625 | E92: 0 | F92: 0.01997336884 | G92: 0.01861812164 | H92: 0 | I92: 1875
B93: Other staff to be individually defined & costed | C93: 75000 | D93: 97500 | E93: 0 | F93: 0.3994673768 | G93: 0.3227141084 | H93: 0 | I93: 75000
B94: 0 | C94: 0 | D94: 0 | E94: 0 | F94: 0 | G94: 0 | H94: 0 | I94: 0
B95: 0 | C95: 0 | D95: 0 | E95: 0 | F95: 0 | G95: 0 | H95: 0 | I95: 0
B96: 0 | C96: 0 | D96: 0 | E96: 0 | F96: 0 | G96: 0 | H96: 0 | I96: 0
B97: 0 | C97: 0 | D97: 0 | E97: 0 | F97: 0 | G97: 0 | H97: 0 | I97: 0
B98: 0 | C98: 0 | D98: 0 | E98: 0 | F98: 0 | G98: 0 | H98: 0 | I98: 0
B99: 0 | C99: 0 | D99: 0 | E99: 0 | F99: 0 | G99: 0 | H99: 0 | I99: 0
B100: 0 | C100: 0 | D100: 0 | E100: 0 | F100: 0 | G100: 0 | H100: 0 | I100: 0
B101: 0 | C101: 0 | D101: 0 | E101: 0 | F101: 0 | G101: 0 | H101: 0 | I101: 0
B102: 0 | C102: 0 | D102: 0 | E102: 0 | F102: 0 | G102: 0 | H102: 0 | I102: 0
B103: 0 | C103: 0 | D103: 0 | E103: 0 | F103: 0 | G103: 0 | H103: 0 | I103: 0
B104: 0 | C104: 0 | D104: 0 | E104: 0 | F104: 0 | G104: 0 | H104: 0 | I104: 0
B105: 0 | C105: 0 | D105: 0 | E105: 0 | F105: 0 | G105: 0 | H105: 0 | I105: 0
B106: Annual Staff Costs | C106: =IF(OR(Number_Beds_Small=0,Name_HR_HardRecruit=""),0,(SUM(C85:C105))) -> 187750 | D106: =IF(OR(Number_Beds_Medium=0,Name_HR_HardRecruit=""),0,(SUM(D85:D105))) -> 302125 | E106: =IF(OR(Number_Beds_Large=0,Name_HR_HardRecruit=""),0,(SUM(E85:E105))) -> 0 | F106: =SUM(F85:F105) -> 1 | G106: =SUM(G85:G105) -> 1 | H106: =SUM(H85:H105) -> 0
B108: 1.4 Review facility staff costs by staff category for Most Challenging to Recruit areas.
B110: MOST CHALLENGING TO RECRUIT AREAS - ESSENTIAL STAFF | C110: =C56 -> Annual Cost ($) | F110: =F56 -> Percentage (%) | I110: =I83 -> Unit costs from inputs
B111: =Staff_Category -> Staff Category (Clinical & Support) | C111: =List_Facility_Sizes -> Small | D111: Medium | F111: =List_Facility_Sizes -> Small | G111: Medium | I111: =IF(Name_HR_HardRecruit="", "",Staff_Salaries_VHard_to_recruit) -> 
B112: Neonatologist | C112: =IF(OR(Number_Beds_Small=0,Name_HR_HardRecruit=""),0,$C32*$I112) -> 0 | D112: =IF(OR(Number_Beds_Medium=0,Name_HR_HardRecruit=""),0,$D32*I112) -> 0 | E112: =IF(OR(Number_Beds_Large=0,Name_HR_HardRecruit=""),0,$E32*$I112) -> 0 | F112: =IF(OR(Number_Beds_Small=0,Name_HR_HardRecruit=""),0,IF(C112=0,0,C112/C$133)) -> 0 | G112: =IF(OR(Number_Beds_Medium=0,Name_HR_HardRecruit=""),0,IF(D112=0,0,D112/D$133)) -> 0 | H112: =IF(OR(Number_Beds_Large=0,Name_HR_HardRecruit=""),0,IF(E112=0,0,E112/E$133)) -> 0 | I112: 0
B113: Medical Doctor | C113: 0 | D113: 0 | E113: 0 | F113: 0 | G113: 0 | H113: 0 | I113: 0
B114: Registered Neonatal Nurse | C114: 0 | D114: 0 | E114: 0 | F114: 0 | G114: 0 | H114: 0 | I114: 0
B115: Registered Nurse | C115: 0 | D115: 0 | E115: 0 | F115: 0 | G115: 0 | H115: 0 | I115: 0
B116: Ward assistant/Public Health Nurse | C116: 0 | D116: 0 | E116: 0 | F116: 0 | G116: 0 | H116: 0 | I116: 0
B117: Biomedical engineer | C117: 0 | D117: 0 | E117: 0 | F117: 0 | G117: 0 | H117: 0 | I117: 0
B118: Ambulance driver | C118: 0 | D118: 0 | E118: 0 | F118: 0 | G118: 0 | H118: 0 | I118: 0
B119: Cleaner | C119: 0 | D119: 0 | E119: 0 | F119: 0 | G119: 0 | H119: 0 | I119: 0
B120: Other staff to be individually defined & costed | C120: 0 | D120: 0 | E120: 0 | F120: 0 | G120: 0 | H120: 0 | I120: 0
B121: 0 | C121: 0 | D121: 0 | E121: 0 | F121: 0 | G121: 0 | H121: 0 | I121: 0
B122: 0 | C122: 0 | D122: 0 | E122: 0 | F122: 0 | G122: 0 | H122: 0 | I122: 0
B123: 0 | C123: 0 | D123: 0 | E123: 0 | F123: 0 | G123: 0 | H123: 0 | I123: 0
B124: 0 | C124: 0 | D124: 0 | E124: 0 | F124: 0 | G124: 0 | H124: 0 | I124: 0
B125: 0 | C125: 0 | D125: 0 | E125: 0 | F125: 0 | G125: 0 | H125: 0 | I125: 0
B126: 0 | C126: 0 | D126: 0 | E126: 0 | F126: 0 | G126: 0 | H126: 0 | I126: 0
B127: 0 | C127: 0 | D127: 0 | E127: 0 | F127: 0 | G127: 0 | H127: 0 | I127: 0
B128: 0 | C128: 0 | D128: 0 | E128: 0 | F128: 0 | G128: 0 | H128: 0 | I128: 0
B129: 0 | C129: 0 | D129: 0 | E129: 0 | F129: 0 | G129: 0 | H129: 0 | I129: 0
B130: 0 | C130: 0 | D130: 0 | E130: 0 | F130: 0 | G130: 0 | H130: 0 | I130: 0
B131: 0 | C131: 0 | D131: 0 | E131: 0 | F131: 0 | G131: 0 | H131: 0 | I131: 0
B132: 0 | C132: 0 | D132: 0 | E132: 0 | F132: =IF(OR(Number_Beds_Small=0,Name_HR_HardRecruit=""),0,IF(C132=0,0,C132/C$106)) -> 0 | G132: 0 | H132: 0 | I132: 0
B133: Annual Staff Costs | C133: =IF(OR(Number_Beds_Small=0,Name_HR_VHardRecruit=""),0,(SUM(C112:C132))) -> 0 | D133: =IF(OR(Number_Beds_Medium=0,Name_HR_VHardRecruit=""),0,(SUM(D112:D132))) -> 0 | E133: =IF(OR(Number_Beds_Large=0,Name_HR_VHardRecruit=""),0,(SUM(E112:E132))) -> 0 | F133: =SUM(F112:F132) -> 0 | G133: =SUM(G112:G132) -> 0 | H133: =SUM(H112:H132) -> 0
B135: 1.5. Review total facility staff salaries by typology.
B136: Results will be 0 if typology not included
B138: Annual Cost of Facility Staff Salaries | C138: =List_Facility_Sizes -> Small | D138: Medium
B139: =Name_HR_Standard -> Standard area | C139: =C79 -> 140200 | D139: =D79 -> 228700 | E139: =E79 -> 0
B140: =Name_HR_HardRecruit -> Hard-to-Recruit | C140: =C106 -> 187750 | D140: =D106 -> 302125 | E140: =E106 -> 0
B141: =Name_HR_VHardRecruit ->  | C141: =C133 -> 0 | D141: =D133 -> 0 | E141: 0
B144: STEP 2 - COST MENTORING/SUPERVISION/COACHING VISITS
B145: Estimate the costs of mentoring/supervision/coaching visits based on unit costs entered under General Inputs
B146: 2.1. Enter number of mentoring/supervision/coaching visits to each facility required in a year:
C148: =List_Facility_Sizes -> Small | D148: Medium | F148: User Notes
B149: Number of annual mentoring/supervision visits by regional staff to each facility = | C149: 4 | D149: 4
B151: 2.2. Review estimated annual costs of mentoring and supervision by facility size and cost/location typology after applying cost loadings from inputs
B153: Mentoring/Supervision/Coaching | C153: =List_Facility_Sizes -> Small | D153: Medium | F153: Unit costs - See General Inputs Step 6.2
B154: =List_Costing_Groups -> Mid Cost | C154: =IF(Name_Small="",0,IF(Name_Cost_Mid="",0,C$149*(Price_SupervisionVisit*(1+Percent_Loading_Mid)))) -> 380 | D154: =IF(Name_Medium="",0,IF(Name_Cost_Mid="",0,D$149*(Price_SupervisionVisit*(1+Percent_Loading_Mid)))) -> 380 | E154: =IF(Name_Large="",0,IF(Name_Cost_Mid="",0,E$149*(Price_SupervisionVisit*(1+Percent_Loading_Mid)))) -> 0 | F154: ='1.General_Inputs_Plan&Budget'!C293 -> 95
B155: High Cost | C155: =IF(Name_Small="",0,IF(Name_Cost_High="",0,C$149*(Price_SupervisionVisit*(1+Percent_Loading_High)))) -> 418 | D155: =IF(Name_Medium="",0,IF(Name_Cost_High="",0,D$149*(Price_SupervisionVisit*(1+Percent_Loading_High)))) -> 418 | E155: =IF(Name_Large="",0,IF(Name_Cost_High="",0,E$149*(Price_SupervisionVisit*(1+Percent_Loading_High)))) -> 0 | F155: ='1.General_Inputs_Plan&Budget'!C294 -> 104.5
B156: Very High Cost | C156: =IF(Name_Small="",0,IF(Name_Cost_VHigh="",0,C$149*(Price_SupervisionVisit*(1+Percent_Loading_VHigh)))) -> 456 | D156: =IF(Name_Medium="",0,IF(Name_Cost_VHigh="",0,D$149*(Price_SupervisionVisit*(1+Percent_Loading_VHigh)))) -> 456 | E156: =IF(Name_Large="",0,IF(Name_Cost_VHigh="",0,E$149*(Price_SupervisionVisit*(1+Percent_Loading_VHigh)))) -> 0 | F156: ='1.General_Inputs_Plan&Budget'!C295 -> 114
B159: STEP 3 - IDENTIFY & COST MANDATORY IN-SERVICE TRAININGS FOR ALL FACILITY STAFF
B161: 3.1. Enter service parameters for mandatory in-service training. Include trainings for all components of small and sick newborn care and any associated quality standards
B162: As appropriate in the local context, you can include here any trainings related to task-shifting i.e. to improve the capacity of nurses and midwives to deliver small and sick newborn care
B163: If trainings will take place at a facility only once a year enter 1, if every 2 years, enter 0.5
B164: The final columns (yellow cells) show total in-service training by facilty size
B166: First: Enter Name of Mandatory in-service training package | C166: Second: enter number of staff trained @ each facility | F166: Third, enter # of days | G166: Fourth, enter Costs per Person per Day ($) | H166: Fifth, enter number of training sessions in a year | I166: Sixth, Enter User Notes | J166: Seventh, Review In-Service Training Costs by Facility Size
C167: =List_Facility_Sizes -> Small | D167: Medium | J167: =List_Facility_Sizes -> Small | K167: Medium
B168: Essential newborn care for small and normal babies | C168: 15 | D168: 29 | F168: 3 | G168: 100 | H168: 1 | I168: Nurses, assistant, paramedic | J168: =IF(Name_Small= "",0, C168*$F168*$G168*$H168) -> 4500 | K168: =IF(Name_Medium= "",0, D168*$F168*$G168*$H168) -> 8700 | L168: =IF(Name_Large= "",0, E168*$F168*$G168*$H168) -> 0
B169: KMC and quality improvement traning | C169: 15 | D169: 29 | F169: 2 | G169: 100 | H169: 1 | I169: As above | J169: 3000 | K169: 5800 | L169: 0
J170: 0 | K170: 0 | L170: 0
J171: 0 | K171: 0 | L171: 0
J172: 0 | K172: 0 | L172: 0
J173: 0 | K173: 0 | L173: 0
J174: 0 | K174: 0 | L174: 0
J175: 0 | K175: 0 | L175: 0
J176: 0 | K176: 0 | L176: 0
J177: 0 | K177: 0 | L177: 0
I178: Total In-Service Training Costs | J178: =IF(Name_Small="",0,SUM(J168:J177)) -> 7500 | K178: =IF(Name_Medium="",0,SUM(K168:K177)) -> 14500 | L178: =IF(Name_Large="",0,SUM(L168:L177)) -> 0
B180: 3.2. Review Total Annual In-Service Training Costs by Facility Size and Location Typology after applying cost loadings/mark-ups from inputs. If required revise estimates in dark-blue cells
F182: ='4.Equip_Other_Plan&Budget'!G150 -> Enter user-defined costs here. Note they override modelled estimates | I182: User Notes
B183: Annual In-Service Training Costs | C183: =List_Facility_Sizes -> Small | D183: Medium | F183: =List_Facility_Sizes -> Small | G183: Medium
B184: =List_Costing_Groups -> Mid Cost | C184: =IF(Name_Cost_Mid="",0,J178*(1+Percent_Loading_Mid)) -> 7500 | D184: =IF(Name_Cost_Mid="",0,K178*(1+Percent_Loading_Mid)) -> 14500 | E184: =IF(Name_Cost_Mid="",0,L178*(1+Percent_Loading_Mid)) -> 0
B185: High Cost | C185: =IF(Name_Cost_High="",0,J178*(1+Percent_Loading_High)) -> 8250 | D185: =IF(Name_Cost_High="",0,K178*(1+Percent_Loading_High)) -> 15950 | E185: =IF(Name_Cost_High="",0,L178*(1+Percent_Loading_High)) -> 0
B186: Very High Cost | C186: =IF(Name_Cost_VHigh="",0,J178*(1+Percent_Loading_VHigh)) -> 9000 | D186: =IF(Name_Cost_VHigh="",0,K178*(1+Percent_Loading_VHigh)) -> 17400 | E186: =IF(Name_Cost_VHigh="",0,L178*(1+Percent_Loading_VHigh)) -> 0
B188: 3.3. Review In-Service Training Costs to be used in the final calculations
C189: =List_Facility_Sizes -> Small | D189: Medium
B190: =List_Costing_Groups -> Mid Cost | C190: =IF(Name_Cost_Mid="",0,IF(Name_Small="",0,IF(F184<>"",F184,C184))) -> 7500 | D190: =IF(Name_Cost_Mid="",0,IF(Name_Medium="",0,IF(G184<>"",G184,D184))) -> 14500 | E190: =IF(Name_Cost_Mid="",0,IF(Name_Large="",0,IF(H184<>"",H184,E184))) -> 0
B191: High Cost | C191: =IF(Name_Cost_High="",0,IF(Name_Small="",0,IF(F185<>"",F185,C185))) -> 8250 | D191: =IF(Name_Cost_High="",0,IF(Name_Medium="",0,IF(G185<>"",G185,D185))) -> 15950 | E191: =IF(Name_Cost_High="",0,IF(Name_Large="",0,IF(H185<>"",H185,E185))) -> 0
B192: Very High Cost | C192: =IF(Name_Cost_VHigh="",0,IF(Name_Small="",0,IF(F186<>"",F186,C186))) -> 9000 | D192: =IF(Name_Cost_VHigh="",0,IF(Name_Medium="",0,IF(G186<>"",G186,D186))) -> 17400 | E192: =IF(Name_Cost_VHigh="",0,IF(Name_Large="",0,IF(H186<>"",H186,E186))) -> 0
B195: STEP 4 - IDENTIFY AND COST OTHER HUMAN RESOURCE DEVELOPMENT STRATEGIES
B196: 4.1. Enter the name of other human resource development strategies and expected costs at facility level
B197: For example, you can include here costs related to performance-based rewards or peer mentoring programs
B198: Enter expected costs by facility size typology. Leave blank if not applicable or if that facility typology is not costed
C199: Costs by Facility size typology
B200: Name of Other Human Resource Strategy | C200: =List_Facility_Sizes -> Small | D200: Medium | F200: User Notes
B207: Total Annual - Other Human Resource Strategies | C207: =IF(Name_Small="",0,SUM(C201:C206)) -> 0 | D207: =IF(Name_Medium="",0,SUM(D201:D206)) -> 0 | E207: =IF(Name_Large="",0,SUM(E201:E206)) -> 0
B209: 4.2. Review estimated total for other strategies by Facility Size and Location Typology after applying cost loadings/mark-ups from inputs. If required revise estimates in dark-blue cells
F211: Enter user-defined costs here. Note they override modelled estimates | I211: User Notes
B212: Other Human Resource Strategies (Annual Costs) | C212: =List_Facility_Sizes -> Small | D212: Medium | F212: =List_Facility_Sizes -> Small | G212: Medium
B213: =List_Costing_Groups -> Mid Cost | C213: =IF(Name_Cost_Mid="",0,C207*(1+Percent_Loading_Mid)) -> 0 | D213: =IF(Name_Cost_Mid="",0,D207*(1+Percent_Loading_Mid)) -> 0 | E213: =IF(Name_Cost_Mid="",0,E207*(1+Percent_Loading_Mid)) -> 0
B214: High Cost | C214: =IF(Name_Cost_High="",0,C207*(1+Percent_Loading_High)) -> 0 | D214: =IF(Name_Cost_High="",0,D207*(1+Percent_Loading_High)) -> 0 | E214: =IF(Name_Cost_High="",0,E207*(1+Percent_Loading_High)) -> 0
B215: Very High Cost | C215: =IF(Name_Cost_VHigh="",0,C207*(1+Percent_Loading_VHigh)) -> 0 | D215: =IF(Name_Cost_VHigh="",0,D207*(1+Percent_Loading_VHigh)) -> 0 | E215: =IF(Name_Cost_VHigh="",0,E207*(1+Percent_Loading_VHigh)) -> 0
B217: 4.3. Review Costs of Other Huma Resource Strategies to be used in the final calculations
C218: =List_Facility_Sizes -> Small | D218: Medium
B219: =List_Costing_Groups -> Mid Cost | C219: =IF(Name_Cost_Mid="",0,IF(Name_Small="",0,IF(F213<>"",F213,C213))) -> 0 | D219: =IF(Name_Cost_Mid="",0,IF(Name_Medium="",0,IF(G213<>"",G213,D213))) -> 0 | E219: =IF(Name_Cost_Mid="",0,IF(Name_Large="",0,IF(H213<>"",H213,E213))) -> 0
B220: High Cost | C220: =IF(Name_Cost_High="",0,IF(Name_Small="",0,IF(F214<>"",F214,C214))) -> 0 | D220: =IF(Name_Cost_High="",0,IF(Name_Medium="",0,IF(G214<>"",G214,D214))) -> 0 | E220: =IF(Name_Cost_High="",0,IF(Name_Large="",0,IF(H214<>"",H214,E214))) -> 0
B221: Very High Cost | C221: =IF(Name_Cost_VHigh="",0,IF(Name_Small="",0,IF(F215<>"",F215,C215))) -> 0 | D221: =IF(Name_Cost_VHigh="",0,IF(Name_Medium="",0,IF(G215<>"",G215,D215))) -> 0 | E221: =IF(Name_Cost_VHigh="",0,IF(Name_Large="",0,IF(H215<>"",H215,E215))) -> 0
B223: STEP 5 - REVIEW TOTAL HUMAN RESOURCE DEVELOPMENT COSTS
B224: Review Total Human Resource Development Costs as estimated above.
B225: These are the sum of Supervision/Mentoring PLUS in-service training PLUS Other Human Resource Development Strategies
B226: Annual Human Resource Development Costs (Supervision + In-service Training + Other) | C226: =List_Facility_Sizes -> Small | D226: Medium
B227: =List_Costing_Groups -> Mid Cost | C227: =IF(Name_Cost_Mid="",0,IF(Name_Small="",0,C154+C190+C219)) -> 7880 | D227: =IF(Name_Cost_Mid="",0,IF(Name_Medium="",0,D154+D190+D219)) -> 14880 | E227: =IF(Name_Cost_Mid="",0,IF(Name_Large="",0,E154+E190+E219)) -> 0
B228: High Cost | C228: =IF(Name_Cost_High="",0,IF(Name_Small="",0,C155+C191+C220)) -> 8668 | D228: =IF(Name_Cost_High="",0,IF(Name_Medium="",0,D155+D191+D220)) -> 16368 | E228: =IF(Name_Cost_High="",0,IF(Name_Large="",0,E155+E191+E220)) -> 0
B229: Very High Cost | C229: =IF(Name_Cost_VHigh="",0,IF(Name_Small="",0,C156+C192+C221)) -> 9456 | D229: =IF(Name_Cost_VHigh="",0,IF(Name_Medium="",0,D156+D192+D221)) -> 17856 | E229: =IF(Name_Cost_VHigh="",0,IF(Name_Large="",0,E156+E192+E221)) -> 0
B231: STEP 6 - IDENTIFY AND COST ADDITIONAL STRATEGIES TO RECRUIT AND RETAIN STAFF IN HARD-TO-RECRUIT AND MOST CHALLENGING RECRUITMENT AREAS. LEAVE BLANK IF TYPOLOGY NOT INCLUDED.
B233: In this step you can include the cost of additional strategies specifically targeting the recruitment and retention of human resources in hard-to-recruit & most challenging recruit areas.
B234: Make sure you do not include strategies already costed above, such as financial incentives included in salaries and allowances for staff working in these areas
B235: Some of these new strategies might involve capital investments, such as providing housing or vehicles (i.e. motobikes) for transport in remote areas. These costs are entered in Step 3.1.
B236: Other strategies might involve recurrent costs, such as strategies for increased opportunities for training, mentoring or collaboration. These costs are entered in Step 3.2.
B239: Step 6.1. Identify recruitment and retainment strategies applicable and enter the amount of CAPITAL investments required.
B240: For example, if new houses needs to be built for nurses and doctors, enter total costs per facility size typology
... 22 more rows

Sheet 6.Referrals_Plan&Budget
B2: List of Options. HR & Equipment Requirements for this and next sheet.
B3: Yes
B4: No & Should be included
B5: Not Applicable
B10: FUNCTIONAL REFERRAL SYSTEM - PLANNING & BUDGETING
B11: WARNING: Do not copy and paste data into this workbook. Doing so may insert conflicting code and remove validation. Please enter data manually to ensure proper functionality
B12: MODULE OVERVIEW
B13: Identify key service parameters to estimate the expected number of referrals which will be used to estimate the associated transport costs
B14: Estimate and review costs for:
B15: Transport (Ambulance & Alternative Means of Transport)
B16: *Care coordination & communication systems
B17: Consider and review whether equipment and human resource costs in the previous modules have accounted for the referral system requirements, such as ambulance equipment & trained drivers
B18: Remember:
B19: Light blue cells are user inputs.
B20: Yellow cells are tool calculations not to be manually changed
B21: If required, cells in dark blue can be used for overriding modelled estimates. They can also be used to enter costs directly
B25: STEP 1. IDENTIFY KEY SERVICE PARAMETERS FOR FACILITY REFERRALS TO ESTIMATE TRANSPORT COSTS
B26: In this step the user will enter service parameters to estimate the transport costs of referrals
B27: Note that costs will be estimated separately for ambulance referrals and for referrals using other means of transport
B29: 1.1. Enter service parameters for referrals using the Facility Ambulance Transport
B30: Note: Leave blank or enter 0 if no referrals require funding for that type of transport
B32: Service Parameters - Facility Ambulance Referrals | C32: =List_Facility_Sizes -> Small | D32: Medium | F32: User Notes
B33: % of admissions expected to require referral by Facility Ambulance | C33: 0.4 | D33: 0.4
B34: Number of Vehicles Required per Facility | C34: 1 | D34: 1
B35: Average number of kilometers per ambulance referral round trip | C35: 70 | D35: 70
B38: 1.2. Enter Service Paramaters for referrals using Alternative Modes of Transport
B39: Note: Leave blank or enter 0 if no referrals require funding for that type of transport
C40: =List_Facility_Sizes -> Small | D40: Medium | F40: User Notes
B41: % of admissions expected to require alternative means of referral transport | C41: 0.1 | D41: 0.1
B43: 1.3. Review number of admissions requiring referral transport (Facility Ambulance + Alternative Means of Transport)
B44: This is estimated based on the number of expected admissions for each facility size (displayed here) and the % requiring referrals entered above. Included as reminders in light gray
C46: =List_Facility_Sizes -> Small | D46: Medium
B47: # of admissions requiring referrals using Facility Ambulance | C47: =ROUNDUP(IF(Name_Small="",0,C33*Admissions_Small),0) -> 270 | D47: =ROUNDUP(IF(Name_Medium="",0,D33*Admissions_Medium),0) -> 538 | E47: =ROUNDUP(IF(Name_Large="",0,E33*Admissions_Large),0) -> 0
B48: # of admissions requiring referrals using Alternative Means of Transport | C48: =ROUNDUP(IF(Name_Small="",0,C41*Admissions_Small),0) -> 68 | D48: =ROUNDUP(IF(Name_Medium="",0,D41*Admissions_Medium),0) -> 135 | E48: =ROUNDUP(IF(Name_Large="",0,E41*Admissions_Large),0) -> 0
B49: Total facility admissions | C49: =Admissions_Small -> 673 | D49: =Admissions_Medium -> 1345 | E49: =Admissions_Large -> 0
B50: All admissions requiring referral (Facility Ambulance + Other) as % of total | C50: =IF(Name_Small="",0,IF(ISNUMBER((Referrals_Ambulance_Small+Referrals_Other_Small)/Admissions_Small),(Referrals_Ambulance_Small+Referrals_Other_Small)/Admissions_Small,0)) -> 0.5022288262 | D50: =IF(Name_Medium="",0,IF(ISNUMBER((Referrals_Ambulance_Medium+Referrals_Other_Medium)/Admissions_Medium),(Referrals_Ambulance_Medium+Referrals_Other_Medium)/Admissions_Medium,0)) -> 0.5003717472 | E50: =IF(Name_Large="",0,IF(ISNUMBER((Referrals_Ambulance_Large+Referrals_Other_Large)/Admissions_Large),(Referrals_Ambulance_Large+Referrals_Other_Large)/Admissions_Large,0)) -> 0
B53: STEP 2 - ESTIMATE AND REVIEW COSTS OF REFERRALS USING FACILITY AMBULANCE TRANSPORT
B54: In this step the user will estimate and review costs of ambulance referrals, including acquiring ambulance vehicles, fuel and maintenance and other recurrent costs
B55: Remember that:
B56: * Annual salaries of facility staff such as trained drivers should be costed under human resources.
B57: * Neonatal transport equipment should be included under the facility equipment standards
B58: Leave blank if facility referrals are not transported by facility ambulance or if those costs are covered by other programs, such as national/regional/provincial emergency transportation services
B60: 2.1. Review Cost of Ambulance Vehicles, based on unit prices from inputs and required numbers. Make sure ambulance prices include GPS
B61: Note: costs will be 0 if facility typology not costed or there are no referrals by facility ambulance
B62: These costs are estimated based on the ambulance vehicle costs (from inputs) and the facility requirements set above. Included as reminders in light gray
B64: Ambulance Vehicle Acquisition Costs | C64: =List_Facility_Sizes -> Small | D64: Medium
B65: Acquisition costs of ambulance vehicle | C65: =IF(Name_Small="",0,C34*Price_AmbulanceVehicle) -> 100000 | D65: =IF(Name_Medium="", 0,D34*Price_AmbulanceVehicle) -> 100000 | E65: =IF(Name_Large="",0,E34*Price_AmbulanceVehicle) -> 0
B66: Ambulance vehicle (unit prices) | C66: =Price_AmbulanceVehicle -> 100000 | D66: =Price_AmbulanceVehicle -> 100000 | E66: =Price_AmbulanceVehicle -> 100000
B67: # of ambulance vehicles required by facility | C67: =C34 -> 1 | D67: =D34 -> 1 | E67: =E34 -> 0
B69: 2.2. Review if the ambulance neonatal equipment was included under the facility equipment requirements? Click Go to The Equipment Tab if required
D71: User Notes
B72: Did you include the equipment required for safe transport of newborns under the facility equipment standards? | C72: No & Should be included
C73: =IF(C72="No & Should be included", "ERROR. GO BACK TO EQUIPMENT", " " ) -> ERROR. GO BACK TO EQUIPMENT
B75: 2.3. Review cost inputs of fuel and maintenance for ambulance referrals transport
B76: Note: These were entered under Step 7.2 under the General Inputs Tab and are shown here as a reminder
B78: Ambulance fuel cost per kilometer | C78: ='1.General_Inputs_Plan&Budget'!C314 -> 0.12
B79: Ambulance maintenance cost per kilometer | C79: ='1.General_Inputs_Plan&Budget'!C315 -> 0.06
B82: 2.4. Identify strategies to support ambulance transport referrals and enter other costs per referral trip
B83: Include costs such as fees for community workers to accompany the baby and the mother & remember these are unit costs per referral trip
C84: Unit Cost per Referral Trip | D84: User Notes
B85: Vouchers | C85: 5
B88: Total Other Ambulance Referral Costs | C88: =SUM(C85:C87) -> 5
B91: 2.5. Review recurrent Facility Ambulance costs (fuel & maintenance + Other) by facility typology and enter user-defined estimates if required
B92: Review total recurrent costs of ambulance referrals (after applying cost loadings from inputs) and override modelled estimates if required
B93: To facilitate this review, intermediate calculations for fuel & maintenance and other annual costs by typology are included in light gray cells.
B94: * Fuel & maintenance costs are estimated based on number of referrals, kilometers per referral and fuel and maintenance costs reviewed above .
B95: * Other annual ambulance referral costs are estimated based on the expected number of referrals & costs per referral trip entered above.
F96: Enter user-defined numbers here. Note they override modelled estimates | I96: User Notes
B97: Recurrent Annual Facility Ambulance Transport Costs | C97: =List_Facility_Sizes -> Small | D97: Medium | F97: =List_Facility_Sizes -> Small | G97: Medium
B98: =List_Costing_Groups -> Mid Cost | C98: =C103+C107 -> 4752 | D98: =D103+D107 -> 9468.8 | E98: 0
B99: High Cost | C99: =C104+C108 -> 5227.2 | D99: 10415.68 | E99: 0
B100: Very High Cost | C100: =C105+C109 -> 5702.4 | D100: 11362.56 | E100: 0
B102: Annual Ambulance Fuel & Maintenance Costs | C102: =List_Facility_Sizes -> Small | D102: Medium
B103: =List_Costing_Groups -> Mid Cost | C103: =IF(Name_Cost_Mid="",0,IF(Name_Small="",0,(Referrals_Ambulance_Small*Referrals_Kilometers_Small)*(($C$78+$C$79)*(1+Percent_Loading_Mid)))) -> 3402 | D103: =IF(Name_Cost_Mid="",0,IF(Name_Medium="",0,(Referrals_Ambulance_Medium*Referrals_Kilometers_Medium)*(($C$78+$C$79)*(1+Percent_Loading_Mid)))) -> 6778.8 | E103: =IF(Name_Cost_Mid="",0,IF(Name_Large="",0,(Referrals_Ambulance_Large*Referrals_Kilometers_Large)*(($C$78+$C$79)*(1+Percent_Loading_Mid)))) -> 0
B104: High Cost | C104: =IF(Name_Cost_High="",0,IF(Name_Small="",0,(Referrals_Ambulance_Small*Referrals_Kilometers_Small)*(($C$78+$C$79)*(1+Percent_Loading_High)))) -> 3742.2 | D104: =IF(Name_Cost_High="",0,IF(Name_Medium="",0,(Referrals_Ambulance_Medium*Referrals_Kilometers_Medium)*(($C$78+$C$79)*(1+Percent_Loading_High)))) -> 7456.68 | E104: =IF(Name_Cost_High="",0,IF(Name_Large="",0,(Referrals_Ambulance_Large*Referrals_Kilometers_Large)*(($C$78+$C$79)*(1+Percent_Loading_High)))) -> 0
B105: Very High Cost | C105: =IF(Name_Cost_VHigh="",0,IF(Name_Small="",0,(Referrals_Ambulance_Small*Referrals_Kilometers_Small)*(($C$78+$C$79)*(1+Percent_Loading_VHigh)))) -> 4082.4 | D105: =IF(Name_Cost_VHigh="",0,IF(Name_Medium="",0,(Referrals_Ambulance_Medium*Referrals_Kilometers_Medium)*(($C$78+$C$79)*(1+Percent_Loading_VHigh)))) -> 8134.56 | E105: =IF(Name_Cost_VHigh="",0,IF(Name_Large="",0,(Referrals_Ambulance_Large*Referrals_Kilometers_Large)*(($C$78+$C$79)*(1+Percent_Loading_VHigh)))) -> 0
B106: Other Annual Ambulance Referral Costs | C106: =List_Facility_Sizes -> Small | D106: Medium
B107: =List_Costing_Groups -> Mid Cost | C107: =IF(Name_Cost_Mid="",0,IF(Name_Small="",0,(Referrals_Ambulance_Small*(($C$88)*(1+Percent_Loading_Mid))))) -> 1350 | D107: =IF(Name_Cost_Mid="",0,IF(Name_Medium="",0,(Referrals_Ambulance_Medium*(($C$88)*(1+Percent_Loading_Mid))))) -> 2690 | E107: =IF(Name_Cost_Mid="",0,IF(Name_Large="",0,(Referrals_Ambulance_Large*(($C$88)*(1+Percent_Loading_Mid))))) -> 0
B108: High Cost | C108: =IF(Name_Cost_High="",0,IF(Name_Small="",0,(Referrals_Ambulance_Small*(($C$88)*(1+Percent_Loading_High))))) -> 1485 | D108: =IF(Name_Cost_High="",0,IF(Name_Medium="",0,(Referrals_Ambulance_Medium*(($C$88)*(1+Percent_Loading_High))))) -> 2959 | E108: =IF(Name_Cost_High="",0,IF(Name_Large="",0,(Referrals_Ambulance_Large*(($C$88)*(1+Percent_Loading_High))))) -> 0
B109: Very High Cost | C109: =IF(Name_Cost_VHigh="",0,IF(Name_Small="",0,(Referrals_Ambulance_Small*(($C$88)*(1+Percent_Loading_VHigh))))) -> 1620 | D109: =IF(Name_Cost_VHigh="",0,IF(Name_Medium="",0,(Referrals_Ambulance_Medium*(($C$88)*(1+Percent_Loading_VHigh))))) -> 3228 | E109: =IF(Name_Cost_VHigh="",0,IF(Name_Large="",0,(Referrals_Ambulance_Large*(($C$88)*(1+Percent_Loading_VHigh))))) -> 0
B112: 2.6 Review Recurrent Annual Facility Ambulance Costs to be used in final estimates
B114: =B97 -> Recurrent Annual Facility Ambulance Transport Costs | C114: =List_Facility_Sizes -> Small | D114: Medium
B115: =List_Costing_Groups -> Mid Cost | C115: =IF(Name_Cost_Mid="",0,IF(Name_Small="",0,IF(F98<>"",F98,C98))) -> 4752 | D115: =IF(Name_Cost_Mid="",0,IF(Name_Medium="",0,IF(G98<>"",G98,D98))) -> 9468.8 | E115: =IF(Name_Cost_Mid="",0,IF(Name_Large="",0,IF(H98<>"",H98,E98))) -> 0
B116: High Cost | C116: =IF(Name_Cost_High="",0,IF(Name_Small="",0,IF(F99<>"",F99,C99))) -> 5227.2 | D116: =IF(Name_Cost_High="",0,IF(Name_Medium="",0,IF(G99<>"",G99,D99))) -> 10415.68 | E116: =IF(Name_Cost_High="",0,IF(Name_Large="",0,IF(H99<>"",H99,E99))) -> 0
B117: Very High Cost | C117: =IF(Name_Cost_VHigh="",0,IF(Name_Small="",0,IF(F100<>"",F100,C100))) -> 5702.4 | D117: =IF(Name_Cost_VHigh="",0,IF(Name_Medium="",0,IF(G100<>"",G100,D100))) -> 11362.56 | E117: =IF(Name_Cost_VHigh="",0,IF(Name_Large="",0,IF(H100<>"",H100,E100))) -> 0
B120: STEP 3 - ESTIMATE AND REVIEW COSTS OF REFERRALS USING ALTERNATIVE MEANS OF TRANSPORT
B122: 3.1. Enter cost parameters for referrals requiring alternative means of transport
B123: Remember to enter costs per referral
B124: First enter unit costs per referral requiring Alternative Means of Transport | C124: Unit Costs per Referral | D124: User Notes
B125: Transport fee (vehicle with equipment and driver) | C125: 15
B126: Community health worker fees | C126: 5
B130: Total | C130: =SUM(C125:C129) -> 20
B132: 3.2.Review annual costs of referrals using alternative means of transport by facility size and locatioon typology. Use dark blue cellss to override modelled estimates as required
B133: Note that these costs are estimated based on the unit costs per referral adjusted by loadings/mark-ups and the expected number of referrals using other means of transport
C135: Annual Cost of Alternative Means of Referral Transport by Facility Typology | F135: Enter user-defined numbers here. Note they override modelled estimates | I135: User Notes
C136: =List_Facility_Sizes -> Small | D136: Medium | F136: =List_Facility_Sizes -> Small | G136: Medium
B137: =List_Costing_Groups -> Mid Cost | C137: =IF(Name_Cost_Mid="",0,IF(Name_Small="",0,(Referrals_Other_Small*$C$130*(1+Percent_Loading_Mid)))) -> 1360 | D137: =IF(Name_Cost_Mid="",0,IF(Name_Medium="",0,(Referrals_Other_Medium*$C$130*(1+Percent_Loading_Mid)))) -> 2700 | E137: =IF(Name_Cost_Mid="",0,IF(Name_Large="",0,(Referrals_Other_Large*$C$130*(1+Percent_Loading_Mid)))) -> 0
B138: High Cost | C138: =IF(Name_Cost_High="",0,IF(Name_Small="",0,(Referrals_Other_Small*$C$130*(1+Percent_Loading_High)))) -> 1496 | D138: =IF(Name_Cost_High="",0,IF(Name_Medium="",0,(Referrals_Other_Medium*$C$130*(1+Percent_Loading_High)))) -> 2970 | E138: =IF(Name_Cost_High="",0,IF(Name_Large="",0,(Referrals_Other_Large*$C$130*(1+Percent_Loading_High)))) -> 0
B139: Very High Cost | C139: =IF(Name_Cost_VHigh="",0,IF(Name_Small="",0,(Referrals_Other_Small*$C$130*(1+Percent_Loading_VHigh)))) -> 1632 | D139: =IF(Name_Cost_VHigh="",0,IF(Name_Medium="",0,(Referrals_Other_Medium*$C$130*(1+Percent_Loading_VHigh)))) -> 3240 | E139: =IF(Name_Cost_VHigh="",0,IF(Name_Large="",0,(Referrals_Other_Large*$C$130*(1+Percent_Loading_VHigh)))) -> 0
B141: 3.3. Review Recurrent Costs for alternative means of transport to be used in the final calculations
C142: =List_Facility_Sizes -> Small | D142: Medium
B143: =List_Costing_Groups -> Mid Cost | C143: =IF(Name_Cost_Mid="",0,IF(Name_Small="",0,IF(F137<>"",F137,C137))) -> 1360 | D143: =IF(Name_Cost_Mid="",0,IF(Name_Medium="",0,IF(G137<>"",G137,D137))) -> 2700 | E143: =IF(Name_Cost_Mid="",0,IF(Name_Large="",0,IF(H137<>"",H137,E137))) -> 0
B144: High Cost | C144: =IF(Name_Cost_High="",0,IF(Name_Small="",0,IF(F138<>"",F138,C138))) -> 1496 | D144: =IF(Name_Cost_High="",0,IF(Name_Medium="",0,IF(G138<>"",G138,D138))) -> 2970 | E144: =IF(Name_Cost_High="",0,IF(Name_Large="",0,IF(H138<>"",H138,E138))) -> 0
B145: Very High Cost | C145: =IF(Name_Cost_VHigh="",0,IF(Name_Small="",0,IF(F139<>"",F139,C139))) -> 1632 | D145: =IF(Name_Cost_VHigh="",0,IF(Name_Medium="",0,IF(G139<>"",G139,D139))) -> 3240 | E145: =IF(Name_Cost_VHigh="",0,IF(Name_Large="",0,IF(H139<>"",H139,E139))) -> 0
B148: STEP 4. IDENTIFY, COST & REVIEW COMMUNICATIONS & COORDINATION SYSTEM REQUIREMENTS FOR REFERRALS (Excluding human resources costed elsewhere)
B150: 4.1. Identify Equipment Requirements
B151: Review if the equipment requirements such as phones & computers were included under the equipment & commodities module. Click Go to The Equipment Tab if required
B152: If equipment is funded separately as part of the Emergency Services budget, select Not Applicable
D154: User Notes
B155: Did you include equipment requirements, such as computers and phones, under 'office and communication equipment' standards in the previous module? | C155: No & Should be included
C156: =IF(C155="No & Should be included", "ERROR. GO BACK TO EQUIPMENT", " " ) -> ERROR. GO BACK TO EQUIPMENT
B159: 4.2. Identify and include additional recurrent costs associated with communications and coordination requirements for referrals, not costed elsewhere
B160: For example, you can include here expenses related to internet, mobile or landphone for communication exchanges with other facilities
B161: You can also include here other costs such as those associated with supporting in-referrals from lower-level facilities & the community, such as mentoring to facility staff and community health workers
B163: Recurrent costs - Coordination & Communications Systems for Referrals | C163: Other Referral Annual Recurrent Costs | F163: User Notes
C164: =List_Facility_Sizes -> Small | D164: Medium
B165: Facility internet and phone bills | C165: 1000 | D165: 1000
B171: Total Communication & Coordination Recurrent Costs | C171: =IF(Name_Small="",0,SUM(C165:C170)) -> 1000 | D171: =IF(Name_Medium="",0,SUM(D165:D170)) -> 1000 | E171: =IF(Name_Large="",0,SUM(E165:E170)) -> 0
B173: 4.3. Review additional recurrent costs for referrals by size and location typologies and override modelled estimates as required
C175: Other Referral Annual Recurrent Costs | F175: Enter user-defined numbers here. Note they override modelled estimates | I175: User Notes
C176: =List_Facility_Sizes -> Small | D176: Medium | F176: =List_Facility_Sizes -> Small | G176: Medium
B177: =List_Costing_Groups -> Mid Cost | C177: =IF(Name_Cost_Mid="",0,IF(Name_Small="",0,C171*(1+Percent_Loading_Mid))) -> 1000 | D177: =IF(Name_Cost_Mid="",0,IF(Name_Medium="",0,D171*(1+Percent_Loading_Mid))) -> 1000 | E177: =IF(Name_Cost_Mid="",0,IF(Name_Large="",0,E171*(1+Percent_Loading_Mid))) -> 0
B178: High Cost | C178: =IF(Name_Cost_High="",0,IF(Name_Small="",0,C171*(1+Percent_Loading_High))) -> 1100 | D178: =IF(Name_Cost_High="",0,IF(Name_Medium="",0,D171*(1+Percent_Loading_High))) -> 1100 | E178: =IF(Name_Cost_High="",0,IF(Name_Large="",0,E171*(1+Percent_Loading_High))) -> 0
B179: Very High Cost | C179: =IF(Name_Cost_VHigh="",0,IF(Name_Small="",0,C171*(1+Percent_Loading_VHigh))) -> 1200 | D179: =IF(Name_Cost_VHigh="",0,IF(Name_Medium="",0,D171*(1+Percent_Loading_VHigh))) -> 1200 | E179: =IF(Name_Cost_VHigh="",0,IF(Name_Large="",0,E171*(1+Percent_Loading_VHigh))) -> 0
B181: 4.4. Review additional recurrent referral costs to be used in Step 4 to estimate recurrent referrals costs
C182: =List_Facility_Sizes -> Small | D182: Medium
B183: =List_Costing_Groups -> Mid Cost | C183: =IF(Name_Cost_Mid="",0,IF(Name_Small="",0,IF(F177<>"",F177,C177))) -> 1000 | D183: =IF(Name_Cost_Mid="",0,IF(Name_Medium="",0,IF(G177<>"",G177,D177))) -> 1000 | E183: =IF(Name_Cost_Mid="",0,IF(Name_Large="",0,IF(H177<>"",H177,E177))) -> 0
B184: High Cost | C184: =IF(Name_Cost_High="",0,IF(Name_Small="",0,IF(F178<>"",F178,C178))) -> 1100 | D184: =IF(Name_Cost_High="",0,IF(Name_Medium="",0,IF(G178<>"",G178,D178))) -> 1100 | E184: =IF(Name_Cost_High="",0,IF(Name_Large="",0,IF(H178<>"",H178,E178))) -> 0
B185: Very High Cost | C185: =IF(Name_Cost_VHigh="",0,IF(Name_Small="",0,IF(F179<>"",F179,C179))) -> 1200 | D185: =IF(Name_Cost_VHigh="",0,IF(Name_Medium="",0,IF(G179<>"",G179,D179))) -> 1200 | E185: =IF(Name_Cost_VHigh="",0,IF(Name_Large="",0,IF(H179<>"",H179,E179))) -> 0
B188: STEP 5 - REVIEW FACILITY RECURRENT COSTS FOR TRANSPORT, COORDINATION AND COMMUNICATIONS (All Referrrals)
B189: Review recurrent costs for facility referrals, excluding human resources. They include transport costs (ambulance & other) as well as communications and coordination costs estimated in the previous steps
B191: Referral Recurrent Costs (Transport, Communication & Coordination)* | C191: =List_Facility_Sizes -> Small | D191: Medium
B192: =List_Costing_Groups -> Mid Cost | C192: =IF(Name_Cost_Mid="",0,IF(Name_Small="",0,C183+C143+Cost_Ambulance_Annual_Small_Mid)) -> 7112 | D192: =IF(Name_Cost_Mid="",0,IF(Name_Medium="",0,D183+D143+Cost_Ambulance_Annual_Medium_Mid)) -> 13168.8 | E192: =IF(Name_Cost_Mid="",0,IF(Name_Large="",0,E183+E143+Cost_Ambulance_Annual_Large_Mid)) -> 0
B193: High Cost | C193: =IF(Name_Cost_High="",0,IF(Name_Small="",0,C184+C144+Cost_Ambulance_Annual_Small_High)) -> 7823.2 | D193: =IF(Name_Cost_High="",0,IF(Name_Medium="",0,D184+D144+Cost_Ambulance_Annual_Medium_High)) -> 14485.68 | E193: =IF(Name_Cost_High="",0,IF(Name_Large="",0,E184+E144+Cost_Ambulance_Annual_Large_High)) -> 0
B194: Very High Cost | C194: =IF(Name_Cost_VHigh="",0,IF(Name_Small="",0,C185+C145+Cost_Ambulance_Annual_Small_VHigh)) -> 8534.4 | D194: =IF(Name_Cost_VHigh="",0,IF(Name_Medium="",0,D185+D145+Cost_Ambulance_Annual_Medium_VHigh)) -> 15802.56 | E194: =IF(Name_Cost_VHigh="",0,IF(Name_Large="",0,E185+E145+Cost_Ambulance_Annual_Large_VHigh)) -> 0
B195: * Excludes facility staff salaries
B197: STEP 6. REVIEW THAT HUMAN RESOURCES REQUIREMENTS FOR REFERRAL SYSTEMS, INCLUDING FOR TRANSPORT, COMMUNICATIONS AND COORDINATION HAVE BEEN INCLUDED IN FACILITY STANDARDS
B199: 6.1. Identify if staff ratios have taken into consideration workloads related to referrals, such as liaising with other facilities, filling out referral forms and accompanying newborns and mothers during transport as required. Click Go to The HR Tab if required
D201: User Notes
B202: Did you account for the time needed by facility health staff to support referrals when setting facility staff standards under Human Resources? Select Yes/No | C202: No
C203: =IF(C202="No", "ERROR. GO BACK TO HUMAN RESOURCES", " " ) -> ERROR. GO BACK TO HUMAN RESOURCES
B205: 6.2. Identify if additional human resources for referrals such as drivers or call center staff have been included as part of facility human resource standards. Click Go to The HR Tab if required
B206: In instances where those human resources are not required, the answer should be "No, but other arrangements in place".
B208: First, review human resource standards for transport
D209: User Notes
B210: Did you include transport staff, such as trained ambulance drivers when setting facility staff standards under Human Resources? ? | C210: No & Should be included
C211: =IF(C210="No & Should be included", "ERROR. GO BACK TO HUMAN RESOURCES", " " ) -> ERROR. GO BACK TO HUMAN RESOURCES
B213: Second, review human resource standards for communications and care coordination. Click Go to The HR Tab if required
D214: User Notes
B215: Did you include coordination/communications staff, such as call centre officers, when setting facility staff standards under Human Resources? | C215: No & Should be included
C216: =IF(C215="No & Should be included", "ERROR. GO BACK TO HUMAN RESOURCES", " " ) -> ERROR. GO BACK TO HUMAN RESOURCES
B218: 6.3. Identify if referral training for facility, transport and communications staff has been included as part of human development strategies. Click Go to The HR Tab (training) if required
D220: User Notes
B221: Did you include under mandatory in-service trainings any requirements related to referrals, communications and care coordination? | C221: No & Should be included
C222: =IF(C221="No & Should be included", "ERROR. GO BACK TO HUMAN RESOURCES", " " ) -> ERROR. GO BACK TO HUMAN RESOURCES

Sheet 7.Other_Facility_Plan&Budget
B2: OTHER COMPONENTS OF SCALING-UP THE MODEL OF CARE (FACILITY LEVEL) - PLANNING & BUDGETING
B3: WARNING: Do not copy and paste data into this workbook. Doing so may insert conflicting code and remove validation. Please enter data manually & choose from dropdown menu where available to ensure proper functionality
B4: MODULE OVERVIEW
B5: In this module you will review and identify costs for other components of scaling-up the model of care @ facility level:
B6: =B69 -> Robust Data Systems
B7: =B89 -> Linkage of Maternal & Newborn Care
B8: =B104 -> Family & Community Involvement and Support
B9: =B124 -> Post-Discharge Follow-Up
B10: You will also have the opportunity to include additional facility-level costs for strategies related to infection prevention and control & other recurrent costs (e.g. utilities) not costed elsewhere
B11: Note this module should only be used to estimate annual recurrent costs, excluding human resources which as noted below are costed elsewhere
B12: Any capital investments needed should be also be costed as part of equipment or infrastructure.
B13: Reminder menus are included to provide some initial pointers for consideration.
B14: Light blue cells are user inputs.
B15: Yellow cells are tool calculations or contain reminder menus for strategies. They cannot be manually changed by the user
B16: If required, cells in dark blue (at the end) can be used for overriding modelled estimates.
B18: STEP 1 - REVIEW IF FACILITY STANDARDS FOR EQUIPMENT INCLUDE ASSOCIATED REQUIEMENTS FOR OTHER MODEL OF CARE COMPONENTS
B20: Review if you included any additional equipment requirements for other facility components of small and sick newborn care. Click Go to The Equipment Tab if required
B21: This will help you ensure that additional equipment requirements, such as computers for robust data systems are included and costed under facility equipment.
B22: Note that we have also included infection prevention & control here to ensure any equipment requirements such as personal protective equipment have been duly considered.
B23: Select answer for each component listed below and add any relevant notes
B25: Other Facility-Level Components of Small and Sick Newborn Care | C25: Did you include additional equipment requirements related to this component? | F25: User Notes
A26: Cols G& H have formula | B26: Robust data systems | G26: =IF(C26="No & Should be included", "ERROR. GO BACK TO EQUIPMENT", " " ) -> 
A27: Cols G& H have formula | B27: Linkage of maternal and newborn care | G27: =IF(C27="No & Should be included", "ERROR. GO BACK TO EQUIPMENT", " " ) -> 
A28: Cols G& H have formula | B28: Family & community involvement and support
A29: Cols G& H have formula | B29: Post-discharge follow-up at facility and at home | G29: =IF(C29="No & Should be included", "ERROR. GO BACK TO EQUIPMENT", " " ) -> 
A30: Cols G& H have formula | B30: Infection Prevention & Control | G30: =IF(C30="No & Should be included", "ERROR. GO BACK TO EQUIPMENT", " " ) -> 
B32: STEP 2 - REVIEW IF FACILITY STANDARDS FOR HUMAN RESOURCES INCLUDE ASSOCIATED REQUIEMENTS FOR OTHER MODEL OF CARE COMPONENTS
B34: 2.1. Review if you included any staff requirements associated with other facility components of small and sick newborn care. Click Go to The HR Tab if required
B35: This will help you ensure that:
B36: a) additional staff, such as data clerks for robust data systems are included & costed
B37: b) facility staff ratios are adequate for the expected workload, which should include additional tasks related to all of these components
B38: Note that we have also included infection prevention & control here to ensure users consider any staff requirements, such as housekeepers/cleaners & training needs
B39: Select answer for each component listed below and add any relevant notes.
B41: =B$25 -> Other Facility-Level Components of Small and Sick Newborn Care | C41: Did you include staff requirements related to this component? | F41: User Notes
A42: Cols G& H have formula | B42: =B$26 -> Robust data systems | G42: =IF(C42="No & Should be included", "ERROR. GO BACK TO HUMAN RESOURCES", " " ) -> 
A43: Cols G& H have formula | B43: =B$27 -> Linkage of maternal and newborn care | G43: =IF(C43="No & Should be included", "ERROR. GO BACK TO HUMAN RESOURCES", " " ) -> 
A44: Cols G& H have formula | B44: =B$28 -> Family & community involvement and support
A45: Cols G& H have formula | B45: =B$29 -> Post-discharge follow-up at facility and at home
A46: Cols G& H have formula | B46: Infection Prevention & Control | G46: =IF(C46="No & Should be included", "ERROR. GO BACK TO HUMAN RESOURCES", " " ) -> 
B48: 2.2. Review if you included any additional training requirements for other facility components of small and sick newborn care. Click Go to The HR Tab if required
B49: Select answer for each component listed below and add any relevant notes
B51: =B$25 -> Other Facility-Level Components of Small and Sick Newborn Care | C51: Did you include training requirements related to this component? | F51: User Notes
A52: Cols G& H have formula | B52: =B$26 -> Robust data systems | G52: =IF(C52="No & Should be included", "ERROR. GO BACK TO HUMAN RESOURCES", " " ) -> 
A53: Cols G& H have formula | B53: =B$27 -> Linkage of maternal and newborn care | G53: =IF(C53="No & Should be included", "ERROR. GO BACK TO HUMAN RESOURCES", " " ) -> 
A54: Cols G& H have formula | B54: =B$28 -> Family & community involvement and support
A55: Cols G& H have formula | B55: =B$29 -> Post-discharge follow-up at facility and at home
A56: Cols G& H have formula | B56: Infection Prevention & Control | G56: =IF(C56="No & Should be included", "ERROR. GO BACK TO HUMAN RESOURCES", " " ) -> 
B58: STEP 3 - IDENTIFY ADDITIONAL STRATEGIES & COSTS ASSOCIATED WITH OTHER COMPONENTS OF THE MODEL OF CARE NOT INCLUDED ELSEWHERE
B59: This is to account for any additional recurrent expenditure that was not costed under the previous modules.
B60: Remember that
B61: a) as in the previous two steps, additional facility equipment and staff requirements should be costed under the equipment and human resources modules.
B62: b) additional infrastructure such as adequate space for mothers and families should be costed under infrastructure
B63: Enter any additional costs in the blue cells. Grey cells are locked.
B64: You can enter sub-categories in dark blue cells. Yellow cells include a reminding menu of potential strategies to consider.
B66: =CONCATENATE("3.1. Identify ", B69, " strategies & estimate any additional costs at facility level") -> 3.1. Identify Robust Data Systems strategies & estimate any additional costs at facility level
C68: Additional annual facility costs required
B69: Robust Data Systems | C69: =List_Facility_Sizes -> Small | D69: Medium | F69: User Notes | G69: Reminder Notes
B70: Consumables & other office-related costs | G70: Consider strategies and costs related to: *Ensuring sufficient numbers of printed case record sheets & registries * Providing an adequate supply of office consumables such as paper & print toner *Regular audits & quality assurance *Perinatal death reviews * Regional meetings to improve data collection, analysis and use of data * Developing and implementing facility protocols and standard operating procedures *Community engagement and feedback.
B71: Printing of case record sheets & registers | C71: 1000 | D71: 1500
B72: Office equipment consumables such as paper & print toner
B73: Perinatal death reviews
B74: Team Reviews of the unit's data
B75: Regional meetings with other facilities
B76: Supporting a QoC champion in each facility
B77: Developing and implementation of facility protocols
B78: Family's feedback on services
B85: Annual Additional Costs | C85: =IF(Name_Small="",0,SUM(C70:C84)) -> 1000 | D85: =IF(Name_Medium="",0,SUM(D70:D84)) -> 1500 | E85: =IF(Name_Large="",0,SUM(E70:E84)) -> 0
B87: =CONCATENATE("3.2. Identify ", B89, " strategies & estimate any additional costs at facility level") -> 3.2. Identify Linkage of Maternal & Newborn Care strategies & estimate any additional costs at facility level
C88: Additional annual facility costs required | G88: =G69 -> Reminder Notes
B89: Linkage of Maternal & Newborn Care | C89: =List_Facility_Sizes -> Small | D89: Medium | F89: User Notes | G89: Consider any additional costs for Level II facilities related to: * Zero separation policy and *Mechanisms to foster collaboration among health care profesionals, including obstetricians, midwives, neonatologists and neonatal nurses.
B90: Facility space inc. requirements for zero separation of mother and baby | F90: Included under infrastructure requirements
B91: Mother's education to ensure zero separation policy
B100: Annual Additional Costs | C100: =IF(Name_Small="",0,SUM(C90:C99)) -> 0 | D100: =IF(Name_Medium="",0,SUM(D90:D99)) -> 0 | E100: =IF(Name_Large="",0,SUM(E90:E99)) -> 0
B102: =CONCATENATE("3.3. Identify ", B104, " strategies & estimate any additional costs at facility level") -> 3.3. Identify Family & Community Involvement and Support strategies & estimate any additional costs at facility level
C103: Additional annual facility costs required
B104: Family & Community Involvement and Support | C104: =List_Facility_Sizes -> Small | D104: Medium | F104: User Notes | G104: =G69 -> Reminder Notes
B105: Producing information, education and communications material in the local language | G105: Consider strategies related to: *Compassionate and respectful care *Mother/family participation in decision making and care provision Additional costs might include those associated with: *Information, education & communication campaigns provided in the local language and tailored to each community *Behavioural change interventions *Developing and implementing facility protocols & standard operating procedures.
B106: Developing and implementing facility protocols and SoP
B107: Linking families with community health workers
B120: Annual Additional Costs | C120: =IF(Name_Small="",0,SUM(C105:C119)) -> 0 | D120: =IF(Name_Medium="",0,SUM(D105:D119)) -> 0 | E120: =IF(Name_Large="",0,SUM(E105:E119)) -> 0
B122: =CONCATENATE("3.4. Identify ", B124, " strategies & estimate any additional costs at facility level") -> 3.4. Identify Post-Discharge Follow-Up strategies & estimate any additional costs at facility level
C123: Additional annual facility costs required
B124: Post-Discharge Follow-Up | C124: =List_Facility_Sizes -> Small | D124: Medium | F124: User Notes | G124: =G69 -> Reminder Notes
B125: Social and behavioral change interventions, inc. patient education | G125: Consider strategies and costs related to: *Deploying community health workers to conduct post-discharge follow-up visits *Appointment scheduling and reminders systems *Patient education about the importance of post-discharge follow-up *Addressing transport barriers, including financial support for transport to attend post-discharge follow-up appointments
B126: Transport vouchers for families to visit health facility for follow-up
B127: Developing and disseminating protocols for discharge & post-discharge plans
B128: Home visits by trained community health workers | C128: 2200 | D128: 4400 | F128: Assume annual average of $3 per newborn
B129: SMS/Phone reminder system
B140: Annual Additional Costs | C140: =IF(Name_Small="",0,SUM(C125:C139)) -> 2200 | D140: =IF(Name_Medium="",0,SUM(D125:D139)) -> 4400 | E140: =IF(Name_Large="",0,SUM(E125:E139)) -> 0
B142: =CONCATENATE("3.5. Identify ", B144, " strategies & estimate any additional costs at facility level") -> 3.5. Identify Infection prevention & control inc. WASH strategies & estimate any additional costs at facility level
C143: Additional annual facility costs required
B144: Infection prevention & control inc. WASH | C144: =List_Facility_Sizes -> Small | D144: Medium | F144: User Notes | G144: =G69 -> Reminder Notes
B145: Cleaning & linen management protocols inc. daily, weekly and monthly routines | G145: Consider strategies & costs related to: *Use of personal protective equipment *Cleaning & linen management protocols (e.g. availability of consumables) * Waste management *Microbiological surveillance *Fire safety *WASH.
B146: Availability of cleaning & linen management consumables
B147: Waste management protocols
B148: Microbiological surveillance
B160: Annual Additional Costs | C160: =IF(Name_Small="",0,SUM(C145:C159)) -> 0 | D160: =IF(Name_Medium="",0,SUM(D145:D159)) -> 0 | E160: =IF(Name_Large="",0,SUM(E145:E159)) -> 0
B162: =CONCATENATE("3.6. Identify ", B164, " strategies applicable in country with costs not already included in other modules & estimate any additional costs at facility level") -> 3.6. Identify Other strategies applicable in country with costs not already included in other modules & estimate any additional costs at facility level
C163: Additional annual facility costs required
B164: Other | C164: =List_Facility_Sizes -> Small | D164: Medium | F164: User Notes
B165: Utilities?
B175: Annual Additional Costs | C175: =IF(Name_Small="",0,SUM(C165:C174)) -> 0 | D175: =IF(Name_Medium="",0,SUM(D165:D174)) -> 0 | E175: =IF(Name_Large="",0,SUM(E165:E174)) -> 0
B178: STEP 4 - REVIEW & VALIDATE ANNUAL ADDITIONAL COSTS FOR OTHER COMPONENTS OF THE MODEL OF CARE (BY TYPOLOGY)
B180: 4.1. Review Additional Facility Annual Costs to deliver Small and Sick Newborn Care not included elsewhere
B182: Other Components - Annual Costs | C182: =List_Facility_Sizes -> Small | D182: Medium
B183: =B69 -> Robust Data Systems | C183: =IF(Number_Beds_Small=0,0,C85) -> 1000 | D183: =IF(Number_Beds_Medium=0,0,D85) -> 1500 | E183: =IF(Number_Beds_Large=0,0,E85) -> 0
B184: =B89 -> Linkage of Maternal & Newborn Care | C184: =IF(Number_Beds_Small=0,0,C100) -> 0 | D184: =IF(Number_Beds_Medium=0,0,D100) -> 0 | E184: =IF(Number_Beds_Large=0,0,E100) -> 0
B185: =B104 -> Family & Community Involvement and Support | C185: =IF(Number_Beds_Small=0,0,C120) -> 0 | D185: =IF(Number_Beds_Medium=0,0,D120) -> 0 | E185: =IF(Number_Beds_Large=0,0,E120) -> 0
B186: =B124 -> Post-Discharge Follow-Up | C186: =IF(Number_Beds_Small=0,0,C140) -> 2200 | D186: =IF(Number_Beds_Medium=0,0,D140) -> 4400 | E186: =IF(Number_Beds_Large=0,0,E140) -> 0
B187: =B144 -> Infection prevention & control inc. WASH | C187: =IF(Number_Beds_Small=0,0,C160) -> 0 | D187: =IF(Number_Beds_Medium=0,0,D160) -> 0 | E187: =IF(Number_Beds_Large=0,0,E160) -> 0
B188: =B164 -> Other | C188: =IF(Number_Beds_Small=0,0,C175) -> 0 | D188: =IF(Number_Beds_Medium=0,0,D175) -> 0 | E188: =IF(Number_Beds_Large=0,0,E175) -> 0
B189: Total Other Model of Care Components | C189: =IF(Number_Beds_Small=0,0,SUM(C183:C188)) -> 3200 | D189: =IF(Number_Beds_Medium=0,0,SUM(D183:D188)) -> 5900 | E189: =IF(Number_Beds_Large=0,0,SUM(E183:E188)) -> 0
B192: 4.2. Review Other Components - Annual Costs by Facility Size and Location Typology (after applying cost loadings from inputs)
B193: This table uses cost loadings to estimate costs by facility location/cost typology
B194: As required, estimates can be modified in the dark blue cells. | F194: ='4.Equip_Other_Plan&Budget'!G150 -> Enter user-defined costs here. Note they override modelled estimates | I194: User Notes
B195: =B182 -> Other Components - Annual Costs | C195: =List_Facility_Sizes -> Small | D195: Medium | F195: =List_Facility_Sizes -> Small | G195: Medium
B196: =List_Costing_Groups -> Mid Cost | C196: =IF(Name_Cost_Mid="",0,IF(Name_Small="",0,C$189*(1+Percent_Loading_Mid))) -> 3200 | D196: =IF(Name_Cost_Mid="",0,IF(Name_Medium="",0,D$189*(1+Percent_Loading_Mid))) -> 5900 | E196: =IF(Name_Cost_Mid="",0,IF(Name_Large="",0,E$189*(1+Percent_Loading_Mid))) -> 0
B197: High Cost | C197: =IF(Name_Cost_High="",0,IF(Name_Small="",0,C$189*(1+Percent_Loading_High))) -> 3520 | D197: =IF(Name_Cost_High="",0,IF(Name_Medium="",0,D$189*(1+Percent_Loading_High))) -> 6490 | E197: =IF(Name_Cost_High="",0,IF(Name_Large="",0,E$189*(1+Percent_Loading_High))) -> 0
B198: Very High Cost | C198: =IF(Name_Cost_VHigh="",0,IF(Name_Small="",0,C$189*(1+Percent_Loading_VHigh))) -> 3840 | D198: =IF(Name_Cost_VHigh="",0,IF(Name_Medium="",0,D$189*(1+Percent_Loading_VHigh))) -> 7080 | E198: =IF(Name_Cost_VHigh="",0,IF(Name_Large="",0,E$189*(1+Percent_Loading_VHigh))) -> 0
B200: 4.3. Review costs that will be used for final results.
B201: This table shows the costs to be used in the final estimates.
B202: =B182 -> Other Components - Annual Costs | C202: =List_Facility_Sizes -> Small | D202: Medium
B203: =List_Costing_Groups -> Mid Cost | C203: =IF(Name_Cost_Mid="",0,IF(Name_Small="",0,IF(F196>1,F196,C196))) -> 3200 | D203: =IF(Name_Cost_Mid="",0,IF(Name_Medium="",0,IF(G196>1,G196,D196))) -> 5900 | E203: =IF(Name_Cost_Mid="",0,IF(Name_Large="",0,IF(H196>1,H196,E196))) -> 0
B204: High Cost | C204: =IF(Name_Cost_High="",0,IF(Name_Small="",0,IF(F197>1,F197,C197))) -> 3520 | D204: =IF(Name_Cost_High="",0,IF(Name_Medium="",0,IF(G197>1,G197,D197))) -> 6490 | E204: =IF(Name_Cost_High="",0,IF(Name_Large="",0,IF(H197>1,H197,E197))) -> 0
B205: Very High Cost | C205: =IF(Name_Cost_VHigh="",0,IF(Name_Small="",0,IF(F198>1,F198,C198))) -> 3840 | D205: =IF(Name_Cost_High="",0,IF(Name_Medium="",0,IF(G198>1,G198,D198))) -> 7080 | E205: =IF(Name_Cost_VHigh="",0,IF(Name_Large="",0,IF(H198>1,H198,E198))) -> 0

Sheet 8.National_Regional_Plan&Budget
B2: LEADERSHIP AND NATIONAL & REGIONAL LEVEL STRATEGIES - PLANNING & BUDGETING
B3: WARNING: Do not copy and paste data into this workbook. Doing so may insert conflicting code and remove validation. Please enter data manually to ensure proper functionality
B4: MODULE OVERVIEW
B5: Identify and cost higher level education courses to upskill human resources
B6: * Estimate number of people that would receive a scholarship to attend identified courses
B7: * Estimate tuition and living allowances expenses
B8: Identify national and regional level strategies and associated annual costs to support the scale-up
B9: Note that cross-cutting issues corresponding to the Vision & Leadership component, such as high-level oversight and management & development of templates for guidelines are listed first
B10: Review summary table and chart with total costs
B11: Remember:
B12: Light blue cells are user inputs.
B13: Yellow cells are tool calculations or contain reminder notes about potential strategies. They cannot be manually changed by the user
B15: Step 1. Identify and cost the delivery of higher education courses to upskill human resources
B16: Include here any higher education courses to be funded against the scale-up budget
B17: First, enter the number of trainees funded per year
B18: Second, enter the tuition fees per person per year
B19: Third, enter other costs such as scholarship living allowances.
D20: Costs per trainee per year funded against the scale-up
B21: Higher Education Courses | C21: Number of funded trainees per year | D21: Tuition Fees per person per year | E21: Scholarship Living Allowances & Additional Costs per person per year | F21: Estimated Annual Cost - All Trainees | G21: User Notes
B22: Advanced Diploma for Nurses - 1 year | C22: 10 | D22: 824 | E22: 5642 | F22: =(D22+E22)*C22 -> 64660
B23: Masters of Science in neonatologoy - 2 years | C23: 10 | D23: 1529 | E23: 5642 | F23: =(D23+E23)*C23 -> 71710
F24: 0
F25: 0
F26: 0
F27: 0
B28: Annual Costs of Higher Education Courses | F28: =SUM(F22:F27) -> 136370
B31: Step 2 Identify & cost national and regional level strategies for leading and supporting the scale-up
B32: First, enter national and regional level strategies required to support the scale-up and facilities delivering good quality of care, including any costs for finalising and disseminating the national plan.
B33: Second, enter start up costs including any capital investments that need to be incurred in year one of the scale-up
B34: Third, enter annual costs for subsequent years
B35: Remember that for regional/provincial strategies, country-wide costs should be entered, taking into consideration the number of regions/provinces included in scale-up plans & budgets
B37: National Plan & high level oversight and management | C37: Start up Costs (Year One) | D37: Annual Costs in Subsequent Years | E37: User Notes | F37: Reminder notes
B38: National Plan development and dissemination | F38: In addition to the costs of developing and disseminating the national plan, consider for example, the need of additional staff for management & oversight of the scale-up, as well as costs associated with financing mechanisms to ensure timely funding to facilities.
B39: Design & implementation of financing mechanisms to ensure timely funding to facilities
B40: Additional auditing, financial oversight?
B44: =CONCATENATE(,B37, " costs") -> National Plan & high level oversight and management costs | C44: =SUM(C38:C43) -> 0 | D44: =SUM(D38:D43) -> 0
B46: Templates for guidelines, protocols and SoP | C46: =C$37 -> Start up Costs (Year One) | D46: =D$37 -> Annual Costs in Subsequent Years | E46: =E$37 -> User Notes | F46: =F$37 -> Reminder notes
B47: Infrastructure | C47: 90000 | F47: Consider the development of templates as required for each component as well as those included in the standards for improving the quality of care for small and sick newborns, such as guidelines, protocols and SoP for evidence-based practices for routine care and management of complications.
B48: Equipment, including for maintenance | C48: 70000
B49: Human Resources
B50: Referral systems, including admission & discharge criteria and protocols
B51: Robust data systems, including setting up national minimum dataset
B52: Linkages of maternal & Neonatal care
B53: Family and Community Involvement and Support
B54: Post-discharge Follow-Up
B55: Evidence-base practice (clinical)
B56: Infection and prevention control
B62: Other
B63: =CONCATENATE(,B46, " costs") -> Templates for guidelines, protocols and SoP costs | C63: =SUM(C47:C62) -> 160000 | D63: =SUM(D47:D62) -> 0
B65: Infrastructure | C65: =C37 -> Start up Costs (Year One) | D65: =D37 -> Annual Costs in Subsequent Years | E65: =E37 -> User Notes | F65: =F$37 -> Reminder notes
B66: Commissioning Processes | F66: Consider for example, commissioning strategies for building and rehabilitating facilities, including the development of additional specifications required for tenders.
B72: =CONCATENATE(,B65, " costs") -> Infrastructure costs | C72: =SUM(C66:C71) -> 0 | D72: =SUM(D66:D71) -> 0
B74: Equipment & Commodities | C74: =C$37 -> Start up Costs (Year One) | D74: =D$37 -> Annual Costs in Subsequent Years | E74: =E$37 -> User Notes | F74: =F$37 -> Reminder notes
B75: Commissioning processes for equipment | F75: Consider for example, commissioning strategies for purchasing equipment and ensuring adequate supply of spare parts and consumables. Also consider any additional costs at regional or national level related to maintenance, decommissioning, and asset management not already covered by existing programs. Costs related to management systems for facility assets and drugs and medical supplies that are not already covered by existing programs should also be included.
B76: Asset management system
B77: Drugs and medical supplies management systems
B84: =CONCATENATE(,B74, " costs") -> Equipment & Commodities costs | C84: =SUM(C75:C83) -> 0 | D84: =SUM(D75:D83) -> 0
B86: Human Resources | C86: =C$37 -> Start up Costs (Year One) | D86: =D$37 -> Annual Costs in Subsequent Years | E86: =E$37 -> User Notes | F86: =F$37 -> Reminder notes
B87: Review training curriculum | F87: Consider for example, strategies related to review of pre-service training curricula or to build the capacity of regional staff to supervise, mentor and coach facility teams
B93: =CONCATENATE(,B86, " costs") -> Human Resources costs | C93: =SUM(C87:C92) -> 0 | D93: =SUM(D87:D92) -> 0
B95: Referral Systems | C95: =C37 -> Start up Costs (Year One) | D95: =D37 -> Annual Costs in Subsequent Years | E95: =E37 -> User Notes | F95: =F$37 -> Reminder notes
F96: Consider strategies to improve coordination and communication systems between various levels of facilities, including regional investments in technology
B102: =CONCATENATE(,B95, " costs") -> Referral Systems costs | C102: =SUM(C96:C101) -> 0 | D102: =SUM(D96:D101) -> 0
B105: ='7.Other_Facility_Plan&Budget'!B69 -> Robust Data Systems | C105: =C37 -> Start up Costs (Year One) | D105: =D37 -> Annual Costs in Subsequent Years | E105: =E37 -> User Notes | F105: =F$37 -> Reminder notes
B106: Annual Implementation Reviews, inc. dissemination meetings for regions & facilities | F106: Consider for example strategies needed to support data management such as developing the national minimum dataset, as well as annual implementation reviews and a 3 or 5 year evaluation of the scale-up. Also consider any strategies required to support implementation of perinatal death reviews as required.
B107: Three year evaluation, inc. annual implementation reviews.
B112: =CONCATENATE(,B105, " costs") -> Robust Data Systems costs | C112: =SUM(C106:C111) -> 0 | D112: =SUM(D106:D111) -> 0
A114: To decide | B114: Other Components & Strategies | C114: =C37 -> Start up Costs (Year One) | D114: =D37 -> Annual Costs in Subsequent Years | E114: =E37 -> User Notes | F114: =F$37 -> Reminder notes
F115: Consider strategies for the remaining components, not included elsewhere.
B129: =CONCATENATE(,B114, " costs") -> Other Components & Strategies costs | C129: =SUM(C115:C128) -> 0 | D129: =SUM(D115:D128) -> 0
B131: Step 3. Review cost of national and regional level strategies, including higher education courses
B132: This table shows total national and regional level costs to support the scale-up and so are not included in facility typology cost analytics
B134: ='9.Financing_Typology_Analytics'!E40 -> All financial figures are in USD - Base Year (2024)
B135: National & Regional Level Costs | C135: =C37 -> Start up Costs (Year One) | D135: =$D$37 -> Annual Costs in Subsequent Years
B137: =LEFT(B44,(LEN(B44)-6)) -> National Plan & high level oversight and management | C137: =C44 -> 0 | D137: =D44 -> 0
B138: =LEFT(B63,(LEN(B63)-6)) -> Templates for guidelines, protocols and SoP | C138: =C63 -> 160000 | D138: =D63 -> 0
B139: =LEFT(B72,(LEN(B72)-6)) -> Infrastructure | C139: =C72 -> 0 | D139: =D72 -> 0
B140: =LEFT(B84,(LEN(B84)-6)) -> Equipment & Commodities | C140: =C84 -> 0 | D140: =D84 -> 0
B141: =LEFT(B93,(LEN(B93)-6)) -> Human Resources | C141: =C93 -> 0 | D141: =D93 -> 0
B142: =LEFT(B102,(LEN(B102)-6)) -> Referral Systems | C142: =C102 -> 0 | D142: =D102 -> 0
B143: =LEFT(B112,(LEN(B112)-6)) -> Robust Data Systems | C143: =C112 -> 0 | D143: =D112 -> 0
B144: =LEFT(B129,(LEN(B129)-6)) -> Other Components & Strategies | C144: =C129 -> 0 | D144: =D129 -> 0
B145: National and Regional Strategies | C145: =SUM(C137:C144) -> 160000 | D145: =SUM(D137:D144) -> 0
B146: =B21 -> Higher Education Courses | C146: =Cost_HigherEducation_Annual -> 136370 | D146: =Cost_HigherEducation_Annual -> 136370
B147: Total Annual National and Regional Costs | C147: =Cost_National_Year1+C146 -> 296370 | D147: =Cost_National_After_Year1+D146 -> 136370
B148: IMPORTANT: Do not cut charts. Always use copy & paste

Sheet 9.Financing_Typology_Analytics
B1: Dynamic List_ Size Typologies | E1: Dynamic List Cost Typologies
A2: =IF(B2="","",MAX(A$1:A1)+1) -> 1 | B2: =Name_Small -> Small | C2: =IFERROR(INDEX($B$2:$B$4,MATCH(ROW()-ROW($C$1),$A$2:$A$4,0)),"") -> Small | D2: =IF(E2="","",MAX(D1:D$1)+1) -> 1 | E2: =Name_Cost_Mid -> Mid Cost | F2: =IFERROR(INDEX($E$2:$E$4,MATCH(ROW()-ROW($F$1),$D$2:$D$4,0)),"") -> Mid Cost
A3: =IF(B3="","",MAX(A$1:A2)+1) -> 2 | B3: =Name_Medium -> Medium | C3: =IFERROR(INDEX($B$2:$B$4,MATCH(ROW()-ROW($C$1),$A$2:$A$4,0)),"") -> Medium | D3: =IF(E3="","",MAX(D$1:D2)+1) -> 2 | E3: =Name_Cost_High -> High Cost | F3: =IFERROR(INDEX($E$2:$E$4,MATCH(ROW()-ROW($F$1),$D$2:$D$4,0)),"") -> High Cost
A4: =IF(B4="","",MAX(A$1:A3)+1) ->  | B4: =Name_Large ->  | C4: =IFERROR(INDEX($B$2:$B$4,MATCH(ROW()-ROW($C$1),$A$2:$A$4,0)),"") ->  | D4: =IF(E4="","",MAX(D$1:D3)+1) -> 3 | E4: =Name_Cost_VHigh -> Very High Cost | F4: =IFERROR(INDEX($E$2:$E$4,MATCH(ROW()-ROW($F$1),$D$2:$D$4,0)),"") -> Very High Cost
B6: Dynamic List Equipment Needs | E6: Dynamic List Standard/Hard-to-recruit | H6: Dynamic List New Construction
A7: =IF(B7="","",MAX(A6:A$6)+1) -> 1 | B7: =Name_Equipment_Need_Major -> Major need | C7: =IFERROR(INDEX($B$7:$B$9,MATCH(ROW()-ROW($C$6),$A$7:$A$9,0)),"") -> Major need | D7: =IF(E7="","",MAX(D$6:D6)+1) -> 1 | E7: =Name_HR_Standard -> Standard area | F7: =IFERROR(INDEX($E$7:$E$9,MATCH(ROW()-ROW($F$6),$D$7:$D$9,0)),"") -> Standard area | G7: =IF(H7="","",MAX(G$6:G6)+1) -> 1 | H7: =Name_Construction_New -> New Construction | I7: =IFERROR(INDEX($H$7:$H$9,MATCH(ROW()-ROW($I$6),$G$7:$G$8,0)),"") -> New Construction
A8: =IF(B8="","",MAX(A$6:A7)+1) -> 2 | B8: =Name_Equipment_Need_Partial -> Partial need | C8: =IFERROR(INDEX($B$7:$B$9,MATCH(ROW()-ROW($C$6),$A$7:$A$9,0)),"") -> Partial need | D8: =IF(E8="","",MAX(D$6:D7)+1) -> 2 | E8: =Name_HR_HardRecruit -> Hard-to-Recruit | F8: =IFERROR(INDEX($E$7:$E$9,MATCH(ROW()-ROW($F$6),$D$7:$D$9,0)),"") -> Hard-to-Recruit | G8: =IF(H8="","",MAX(G$6:G7)+1) -> 2 | H8: =Name_Construction_Rehab -> Rehabilitation | I8: =IFERROR(INDEX($H$7:$H$9,MATCH(ROW()-ROW($I$6),$G$7:$G$8,0)),"") -> Rehabilitation
A9: =IF(B9="","",MAX(A$6:A8)+1) -> 3 | B9: =Name_Equipment_Need_Limited -> Limited need | C9: =IFERROR(INDEX($B$7:$B$9,MATCH(ROW()-ROW($C$6),$A$7:$A$9,0)),"") -> Limited need | D9: =IF(E9="","",MAX(D$6:D8)+1) ->  | E9: =Name_HR_VHardRecruit ->  | F9: =IFERROR(INDEX($E$7:$E$9,MATCH(ROW()-ROW($F$6),$D$7:$D$9,0)),"") -> 
E12: FINANCING (1) - FACILITY TYPOLOGY ANALYTICS
E13: WARNING: Do not copy and paste data into this workbook. Doing so may insert conflicting code and remove validation. Please enter data manually & choose from dropdown menu where available to ensure proper functionality
E14: MODULE OVERVIEW
E15: This is the first financing module, which provides cost analytics by facility typology to support strategic decision-making
E16: Select facility typologies for calculating key system parameters and costs
E17: Select facility typologies from the dropdown menu
E18: Review system parameters and costs by typology
E20: STEP 1. SELECT FACILITY TYPOLOGIES FOR DISPLAYING TOTAL COSTS
E22: 1.1. Select a costed typology by clicking on each cell & choose from the dropdown menu.
E23: Remember do not copy/paste cut/paste into these cells. Only choose from the dropdown menu
E24: Facility Typology | F24: Facility Type 1 | G24: Facility Type 2 | H24: Facility Type 3 | I24: User Notes
E25: ='1.General_Inputs_Plan&Budget'!B35 -> SIZE | F25: Small | G25: Medium | H25: Medium
E26: ='1.General_Inputs_Plan&Budget'!B40 -> COST/LOCATION | F26: Mid Cost | G26: Mid Cost | H26: Mid Cost
E27: ='1.General_Inputs_Plan&Budget'!B45 -> CONSTRUCTION TYPE | F27: New Construction | G27: New Construction | H27: Rehabilitation
E28: ='1.General_Inputs_Plan&Budget'!B49 -> EQUIPMENT NEEDS | F28: Major need | G28: Major need | H28: Partial need
E29: ='1.General_Inputs_Plan&Budget'!B54 -> RECRUITMENT CHALLENGES | F29: Standard area | G29: Standard area | H29: Standard area
E31: 1.2. Enter a short name for the 'typical' facility.
E32: This name will be used for displaying charts, so try to keep it short
F33: =F24 -> Facility Type 1 | G33: =G24 -> Facility Type 2 | H33: Facility Type 3
E34: Typical Facility Name/Description: | F34: Small | G34: MediumNew | H34: MediumRehab
E36: STEP 2. REVIEW FACILITY COST ANALYTICS
E37: Note: If column values are 0, the items or the typology has not been costed.
E38: Go back to the previous step and make sure you choose a typology from the dropdown menu
E39: FACILITY COSTS (1)
E40: =_xlfn.CONCAT("All financial figures are in ", '1.General_Inputs_Plan&Budget'!C19, " - Base Year (", '1.General_Inputs_Plan&Budget'!C27, ")") -> All financial figures are in USD - Base Year (2024)
E41: Service Parameter/Cost | F41: =IF(F34="",F33, F34) -> Small | G41: =IF(G34="",G33, G34) -> MediumNew | H41: =IF(H34="",H33, H34) -> MediumRehab
E42: Expected annual number of admissions (#) | F42: =Admissions(Typology1_Size,Admissions_All_Range) -> 673 | G42: =Admissions(Typology2_Size,Admissions_All_Range) -> 1345 | H42: =Admissions(Typology3_Size,Admissions_All_Range) -> 1345
E43: Number of beds required (#) | F43: =Beds(Typology1_Size,Number_Beds_All_Range) -> 14 | G43: =Beds(Typology2_Size,Number_Beds_All_Range) -> 28 | H43: =Beds(Typology3_Size,Number_Beds_All_Range) -> 28
E44: Total floor space (Sq. Mts.) | F44: =FloorSpace(Typology1_Size, Floor_Space_All) -> 325 | G44: =FloorSpace(Typology2_Size, Floor_Space_All) -> 553 | H44: =FloorSpace(Typology3_Size, Floor_Space_All) -> 553
E45: FACILITY CAPITAL COSTS | F45: =F46+F47+F52 ->  | G45: =G46+G47+G52 ->  | H45: =H46+H47+H52 -> 
E46: Infrastructure | F46: =CostBuilding(Typology1_Building,Typology1_Costs,Typology1_Size,Cost_Infr_All_New_Range,Cost_Infr_All_Rehab_Range) -> 217750 | G46: =CostBuilding(Typology2_Building,Typology2_Costs,Typology2_Size, Cost_Infr_All_New_Range,Cost_Infr_All_Rehab_Range) -> 370510 | H46: =CostBuilding(Typology3_Building,Typology3_Costs,Typology3_Size, Cost_Infr_All_New_Range,Cost_Infr_All_Rehab_Range) -> 221200
E47: Equipment | F47: =SUM(F48:F51) ->  | G47: =SUM(G48:G51) -> 
E48: Main Equipment - Acquisition | F48: =CostEquipment(Typology1_Equipment_Need,Typology1_Size,Equipment_Need_All_Range,Cost_Equipment_All_Range) ->  | G48: =CostEquipment(Typology2_Equipment_Need,Typology2_Size,Equipment_Need_All_Range,Cost_Equipment_All_Range) ->  | H48: =CostEquipment(Typology3_Equipment_Need,Typology3_Size,Equipment_Need_All_Range,Cost_Equipment_All_Range) -> 
E49: Main Equipment - Distribution | F49: =CostTransportEquip(Typology1_Equipment_Need,Typology1_Size,Typology1_Costs,Equipment_Need_All_Range,Cost_Equipm_Transport_All_Range) ->  | G49: =CostTransportEquip(Typology2_Equipment_Need,Typology2_Size,Typology2_Costs,Equipment_Need_All_Range,Cost_Equipm_Transport_All_Range) ->  | H49: =(CostTransportEquip(Typology3_Equipment_Need,Typology3_Size,Typology3_Costs,Equipment_Need_All_Range,Cost_Equipm_Transport_All_Range)) -> 
E50: Main Equipment - Buffer Stocks | F50: =CostBufferStocks(Typology1_Equipment_Need,Typology1_Size,Typology1_Costs,Equipment_Need_All_Range,Cost_Equipm_Buffer_All_Range) ->  | G50: =CostBufferStocks(Typology2_Equipment_Need,Typology2_Size,Typology2_Costs,Equipment_Need_All_Range,Cost_Equipm_Buffer_All_Range) ->  | H50: =CostBufferStocks(Typology3_Equipment_Need,Typology3_Size,Typology3_Costs,Equipment_Need_All_Range,Cost_Equipm_Buffer_All_Range) -> 
E51: Furniture & other equipment | F51: =CostFurniture(Typology1_Equipment_Need,Typology1_Size,Typology1_Costs,Equipment_Need_All_Range,Cost_Furniture_All_Range) -> 23000 | G51: =CostFurniture(Typology2_Equipment_Need,Typology2_Size,Typology2_Costs,Equipment_Need_All_Range,Cost_Furniture_All_Range) -> 23000 | H51: =CostFurniture(Typology3_Equipment_Need,Typology3_Size,Typology3_Costs,Equipment_Need_All_Range,Cost_Furniture_All_Range) -> 10350
E52: Other Capital | F52: =F53+F54 -> 100000 | G52: =G53+G54 -> 100000 | H52: =H53+H54 -> 100000
E53: Ambulance | F53: =CostAmbulanceVehicle(Typology1_Size,Cost_AmbulanceVehicle_All_Range) -> 100000 | G53: =CostAmbulanceVehicle(Typology2_Size,Cost_AmbulanceVehicle_All_Range) -> 100000 | H53: =CostAmbulanceVehicle(Typology3_Size,Cost_AmbulanceVehicle_All_Range) -> 100000
E54: Other (2) | F54: =CostRecruitCapital(Typology1_HR,Typology1_Size,Cost_Recruit_Capital_All_Range) -> 0 | G54: =CostRecruitCapital(Typology2_HR,Typology2_Size,Cost_Recruit_Capital_All_Range) -> 0 | H54: =CostRecruitCapital(Typology3_HR,Typology3_Size,Cost_Recruit_Capital_All_Range) -> 0
E55: FACILITY RECURRENT COSTS | F55: =F56+F59+F62 ->  | G55: =G56+G59+G62 ->  | H55: =H56+H59+H62 -> 
E56: Human Resources | F56: =F57+F58 -> 148080 | G56: =G57+G58 -> 243580 | H56: 243580
E57: Salaries | F57: =CostSalaries(Typology1_HR,Typology1_Size,Cost_HR_All_Range) -> 140200 | G57: =CostSalaries(Typology2_HR,Typology2_Size,Cost_HR_All_Range) -> 228700 | H57: =CostSalaries(Typology3_HR,Typology3_Size,Cost_HR_All_Range) -> 228700
E58: Development & Incentives (3) | F58: =CostDevelopmentHR(Typology1_Size,Typology1_Costs,Cost_DevelopHR_All_Range)+CostRecruitAnnual(Typology1_HR,Typology1_Size,Cost_Recruit_Annual_All_Range) -> 7880 | G58: =CostDevelopmentHR(Typology2_Size,Typology2_Costs,Cost_DevelopHR_All_Range)+CostRecruitAnnual(Typology2_HR,Typology2_Size,Cost_Recruit_Annual_All_Range) -> 14880 | H58: =CostDevelopmentHR(Typology3_Size,Typology3_Costs,Cost_DevelopHR_All_Range)+CostRecruitAnnual(Typology3_HR,Typology3_Size,Cost_Recruit_Annual_All_Range) -> 14880
E59: Equipment | F59: =F60+F61 ->  | G59: =G60+G61 -> 
E60: Regular Maintenance (4) | F60: =CostMaintenance(Typology1_Size,Typology1_Costs,Cost_Maintenance_All_Range) ->  | G60: =CostMaintenance(Typology2_Size,Typology2_Costs,Cost_Maintenance_All_Range) ->  | H60: =CostMaintenance(Typology3_Size,Typology3_Costs,Cost_Maintenance_All_Range) -> 
E61: Consumables & Renewables | F61: =CostConsumables(Typology1_Size,Typology1_Costs,Cost_Consumables_All_Range) ->  | G61: =CostConsumables(Typology2_Size,Typology2_Costs,Cost_Consumables_All_Range) ->  | H61: =CostConsumables(Typology3_Size,Typology3_Costs,Cost_Consumables_All_Range) -> 
E62: Other Recurrent | F62: =(SUM(F63:F65)) -> 18962.25 | G62: =(SUM(G63:G65)) -> 35386.45 | H62: =(SUM(H63:H65)) -> 35386.45
E63: Drugs & Medical Supplies | F63: =CostDrugs(Typology1_Size,Typology1_Costs,Cost_Drugs_All_Range) -> 5384 | G63: =CostDrugs(Typology2_Size,Typology2_Costs,Cost_Drugs_All_Range) -> 10760 | H63: =CostDrugs(Typology3_Size,Typology3_Costs,Cost_Drugs_All_Range) -> 10760
E64: Referral Systems | F64: =CostAnnualReferral(Typology1_Size,Typology1_Costs,Cost_Referral_Annual_All_Range) -> 7112 | G64: =CostAnnualReferral(Typology2_Size,Typology2_Costs,Cost_Referral_Annual_All_Range) -> 13168.8 | H64: =CostAnnualReferral(Typology3_Size,Typology3_Costs,Cost_Referral_Annual_All_Range) -> 13168.8
E65: Other Model of Care Components (5) | F65: =CostQoC(Typology1_Size,Typology1_Costs,Cost_QoC_All_Range)+ CostInfrMaintenance(Typology1_Size,Typology1_Costs,Cost_InfrMaintenance_All_Range) -> 6466.25 | G65: =CostQoC(Typology2_Size,Typology2_Costs,Cost_QoC_All_Range)+ CostInfrMaintenance(Typology2_Size,Typology2_Costs,Cost_InfrMaintenance_All_Range) -> 11457.65 | H65: =CostQoC(Typology3_Size,Typology3_Costs,Cost_QoC_All_Range)+CostInfrMaintenance(Typology3_Size,Typology3_Costs,Cost_InfrMaintenance_All_Range) -> 11457.65
E66: =_xlfn.CONCAT(E45, " ANALYSIS") -> FACILITY CAPITAL COSTS ANALYSIS
E67: Capital Cost per Bed | F67: =IF(F45=0,0,F45/F43) ->  | G67: =IF(G45=0,0,G45/G43) ->  | H67: =IF(H45=0,0,H45/H43) -> 
E68: % Share | F68: =SUM(F69:F71) ->  | G68: =SUM(G69:G71) -> 
E69: =E46 -> Infrastructure | F69: =IF(F46=0,0,F46/F45) ->  | G69: =IF(G46=0,0,G46/G45) ->  | H69: =IF(H46=0,0,H46/H45) -> 
E70: =E47 -> Equipment | F70: =IF(F47=0,0,F47/F45) ->  | G70: =IF(G47=0,0,G47/G45) ->  | H70: =IF(H47=0,0,H47/H45) -> 
E71: =E52 -> Other Capital | F71: =IF(F52=0,0,F52/F45) ->  | G71: =IF(G52=0,0,G52/G45) ->  | H71: =IF(H52=0,0,H52/H45) -> 
E72: =_xlfn.CONCAT(E55, " ANALYSIS") -> FACILITY RECURRENT COSTS ANALYSIS
E73: Annual Cost per Bed | F73: =IF(F55=0,0,F55/F43) ->  | G73: =IF(G55=0,0,G55/G43) ->  | H73: =IF(H55=0,0,H55/H43) -> 
E74: Annual Cost per Newborn Admission | F74: =IF(F55=0,0,F55/F42) ->  | G74: =IF(G55=0,0,G55/G42) ->  | H74: =IF(H55=0,0,H55/H42) -> 
E75: =E68 -> % Share | F75: =SUM(F76:F78) ->  | G75: =SUM(G76:G78) ->  | H75: =SUM(H76:H78) -> 
E76: =E56 -> Human Resources | F76: =IF(F56=0,0,F56/F55) ->  | G76: =IF(G56=0,0,G56/G55) ->  | H76: =IF(H56=0,0,H56/H55) -> 
E77: =E59 -> Equipment | F77: =IF(F59=0,0,F59/F55) ->  | G77: =IF(G59=0,0,G59/G55) -> 
E78: =E62 -> Other Recurrent | F78: =IF(F62=0,0,F62/F55) ->  | G78: =IF(G62=0,0,G62/G55) -> 
E79: Notes:
E80: (1) Table does not include costs of national & regional strategies
E81: (2) Other include capital costs (i.e. housing) to recruit and retain staff in hard-to-recruit and most-challenging recruitment typologies
E82: (3) Development & Incentives includes human development strategies such as supervision/coaching & mandatory in-service training and additional recruitment incentives not costed as part of staff salaries and allowances
E83: (4) Equipment regular maintenance includes spare parts and maintenance strategies, except buffer stocks
E84: (5) Recurrent costs for infrastructure maintenance and model of care components other than human resources, equipment & commodities and referrals)
E86: IMPORTANT: Do not cut charts. Always use copy & paste
F87: =E40 -> All financial figures are in USD - Base Year (2024)
E94: What are the capital and annual recurrent costs involved?
E95: How do costs vary by typology
E96: What about costs per bed?
E108: What accounts for the largest share of capital costs?
E109: How does the distribution vary by typology?
E125: What accounts for the largest share of annual costs?
E126: How does the distribution vary by typology?
E143: How do annual recurrent costs per newborn vary by typology?

Sheet 10.Financing_ScaleUp_Scenario
B2: FINANCING (2) - SCALE-UP SCENARIO
B3: WARNING: Do not copy and paste data into this workbook. Doing so may insert conflicting code and remove validation. Please enter data manually to ensure proper functionality
B4: MODULE OVERVIEW
B5: Complements the facility typology analytics module by allowing the user to model the costs of a basic scale-up scenario
B6: It can be used in planning & budgeting discussions to examine the impact of recurrent expenditure vs. capital investments
B7: The analysis can also help users gauge how many facilities can be funded within a limited resource envelope
B8: Note that five-year estimates are shown here and do not include the cost of replacing capital assets after a certain period of time
B9: The module steps include:
B10: Review the characteristics of the 'typical' facilities that will be used for the scale-up scenario calculations
B11: They represent the typologies used in the previous module (9.Financing_Typology_Analytics)
B12: Select the start year of the scale-up scenario
B13: Scale-up scenario projections shown for five years. If the start year is 2025, the end year of the scenario will be 2029
B14: Enter the percentage of recurrent costs to be funded in each scenario year
B15: It is unlikely that facilities will be fully operational the year they are funded, so this percentage adjusts the recurrent expenditure in that year.
B16: Enter the number of facilities that will be set up each year
B17: To estimate scale-up costs, enter here the number of each 'typical' facility included in the scale-up
B18: Review & validate the number of facilities and associated scale-up costs
B19: Here the user can examine the impact of recurrent vs. capital costs
B20: Review total scale-up costs (facility & national and regional levels)
B21: Here the user can review all scale-up costs, including those incurred at national & regional levels
B22: Review summary charts
B23: Light blue cells are user inputs.
B24: Yellow cells cannot be manually changed by the user
B26: STEP 1. REVIEW THE CHARACTERISTICS OF THE 'TYPICAL FACILITIES' THAT WILL BE USED FOR THE SCALE-UP SCENARIO CALCULATIONS
B27: This table shows the current typologies modelled in Facility Typology Analytics (Module 9)
B28: Costs for these typologies will be used for the scale-up scenario calculations
B29: Make sure they represent the 'typical' facilities to be included in the scale-up
B30: If you want to change any of the typologies, go back to the previous sheet (9.Facility_Typology_Analytics) and make the corresponding changes
B32: ='9.Financing_Typology_Analytics'!E34 -> Typical Facility Name/Description: | C32: ='9.Financing_Typology_Analytics'!F41 -> Small | D32: ='9.Financing_Typology_Analytics'!G41 -> MediumNew | E32: ='9.Financing_Typology_Analytics'!H41 -> MediumRehab
B33: ='9.Financing_Typology_Analytics'!E25 -> SIZE | C33: ='9.Financing_Typology_Analytics'!F25 -> Small | D33: ='9.Financing_Typology_Analytics'!G25 -> Medium | E33: ='9.Financing_Typology_Analytics'!H25 -> Medium
B34: ='9.Financing_Typology_Analytics'!E26 -> COST/LOCATION | C34: ='9.Financing_Typology_Analytics'!F26 -> Mid Cost | D34: ='9.Financing_Typology_Analytics'!G26 -> Mid Cost | E34: ='9.Financing_Typology_Analytics'!H26 -> Mid Cost
B35: ='9.Financing_Typology_Analytics'!E27 -> CONSTRUCTION TYPE | C35: ='9.Financing_Typology_Analytics'!F27 -> New Construction | D35: ='9.Financing_Typology_Analytics'!G27 -> New Construction | E35: ='9.Financing_Typology_Analytics'!H27 -> Rehabilitation
B36: ='9.Financing_Typology_Analytics'!E28 -> EQUIPMENT NEEDS | C36: ='9.Financing_Typology_Analytics'!F28 -> Major need | D36: ='9.Financing_Typology_Analytics'!G28 -> Major need | E36: ='9.Financing_Typology_Analytics'!H28 -> Partial need
B37: ='9.Financing_Typology_Analytics'!E29 -> RECRUITMENT CHALLENGES | C37: ='9.Financing_Typology_Analytics'!F29 -> Standard area | D37: ='9.Financing_Typology_Analytics'!G29 -> Standard area | E37: ='9.Financing_Typology_Analytics'!H29 -> Standard area
B39: STEP 2. SELECT THE START YEAR FOR THE SCALE-UP SCENARIO
B40: The start year of the scale-up scenario is the year when the first group of facilities will be financed to commence construction.
B41: Select a start year for the scale-up after 2023
B42: Note that scale-up projections are shown for five years, that is if the scale-up scenario starts in 2024, it will show expenditure projections up to 2030
A44: Final year of the scale-up scenario: | B44: Start year of the scale-up scenario: | C44: 2025
A45: =User_ScenarioYear_Start+4 -> 2029
B47: STEP 3. ENTER THE PERCENTAGE OF RECURRENT COSTS TO BE FUNDED THE YEAR THE FACILITY IS SET UP/FUNDED
B48: The model assumes that all capital costs for a facility are disbursed/funded in the year that facility is set up.
B49: However, it is reasonable to assume that in the setup year, while the facility is under construction, recurrent costs such as equipment maintenance expenditure will not be incurred.
B50: The % entered here will account for this reduced expenditure in that first year. Leave blank or enter 0% if you think no recurrent expenditure will be incurred in the set-up year
B52: % facility recurrent costs funded in the set up year: | D52: 0.1
B54: STEP 4. FOR EACH YEAR OF THE SCALE-UP ENTER THE NUMBER OF 'TYPICAL' FACILITIES SET UP
B55: These 'typical' facilities represent the typologies selected by the user in Facility Typology_Cost_Charts
B56: If there are no facilities set up in a particular year, leave blank o enter 0
C58: Enter number of new facilities included in the scale-up each year
B59: 'Typical' Facilities in Country | C59: =IF(User_ScenarioYear_Start="","NA",User_ScenarioYear_Start) -> 2025 | D59: =IF(C59="NA","NA",IF((User_ScenarioYear_Start+1)<=User_ScenarioYear_End,User_ScenarioYear_Start+1,"NA")) -> 2026 | E59: =IF(C59="NA","NA",IF((User_ScenarioYear_Start+2)<=User_ScenarioYear_End,User_ScenarioYear_Start+2,"NA")) -> 2027 | F59: =IF(C59="NA","NA",IF((User_ScenarioYear_Start+3)<=User_ScenarioYear_End,User_ScenarioYear_Start+3,"NA")) -> 2028 | G59: =IF(C59="NA","NA",IF((User_ScenarioYear_Start+4)<=User_ScenarioYear_End,User_ScenarioYear_Start+4,"NA")) -> 2029 | H59: Total
B60: ='9.Financing_Typology_Analytics'!F41 -> Small | C60: 5 | D60: 6 | E60: 2 | H60: =SUM(C60:G60) -> 13
B61: ='9.Financing_Typology_Analytics'!G41 -> MediumNew | C61: 5 | D61: 7 | E61: 3 | H61: =SUM(C61:G61) -> 15
B62: ='9.Financing_Typology_Analytics'!H41 -> MediumRehab | C62: 5 | D62: 7 | E62: 3 | H62: =SUM(C62:G62) -> 15
B65: STEP 5. REVIEW & VALIDATE SCALE-UP SCENARIO COSTS (CAPITAL & RECURRENT)
B66: In this table you can review the total number of new facilities funded each year as well as the associated scale-up costs
B67: This table shows capital expenditure for facilities funded in a year.
B68: Annual recurrent costs are estimated separately for new facilities and for those set up in previous years
B69: Remember that all costs in this table are presented in constant prices. The same base year and currency indicated in inputs.
B70: Scale-up Year | C70: =C59 -> 2025 | D70: =D59 -> 2026 | E70: 2027 | F70: 2028 | G70: 2029 | H70: Total
B71: New facilities | C71: =IF(C59="NA","",C60+C61+C62) -> 15 | D71: =IF(D59="NA","",D60+D61+D62) -> 20 | E71: 8 | F71: 0 | G71: 0 | H71: =SUM(C71:G71) -> 43
B72: Annual facility costs | C72: =C77+C78 ->  | H72: =SUM(C72:G72) -> 
B74: Capital (%) | C74: =IF(C72=0,0,C77/C72) ->  | H74: =IF(H72=0,0,H77/H72) -> 
B75: Recurrent (%) | C75: =IF(C72=0,0,C78/C72) ->  | H75: =IF(H72=0,0,H78/H72) -> 
B77: Capital Costs ($) | C77: =IF(C59="NA",0,(C60*UserTypologyName1_Capital)+(C61*UserTypologyName2_Capital)+(C62*UserTypologyName3_Capital)) ->  | H77: =SUM(C77:G77) -> 
B78: Recurrent Costs ($) | C78: =C79+C80 ->  | H78: =SUM(C78:G78) -> 
B79: Recurrent new facilities ($) | C79: =IF(C59="NA",0,((C60*UserTypologyName1_Recurrent)+(C61*UserTypologyName2_Recurrent)+(C62*UserTypologyName3_Recurrent))*User_PercentRecurrent_SetupYear) -> 
B80: Recurrent facilities set up in previous years | C80: 0 | D80: =IF(D59="NA",0,C80+((C60*UserTypologyName1_Recurrent)+(C61*UserTypologyName2_Recurrent)+(C62*UserTypologyName3_Recurrent))) -> 
B81: =_xlfn.CONCAT("Note: ",'9.Financing_Typology_Analytics'!$E$40) -> Note: All financial figures are in USD - Base Year (2024)
B92: How many new facilities are funded every year?
B93: What are the expected levels of facility expenditure?
E102: =_xlfn.CONCAT("Note: ",'9.Financing_Typology_Analytics'!$E$40) -> Note: All financial figures are in USD - Base Year (2024)
B113: What about facility capital vs. recurrent costs?
B114: How does the split change by year?
E124: =_xlfn.CONCAT("Note: ",'9.Financing_Typology_Analytics'!$E$40) -> Note: All financial figures are in USD - Base Year (2024)
B127: STEP 6. REVIEW TOTAL SCALE-UP COSTS BY YEAR (FACILITY, NATIONAL AND REGIONAL LEVELS)
B128: Review total scale-up costs, including national & regional level strategies, by year
C130: =C59 -> 2025 | D130: 2026 | E130: 2027 | F130: 2028 | G130: 2029 | H130: Total
B131: Facility Scale-up Costs | C131: =C72 -> 
B132: National & Regional Costs | C132: =IF(C70="NA",0,'8.National_Regional_Plan&Budget'!C147) -> 296370 | D132: =IF(D70="NA",0,'8.National_Regional_Plan&Budget'!$D$147) -> 136370 | E132: =IF(E70="NA",0,'8.National_Regional_Plan&Budget'!$D$147) -> 136370 | F132: =IF(F70="NA",0,'8.National_Regional_Plan&Budget'!$D$147) -> 136370 | G132: =IF(G70="NA",0,'8.National_Regional_Plan&Budget'!$D$147) -> 136370 | H132: =SUM(C132:G132) -> 841850
B133: TOTAL SCALE-UP COSTS | C133: =C131+C132 ->  | D133: =D131+D132 -> 
B134: =_xlfn.CONCAT("Note: ",'9.Financing_Typology_Analytics'!$E$40) -> Note: All financial figures are in USD - Base Year (2024)
B146: How does the expected expenditure at national and regional levels compare with expenditure at facility level?
E156: =_xlfn.CONCAT("Note: ",'9.Financing_Typology_Analytics'!$E$40) -> Note: All financial figures are in USD - Base Year (2024)
